Body Name,Date Paid,Transaction Number,Amount,Supplier Name,Supplier Type,Expense Area,Cost Centre Description,Expense Type
Cambridgeshire County Council,22-Jul-16,21054711-13696623,-20903.2,Balfour Beatty Living Places Limited,Company,Major Infrastructure Delivery,Sustrans / Cycling Schemes,Capital WIP - other  -  Expenditure / Payments
Cambridgeshire County Council,01-Jul-16,20935460-13584565,-8435,Cambridge City Council,Other Public Bodies,LGSS Managed,Bailey Rooms,Business rates
Cambridgeshire County Council,01-Jul-16,20860972-13584566,-6013,Cambridge City Council,Other Public Bodies,E&P,Cambridgeshire Alternative Education Service,Business rates
Cambridgeshire County Council,08-Jul-16,21084039-13619624,-5403.69,Priory Group Re Redlands Care Home,Care Establishment,S&C,Placements - Social Care,Agency Placements - In Cambs
Cambridgeshire County Council,29-Jul-16,21175456-13737785,-3750,Gleeds Advisory Ltd,Trade Supplier,S&C,Education Property Strategy Manager,Capital WIP - land and buildings  -  Construction cost
Cambridgeshire County Council,01-Jul-16,20909770-13584613,-3080,South Cambridgeshire District Council,Other Public Bodies,S&C,Groomfields - Caxton Depot,Business rates
Cambridgeshire County Council,25-Jul-16,20678418-13700824,-3060,London Hire Ltd,Trade Supplier,1- Commissioning - Service Director,SSD Transport  -  Dept Wide,Leased Cars
Cambridgeshire County Council,01-Jul-16,20848453-13589646,-3018.18,Redacted Personal Data,Individual,2 - Commissioning - Older people Pool,Older People - City & South,SDS - Personal Budgets Contributions
Cambridgeshire County Council,27-Jul-16,20694588-13716570,-2914.2,Metropolitan Housing Trust Ltd,Trust (Other),2 - Operations - Learning Disability,LDP City Locality - Care,SDS - Live Independently
Cambridgeshire County Council,04-Jul-16,21012591-13596078,-2788.8,Canon (Uk) Ltd,Trade Supplier,Corporate Services,Information Management,Office equipment
Cambridgeshire County Council,13-Jul-16,21097369-13636949,-2706.77,Guidant Group,Trade Supplier,4 - Operations - Providers services,Hunts Community Centre,Pay - Agency Staff
Cambridgeshire County Council,29-Jul-16,21177474-13736948,-2551.87,Westminster Homecare Limited,Care Establishment,2 - Operations - Learning Disability,LDP E Cambs Locality - Care,Day and Domicillary Care Independent Sector
Cambridgeshire County Council,29-Jul-16,21177475-13736949,-2551.87,Westminster Homecare Limited,Care Establishment,2 - Operations - Learning Disability,LDP E Cambs Locality - Care,Day and Domicillary Care Independent Sector
Cambridgeshire County Council,29-Jul-16,21177476-13736950,-2551.87,Westminster Homecare Limited,Care Establishment,2 - Operations - Learning Disability,LDP E Cambs Locality - Care,Day and Domicillary Care Independent Sector
Cambridgeshire County Council,29-Jul-16,21177478-13736952,-2551.87,Westminster Homecare Limited,Care Establishment,2 - Operations - Learning Disability,LDP E Cambs Locality - Care,Day and Domicillary Care Independent Sector
Cambridgeshire County Council,29-Jul-16,21177479-13736953,-2551.87,Westminster Homecare Limited,Care Establishment,2 - Operations - Learning Disability,LDP E Cambs Locality - Care,Day and Domicillary Care Independent Sector
Cambridgeshire County Council,29-Jul-16,21177482-13736996,-2551.87,Westminster Homecare Limited,Care Establishment,2 - Operations - Learning Disability,LDP E Cambs Locality - Care,Day and Domicillary Care Independent Sector
Cambridgeshire County Council,29-Jul-16,21177485-13736999,-2551.87,Westminster Homecare Limited,Care Establishment,2 - Operations - Learning Disability,LDP E Cambs Locality - Care,Day and Domicillary Care Independent Sector
Cambridgeshire County Council,29-Jul-16,21177487-13737001,-2551.87,Westminster Homecare Limited,Care Establishment,2 - Operations - Learning Disability,LDP E Cambs Locality - Care,Day and Domicillary Care Independent Sector
Cambridgeshire County Council,29-Jul-16,21177488-13737002,-2551.87,Westminster Homecare Limited,Care Establishment,2 - Operations - Learning Disability,LDP E Cambs Locality - Care,Day and Domicillary Care Independent Sector
Cambridgeshire County Council,29-Jul-16,21177490-13737004,-2551.87,Westminster Homecare Limited,Care Establishment,2 - Operations - Learning Disability,LDP E Cambs Locality - Care,Day and Domicillary Care Independent Sector
Cambridgeshire County Council,29-Jul-16,21177492-13737006,-2551.87,Westminster Homecare Limited,Care Establishment,2 - Operations - Learning Disability,LDP E Cambs Locality - Care,Day and Domicillary Care Independent Sector
Cambridgeshire County Council,29-Jul-16,21177497-13737011,-2551.87,Westminster Homecare Limited,Care Establishment,2 - Operations - Learning Disability,LDP E Cambs Locality - Care,Day and Domicillary Care Independent Sector
Cambridgeshire County Council,29-Jul-16,21177498-13737012,-2551.87,Westminster Homecare Limited,Care Establishment,2 - Operations - Learning Disability,LDP E Cambs Locality - Care,Day and Domicillary Care Independent Sector
Cambridgeshire County Council,29-Jul-16,21177499-13737013,-2551.87,Westminster Homecare Limited,Care Establishment,2 - Operations - Learning Disability,LDP E Cambs Locality - Care,Day and Domicillary Care Independent Sector
Cambridgeshire County Council,29-Jul-16,21177501-13737015,-2551.87,Westminster Homecare Limited,Care Establishment,2 - Operations - Learning Disability,LDP E Cambs Locality - Care,Day and Domicillary Care Independent Sector
Cambridgeshire County Council,21-Jul-16,21124930-13686931,-2434.39,The Regard Partnership Ltd,Care Establishment,4 - Commissioning - Mental Health & Supporting People,E Cambs & Fenland Mental Health Team,Residential Independent Sector
Cambridgeshire County Council,21-Jul-16,21124931-13686932,-2434.39,The Regard Partnership Ltd,Care Establishment,4 - Commissioning - Mental Health & Supporting People,E Cambs & Fenland Mental Health Team,Residential Independent Sector
Cambridgeshire County Council,04-Jul-16,20968416-13596226,-2421.69,Imtech Aqua Maintenance Ltd,Company,LGSS Managed,Babbage House,Building Maintenance - Structural Maintenance - Unplanned
Cambridgeshire County Council,21-Jul-16,21127688-13686935,-2355.86,The Regard Partnership Ltd,Care Establishment,4 - Commissioning - Mental Health & Supporting People,E Cambs & Fenland Mental Health Team,Residential Independent Sector
Cambridgeshire County Council,29-Jul-16,21178372-13727661,-2310,Consultus Care And Nursing,Care Establishment,2 - Operations - Learning Disability,LDP Huntingdonshire Locality - Care,Respite Independent Sector
Cambridgeshire County Council,29-Jul-16,21178375-13727663,-2310,Consultus Care And Nursing,Care Establishment,2 - Operations - Learning Disability,LDP Huntingdonshire Locality - Care,Respite Independent Sector
Cambridgeshire County Council,29-Jul-16,21178380-13727635,-2310,Consultus Care And Nursing,Care Establishment,2 - Operations - Learning Disability,LDP Huntingdonshire Locality - Care,Respite Independent Sector
Cambridgeshire County Council,29-Jul-16,21178386-13727637,-2310,Consultus Care And Nursing,Care Establishment,2 - Operations - Learning Disability,LDP Huntingdonshire Locality - Care,Respite Independent Sector
Cambridgeshire County Council,29-Jul-16,21178387-13727638,-2310,Consultus Care And Nursing,Care Establishment,2 - Operations - Learning Disability,LDP Huntingdonshire Locality - Care,Respite Independent Sector
Cambridgeshire County Council,29-Jul-16,21178391-13727641,-2310,Consultus Care And Nursing,Care Establishment,2 - Operations - Learning Disability,LDP Huntingdonshire Locality - Care,Respite Independent Sector
Cambridgeshire County Council,29-Jul-16,21178392-13727642,-2310,Consultus Care And Nursing,Care Establishment,2 - Operations - Learning Disability,LDP Huntingdonshire Locality - Care,Respite Independent Sector
Cambridgeshire County Council,29-Jul-16,21178394-13727644,-2310,Consultus Care And Nursing,Care Establishment,2 - Operations - Learning Disability,LDP Huntingdonshire Locality - Care,Respite Independent Sector
Cambridgeshire County Council,29-Jul-16,21178395-13727645,-2310,Consultus Care And Nursing,Care Establishment,2 - Operations - Learning Disability,LDP Huntingdonshire Locality - Care,Respite Independent Sector
Cambridgeshire County Council,29-Jul-16,21178399-13727648,-2310,Consultus Care And Nursing,Care Establishment,2 - Operations - Learning Disability,LDP Huntingdonshire Locality - Care,Respite Independent Sector
Cambridgeshire County Council,29-Jul-16,21178400-13727649,-2310,Consultus Care And Nursing,Care Establishment,2 - Operations - Learning Disability,LDP Huntingdonshire Locality - Care,Respite Independent Sector
Cambridgeshire County Council,29-Jul-16,21178404-13727650,-2310,Consultus Care And Nursing,Care Establishment,2 - Operations - Learning Disability,LDP Huntingdonshire Locality - Care,Respite Independent Sector
Cambridgeshire County Council,29-Jul-16,21178408-13727653,-2310,Consultus Care And Nursing,Care Establishment,2 - Operations - Learning Disability,LDP Huntingdonshire Locality - Care,Respite Independent Sector
Cambridgeshire County Council,29-Jul-16,21178411-13727656,-2310,Consultus Care And Nursing,Care Establishment,2 - Operations - Learning Disability,LDP Huntingdonshire Locality - Care,Respite Independent Sector
Cambridgeshire County Council,29-Jul-16,21178414-13727659,-2310,Consultus Care And Nursing,Care Establishment,2 - Operations - Learning Disability,LDP Huntingdonshire Locality - Care,Respite Independent Sector
Cambridgeshire County Council,29-Jul-16,21177484-13736998,-2187.32,Westminster Homecare Limited,Care Establishment,2 - Operations - Learning Disability,LDP E Cambs Locality - Care,Day and Domicillary Care Independent Sector
Cambridgeshire County Council,08-Jul-16,21081897-13616883,-2049.3,Glennfield Healthcare,Care Establishment,4 - Commissioning - Mental Health & Supporting People,Hunts Mental Health Team,Nursing Independent Sector
Cambridgeshire County Council,29-Jul-16,21178405-13727651,-1980,Consultus Care And Nursing,Care Establishment,2 - Operations - Learning Disability,LDP Huntingdonshire Locality - Care,Respite Independent Sector
Cambridgeshire County Council,29-Jul-16,21178985-13736639,-1979.06,Westminster Homecare Limited,Care Establishment,2 - Operations - Learning Disability,LDP E Cambs Special Needs,Supported Living
Cambridgeshire County Council,29-Jul-16,21178987-13736641,-1979.06,Westminster Homecare Limited,Care Establishment,2 - Operations - Learning Disability,LDP E Cambs Special Needs,Supported Living
Cambridgeshire County Council,29-Jul-16,21178988-13736642,-1979.06,Westminster Homecare Limited,Care Establishment,2 - Operations - Learning Disability,LDP E Cambs Special Needs,Supported Living
Cambridgeshire County Council,29-Jul-16,21178989-13736643,-1979.06,Westminster Homecare Limited,Care Establishment,2 - Operations - Learning Disability,LDP E Cambs Special Needs,Supported Living
Cambridgeshire County Council,29-Jul-16,21183234-13736123,-1979.06,Westminster Homecare Limited,Care Establishment,2 - Operations - Learning Disability,LDP E Cambs Special Needs,Supported Living
Cambridgeshire County Council,29-Jul-16,21183236-13736125,-1979.06,Westminster Homecare Limited,Care Establishment,2 - Operations - Learning Disability,LDP E Cambs Special Needs,Supported Living
Cambridgeshire County Council,29-Jul-16,21183239-13736128,-1979.06,Westminster Homecare Limited,Care Establishment,2 - Operations - Learning Disability,LDP E Cambs Special Needs,Supported Living
Cambridgeshire County Council,29-Jul-16,21183242-13736131,-1979.06,Westminster Homecare Limited,Care Establishment,2 - Operations - Learning Disability,LDP E Cambs Special Needs,Supported Living
Cambridgeshire County Council,29-Jul-16,21183243-13736132,-1979.06,Westminster Homecare Limited,Care Establishment,2 - Operations - Learning Disability,LDP E Cambs Special Needs,Supported Living
Cambridgeshire County Council,29-Jul-16,21183244-13736133,-1979.06,Westminster Homecare Limited,Care Establishment,2 - Operations - Learning Disability,LDP E Cambs Special Needs,Supported Living
Cambridgeshire County Council,29-Jul-16,21183247-13736136,-1979.06,Westminster Homecare Limited,Care Establishment,2 - Operations - Learning Disability,LDP E Cambs Special Needs,Supported Living
Cambridgeshire County Council,29-Jul-16,21183249-13736138,-1979.06,Westminster Homecare Limited,Care Establishment,2 - Operations - Learning Disability,LDP E Cambs Special Needs,Supported Living
Cambridgeshire County Council,29-Jul-16,21183251-13736140,-1979.06,Westminster Homecare Limited,Care Establishment,2 - Operations - Learning Disability,LDP E Cambs Special Needs,Supported Living
Cambridgeshire County Council,29-Jul-16,21183252-13736141,-1979.06,Westminster Homecare Limited,Care Establishment,2 - Operations - Learning Disability,LDP E Cambs Special Needs,Supported Living
Cambridgeshire County Council,29-Jul-16,21183256-13736145,-1979.06,Westminster Homecare Limited,Care Establishment,2 - Operations - Learning Disability,LDP E Cambs Special Needs,Supported Living
Cambridgeshire County Council,29-Jul-16,21185879-13736843,-1911,Westminster Homecare Limited,Care Establishment,2 - Operations - Learning Disability,LDP E Cambs Locality - Care,Day and Domicillary Care Independent Sector
Cambridgeshire County Council,29-Jul-16,21185881-13736845,-1911,Westminster Homecare Limited,Care Establishment,2 - Operations - Learning Disability,LDP E Cambs Locality - Care,Day and Domicillary Care Independent Sector
Cambridgeshire County Council,29-Jul-16,21185884-13736848,-1911,Westminster Homecare Limited,Care Establishment,2 - Operations - Learning Disability,LDP E Cambs Locality - Care,Day and Domicillary Care Independent Sector
Cambridgeshire County Council,29-Jul-16,21185885-13736849,-1911,Westminster Homecare Limited,Care Establishment,2 - Operations - Learning Disability,LDP E Cambs Locality - Care,Day and Domicillary Care Independent Sector
Cambridgeshire County Council,29-Jul-16,21185887-13736851,-1911,Westminster Homecare Limited,Care Establishment,2 - Operations - Learning Disability,LDP E Cambs Locality - Care,Day and Domicillary Care Independent Sector
Cambridgeshire County Council,29-Jul-16,21185890-13736853,-1911,Westminster Homecare Limited,Care Establishment,2 - Operations - Learning Disability,LDP E Cambs Locality - Care,Day and Domicillary Care Independent Sector
Cambridgeshire County Council,29-Jul-16,21185892-13736855,-1911,Westminster Homecare Limited,Care Establishment,2 - Operations - Learning Disability,LDP E Cambs Locality - Care,Day and Domicillary Care Independent Sector
Cambridgeshire County Council,29-Jul-16,21185895-13736858,-1911,Westminster Homecare Limited,Care Establishment,2 - Operations - Learning Disability,LDP E Cambs Locality - Care,Day and Domicillary Care Independent Sector
Cambridgeshire County Council,29-Jul-16,21185896-13736859,-1911,Westminster Homecare Limited,Care Establishment,2 - Operations - Learning Disability,LDP E Cambs Locality - Care,Day and Domicillary Care Independent Sector
Cambridgeshire County Council,29-Jul-16,21185897-13736860,-1911,Westminster Homecare Limited,Care Establishment,2 - Operations - Learning Disability,LDP E Cambs Locality - Care,Day and Domicillary Care Independent Sector
Cambridgeshire County Council,29-Jul-16,21185898-13736861,-1911,Westminster Homecare Limited,Care Establishment,2 - Operations - Learning Disability,LDP E Cambs Locality - Care,Day and Domicillary Care Independent Sector
Cambridgeshire County Council,29-Jul-16,21185900-13736862,-1911,Westminster Homecare Limited,Care Establishment,2 - Operations - Learning Disability,LDP E Cambs Locality - Care,Day and Domicillary Care Independent Sector
Cambridgeshire County Council,29-Jul-16,21185901-13736863,-1911,Westminster Homecare Limited,Care Establishment,2 - Operations - Learning Disability,LDP E Cambs Locality - Care,Day and Domicillary Care Independent Sector
Cambridgeshire County Council,29-Jul-16,21185909-13736870,-1911,Westminster Homecare Limited,Care Establishment,2 - Operations - Learning Disability,LDP E Cambs Locality - Care,Day and Domicillary Care Independent Sector
Cambridgeshire County Council,29-Jul-16,21185911-13736871,-1911,Westminster Homecare Limited,Care Establishment,2 - Operations - Learning Disability,LDP E Cambs Locality - Care,Day and Domicillary Care Independent Sector
Cambridgeshire County Council,29-Jul-16,21178008-13736886,-1859.68,Westminster Homecare Limited,Care Establishment,2 - Operations - Learning Disability,LDP E Cambs Locality - Care,Day and Domicillary Care Independent Sector
Cambridgeshire County Council,29-Jul-16,21178041-13736902,-1859.68,Westminster Homecare Limited,Care Establishment,2 - Operations - Learning Disability,LDP E Cambs Locality - Care,Day and Domicillary Care Independent Sector
Cambridgeshire County Council,29-Jul-16,21178046-13736904,-1859.68,Westminster Homecare Limited,Care Establishment,2 - Operations - Learning Disability,LDP E Cambs Locality - Care,Day and Domicillary Care Independent Sector
Cambridgeshire County Council,29-Jul-16,21178053-13736798,-1859.68,Westminster Homecare Limited,Care Establishment,2 - Operations - Learning Disability,LDP E Cambs Locality - Care,Day and Domicillary Care Independent Sector
Cambridgeshire County Council,29-Jul-16,21178054-13736799,-1859.68,Westminster Homecare Limited,Care Establishment,2 - Operations - Learning Disability,LDP E Cambs Locality - Care,Day and Domicillary Care Independent Sector
Cambridgeshire County Council,29-Jul-16,21178062-13736804,-1859.68,Westminster Homecare Limited,Care Establishment,2 - Operations - Learning Disability,LDP E Cambs Locality - Care,Day and Domicillary Care Independent Sector
Cambridgeshire County Council,29-Jul-16,21178091-13736817,-1859.68,Westminster Homecare Limited,Care Establishment,2 - Operations - Learning Disability,LDP E Cambs Locality - Care,Day and Domicillary Care Independent Sector
Cambridgeshire County Council,29-Jul-16,21178097-13736820,-1859.68,Westminster Homecare Limited,Care Establishment,2 - Operations - Learning Disability,LDP E Cambs Locality - Care,Day and Domicillary Care Independent Sector
Cambridgeshire County Council,29-Jul-16,21178132-13736842,-1859.68,Westminster Homecare Limited,Care Establishment,2 - Operations - Learning Disability,LDP E Cambs Locality - Care,Day and Domicillary Care Independent Sector
Cambridgeshire County Council,29-Jul-16,21180608-13736341,-1859.68,Westminster Homecare Limited,Care Establishment,2 - Operations - Learning Disability,LDP E Cambs Locality - Care,Day and Domicillary Care Independent Sector
Cambridgeshire County Council,29-Jul-16,21180609-13736342,-1859.68,Westminster Homecare Limited,Care Establishment,2 - Operations - Learning Disability,LDP E Cambs Locality - Care,Day and Domicillary Care Independent Sector
Cambridgeshire County Council,29-Jul-16,21180611-13736344,-1859.68,Westminster Homecare Limited,Care Establishment,2 - Operations - Learning Disability,LDP E Cambs Locality - Care,Day and Domicillary Care Independent Sector
Cambridgeshire County Council,29-Jul-16,21180629-13736353,-1859.68,Westminster Homecare Limited,Care Establishment,2 - Operations - Learning Disability,LDP E Cambs Locality - Care,Day and Domicillary Care Independent Sector
Cambridgeshire County Council,29-Jul-16,21180638-13736360,-1859.68,Westminster Homecare Limited,Care Establishment,2 - Operations - Learning Disability,LDP E Cambs Locality - Care,Day and Domicillary Care Independent Sector
Cambridgeshire County Council,29-Jul-16,21180640-13736362,-1859.68,Westminster Homecare Limited,Care Establishment,2 - Operations - Learning Disability,LDP E Cambs Locality - Care,Day and Domicillary Care Independent Sector
Cambridgeshire County Council,29-Jul-16,21185442-13737051,-1811.57,Westminster Homecare Limited,Care Establishment,2 - Operations - Learning Disability,LDP E Cambs Locality - Care,Supported Living
Cambridgeshire County Council,29-Jul-16,21185443-13737052,-1811.57,Westminster Homecare Limited,Care Establishment,2 - Operations - Learning Disability,LDP E Cambs Locality - Care,Supported Living
Cambridgeshire County Council,29-Jul-16,21185445-13737054,-1811.57,Westminster Homecare Limited,Care Establishment,2 - Operations - Learning Disability,LDP E Cambs Locality - Care,Supported Living
Cambridgeshire County Council,29-Jul-16,21185446-13737055,-1811.57,Westminster Homecare Limited,Care Establishment,2 - Operations - Learning Disability,LDP E Cambs Locality - Care,Supported Living
Cambridgeshire County Council,29-Jul-16,21185449-13737058,-1811.57,Westminster Homecare Limited,Care Establishment,2 - Operations - Learning Disability,LDP E Cambs Locality - Care,Supported Living
Cambridgeshire County Council,29-Jul-16,21185451-13737060,-1811.57,Westminster Homecare Limited,Care Establishment,2 - Operations - Learning Disability,LDP E Cambs Locality - Care,Supported Living
Cambridgeshire County Council,29-Jul-16,21185454-13737063,-1811.57,Westminster Homecare Limited,Care Establishment,2 - Operations - Learning Disability,LDP E Cambs Locality - Care,Supported Living
Cambridgeshire County Council,29-Jul-16,21185455-13737064,-1811.57,Westminster Homecare Limited,Care Establishment,2 - Operations - Learning Disability,LDP E Cambs Locality - Care,Supported Living
Cambridgeshire County Council,29-Jul-16,21185456-13737065,-1811.57,Westminster Homecare Limited,Care Establishment,2 - Operations - Learning Disability,LDP E Cambs Locality - Care,Supported Living
Cambridgeshire County Council,29-Jul-16,21185459-13737068,-1811.57,Westminster Homecare Limited,Care Establishment,2 - Operations - Learning Disability,LDP E Cambs Locality - Care,Supported Living
Cambridgeshire County Council,29-Jul-16,21185462-13737071,-1811.57,Westminster Homecare Limited,Care Establishment,2 - Operations - Learning Disability,LDP E Cambs Locality - Care,Supported Living
Cambridgeshire County Council,29-Jul-16,21185463-13737072,-1811.57,Westminster Homecare Limited,Care Establishment,2 - Operations - Learning Disability,LDP E Cambs Locality - Care,Supported Living
Cambridgeshire County Council,29-Jul-16,21185465-13737074,-1811.57,Westminster Homecare Limited,Care Establishment,2 - Operations - Learning Disability,LDP E Cambs Locality - Care,Supported Living
Cambridgeshire County Council,29-Jul-16,21185466-13737075,-1811.57,Westminster Homecare Limited,Care Establishment,2 - Operations - Learning Disability,LDP E Cambs Locality - Care,Supported Living
Cambridgeshire County Council,29-Jul-16,21185470-13737079,-1811.57,Westminster Homecare Limited,Care Establishment,2 - Operations - Learning Disability,LDP E Cambs Locality - Care,Supported Living
Cambridgeshire County Council,06-Jul-16,20971518-13607022,-1732.07,Cambridgeshire Community Services Nhs Trust,Trust (Other),S&C,Procurement - TA Therapy in Special Schools,Other Hired Contract Services
Cambridgeshire County Council,29-Jul-16,21183246-13736135,-1694.64,Westminster Homecare Limited,Care Establishment,2 - Operations - Learning Disability,LDP E Cambs Special Needs,Supported Living
Cambridgeshire County Council,21-Jul-16,21137194-13689447,-1645,Conifer Lodge,Care Establishment,3 - Operations - Countywide Services,LDP Young Adults - Care,Residential Independent Sector
Cambridgeshire County Council,21-Jul-16,21137199-13689452,-1645,Conifer Lodge,Care Establishment,3 - Operations - Countywide Services,LDP Young Adults - Care,Residential Independent Sector
Cambridgeshire County Council,21-Jul-16,21137203-13689456,-1645,Conifer Lodge,Care Establishment,3 - Operations - Countywide Services,LDP Young Adults - Care,Residential Independent Sector
Cambridgeshire County Council,21-Jul-16,21137207-13689460,-1645,Conifer Lodge,Care Establishment,3 - Operations - Countywide Services,LDP Young Adults - Care,Residential Independent Sector
Cambridgeshire County Council,21-Jul-16,21137212-13689465,-1645,Conifer Lodge,Care Establishment,3 - Operations - Countywide Services,LDP Young Adults - Care,Residential Independent Sector
Cambridgeshire County Council,21-Jul-16,21137221-13689474,-1645,Conifer Lodge,Care Establishment,3 - Operations - Countywide Services,LDP Young Adults - Care,Residential Independent Sector
Cambridgeshire County Council,29-Jul-16,21185905-13736866,-1638,Westminster Homecare Limited,Care Establishment,2 - Operations - Learning Disability,LDP E Cambs Locality - Care,Day and Domicillary Care Independent Sector
Cambridgeshire County Council,29-Jul-16,21178123-13736836,-1611.19,Westminster Homecare Limited,Care Establishment,2 - Operations - Learning Disability,LDP E Cambs Locality - Care,Day and Domicillary Care Independent Sector
Cambridgeshire County Council,29-Jul-16,21185460-13737069,-1552.77,Westminster Homecare Limited,Care Establishment,2 - Operations - Learning Disability,LDP E Cambs Locality - Care,Supported Living
Cambridgeshire County Council,01-Jul-16,20545614-13587702,-1531,The Mary Hare Primary School,Education,S&C,Placements - Education,Independent School Placements
Cambridgeshire County Council,29-Jul-16,21177294-13737118,-1526.51,Westminster Homecare Limited,Care Establishment,2 - Operations - Learning Disability,LDP E Cambs Locality - Care,Day and Domicillary Care Independent Sector
Cambridgeshire County Council,29-Jul-16,21177305-13737129,-1526.51,Westminster Homecare Limited,Care Establishment,2 - Operations - Learning Disability,LDP E Cambs Locality - Care,Day and Domicillary Care Independent Sector
Cambridgeshire County Council,29-Jul-16,21177308-13737132,-1526.51,Westminster Homecare Limited,Care Establishment,2 - Operations - Learning Disability,LDP E Cambs Locality - Care,Day and Domicillary Care Independent Sector
Cambridgeshire County Council,29-Jul-16,21177313-13737137,-1526.51,Westminster Homecare Limited,Care Establishment,2 - Operations - Learning Disability,LDP E Cambs Locality - Care,Day and Domicillary Care Independent Sector
Cambridgeshire County Council,29-Jul-16,21177314-13737138,-1526.51,Westminster Homecare Limited,Care Establishment,2 - Operations - Learning Disability,LDP E Cambs Locality - Care,Day and Domicillary Care Independent Sector
Cambridgeshire County Council,29-Jul-16,21177315-13737139,-1526.51,Westminster Homecare Limited,Care Establishment,2 - Operations - Learning Disability,LDP E Cambs Locality - Care,Day and Domicillary Care Independent Sector
Cambridgeshire County Council,29-Jul-16,21177318-13737142,-1526.51,Westminster Homecare Limited,Care Establishment,2 - Operations - Learning Disability,LDP E Cambs Locality - Care,Day and Domicillary Care Independent Sector
Cambridgeshire County Council,29-Jul-16,21177319-13737143,-1526.51,Westminster Homecare Limited,Care Establishment,2 - Operations - Learning Disability,LDP E Cambs Locality - Care,Day and Domicillary Care Independent Sector
Cambridgeshire County Council,29-Jul-16,21177324-13737148,-1526.51,Westminster Homecare Limited,Care Establishment,2 - Operations - Learning Disability,LDP E Cambs Locality - Care,Day and Domicillary Care Independent Sector
Cambridgeshire County Council,29-Jul-16,21177325-13737149,-1526.51,Westminster Homecare Limited,Care Establishment,2 - Operations - Learning Disability,LDP E Cambs Locality - Care,Day and Domicillary Care Independent Sector
Cambridgeshire County Council,29-Jul-16,21177329-13737153,-1526.51,Westminster Homecare Limited,Care Establishment,2 - Operations - Learning Disability,LDP E Cambs Locality - Care,Day and Domicillary Care Independent Sector
Cambridgeshire County Council,29-Jul-16,21177331-13737155,-1526.51,Westminster Homecare Limited,Care Establishment,2 - Operations - Learning Disability,LDP E Cambs Locality - Care,Day and Domicillary Care Independent Sector
Cambridgeshire County Council,29-Jul-16,21177335-13737159,-1526.51,Westminster Homecare Limited,Care Establishment,2 - Operations - Learning Disability,LDP E Cambs Locality - Care,Day and Domicillary Care Independent Sector
Cambridgeshire County Council,29-Jul-16,21177343-13737167,-1526.51,Westminster Homecare Limited,Care Establishment,2 - Operations - Learning Disability,LDP E Cambs Locality - Care,Day and Domicillary Care Independent Sector
Cambridgeshire County Council,29-Jul-16,21177344-13737168,-1526.51,Westminster Homecare Limited,Care Establishment,2 - Operations - Learning Disability,LDP E Cambs Locality - Care,Day and Domicillary Care Independent Sector
Cambridgeshire County Council,21-Jul-16,21088749-13689787,-1410.69,Social Care Solutions Ltd,Care Establishment,2 - Operations - Learning Disability,LDP Fens - Special Needs,Day and Domicillary Care Independent Sector
Cambridgeshire County Council,21-Jul-16,20665932-13678745,-1327.45,Ccs Media Limited,Trade Supplier,2 - Commissioning - Older people Pool,Discharge Planning Team - South,Computer hardware
Cambridgeshire County Council,29-Jul-16,21177291-13737115,-1308.44,Westminster Homecare Limited,Care Establishment,2 - Operations - Learning Disability,LDP E Cambs Locality - Care,Day and Domicillary Care Independent Sector
Cambridgeshire County Council,29-Jul-16,21187780-13733406,-1179.85,Macintyre Care,Care Establishment,2 - Operations - Learning Disability,LDP Huntingdonshire Locality - Care,Residential Independent Sector
Cambridgeshire County Council,29-Jul-16,21187786-13733407,-1179.85,Macintyre Care,Care Establishment,2 - Operations - Learning Disability,LDP Huntingdonshire Locality - Care,Residential Independent Sector
Cambridgeshire County Council,29-Jul-16,21187801-13733411,-1179.85,Macintyre Care,Care Establishment,2 - Operations - Learning Disability,LDP Huntingdonshire Locality - Care,Residential Independent Sector
Cambridgeshire County Council,29-Jul-16,21187802-13733412,-1179.85,Macintyre Care,Care Establishment,2 - Operations - Learning Disability,LDP Huntingdonshire Locality - Care,Residential Independent Sector
Cambridgeshire County Council,29-Jul-16,21187803-13733413,-1179.85,Macintyre Care,Care Establishment,2 - Operations - Learning Disability,LDP Huntingdonshire Locality - Care,Residential Independent Sector
Cambridgeshire County Council,29-Jul-16,21187804-13733414,-1179.85,Macintyre Care,Care Establishment,2 - Operations - Learning Disability,LDP Huntingdonshire Locality - Care,Residential Independent Sector
Cambridgeshire County Council,29-Jul-16,21187815-13733417,-1179.85,Macintyre Care,Care Establishment,2 - Operations - Learning Disability,LDP Huntingdonshire Locality - Care,Residential Independent Sector
Cambridgeshire County Council,29-Jul-16,21187818-13733418,-1179.85,Macintyre Care,Care Establishment,2 - Operations - Learning Disability,LDP Huntingdonshire Locality - Care,Residential Independent Sector
Cambridgeshire County Council,29-Jul-16,21187820-13733420,-1179.85,Macintyre Care,Care Establishment,2 - Operations - Learning Disability,LDP Huntingdonshire Locality - Care,Residential Independent Sector
Cambridgeshire County Council,29-Jul-16,21187829-13733424,-1179.85,Macintyre Care,Care Establishment,2 - Operations - Learning Disability,LDP Huntingdonshire Locality - Care,Residential Independent Sector
Cambridgeshire County Council,29-Jul-16,21187830-13733425,-1179.85,Macintyre Care,Care Establishment,2 - Operations - Learning Disability,LDP Huntingdonshire Locality - Care,Residential Independent Sector
Cambridgeshire County Council,29-Jul-16,21187853-13733431,-1179.85,Macintyre Care,Care Establishment,2 - Operations - Learning Disability,LDP Huntingdonshire Locality - Care,Residential Independent Sector
Cambridgeshire County Council,29-Jul-16,21187869-13733437,-1179.85,Macintyre Care,Care Establishment,2 - Operations - Learning Disability,LDP Huntingdonshire Locality - Care,Residential Independent Sector
Cambridgeshire County Council,29-Jul-16,21187872-13733439,-1179.85,Macintyre Care,Care Establishment,2 - Operations - Learning Disability,LDP Huntingdonshire Locality - Care,Residential Independent Sector
Cambridgeshire County Council,29-Jul-16,21187873-13733440,-1179.85,Macintyre Care,Care Establishment,2 - Operations - Learning Disability,LDP Huntingdonshire Locality - Care,Residential Independent Sector
Cambridgeshire County Council,29-Jul-16,21187883-13733441,-1179.85,Macintyre Care,Care Establishment,2 - Operations - Learning Disability,LDP Huntingdonshire Locality - Care,Residential Independent Sector
Cambridgeshire County Council,29-Jul-16,21187898-13733401,-1179.85,Macintyre Care,Care Establishment,2 - Operations - Learning Disability,LDP Huntingdonshire Locality - Care,Residential Independent Sector
Cambridgeshire County Council,29-Jul-16,21187900-13733403,-1179.85,Macintyre Care,Care Establishment,2 - Operations - Learning Disability,LDP Huntingdonshire Locality - Care,Residential Independent Sector
Cambridgeshire County Council,21-Jul-16,21122596-13674989,-1153.48,Webaspx Limited,Trade Supplier,Assets & Commissioning,Waste PFI,PFI contract
Cambridgeshire County Council,29-Jul-16,21177604-13734258,-1144.75,17 Hamlett Close (Voyage),Care Establishment,2 - Operations - Learning Disability,LDP Huntingdonshire Locality - Care,Supported Living
Cambridgeshire County Council,29-Jul-16,21177608-13734262,-1144.75,17 Hamlett Close (Voyage),Care Establishment,2 - Operations - Learning Disability,LDP Huntingdonshire Locality - Care,Supported Living
Cambridgeshire County Council,29-Jul-16,21177609-13734263,-1144.75,17 Hamlett Close (Voyage),Care Establishment,2 - Operations - Learning Disability,LDP Huntingdonshire Locality - Care,Supported Living
Cambridgeshire County Council,29-Jul-16,21177611-13734265,-1144.75,17 Hamlett Close (Voyage),Care Establishment,2 - Operations - Learning Disability,LDP Huntingdonshire Locality - Care,Supported Living
Cambridgeshire County Council,29-Jul-16,21177614-13734268,-1144.75,17 Hamlett Close (Voyage),Care Establishment,2 - Operations - Learning Disability,LDP Huntingdonshire Locality - Care,Supported Living
Cambridgeshire County Council,29-Jul-16,21177615-13734269,-1144.75,17 Hamlett Close (Voyage),Care Establishment,2 - Operations - Learning Disability,LDP Huntingdonshire Locality - Care,Supported Living
Cambridgeshire County Council,29-Jul-16,21177619-13734273,-1144.75,17 Hamlett Close (Voyage),Care Establishment,2 - Operations - Learning Disability,LDP Huntingdonshire Locality - Care,Supported Living
Cambridgeshire County Council,29-Jul-16,21177629-13734283,-1144.75,17 Hamlett Close (Voyage),Care Establishment,2 - Operations - Learning Disability,LDP Huntingdonshire Locality - Care,Supported Living
Cambridgeshire County Council,29-Jul-16,21177631-13734285,-1144.75,17 Hamlett Close (Voyage),Care Establishment,2 - Operations - Learning Disability,LDP Huntingdonshire Locality - Care,Supported Living
Cambridgeshire County Council,29-Jul-16,21177634-13734288,-1144.75,17 Hamlett Close (Voyage),Care Establishment,2 - Operations - Learning Disability,LDP Huntingdonshire Locality - Care,Supported Living
Cambridgeshire County Council,29-Jul-16,21177641-13734295,-1144.75,17 Hamlett Close (Voyage),Care Establishment,2 - Operations - Learning Disability,LDP Huntingdonshire Locality - Care,Supported Living
Cambridgeshire County Council,29-Jul-16,21177648-13734302,-1144.75,17 Hamlett Close (Voyage),Care Establishment,2 - Operations - Learning Disability,LDP Huntingdonshire Locality - Care,Supported Living
Cambridgeshire County Council,29-Jul-16,21177661-13734251,-1144.75,17 Hamlett Close (Voyage),Care Establishment,2 - Operations - Learning Disability,LDP Huntingdonshire Locality - Care,Supported Living
Cambridgeshire County Council,29-Jul-16,21177664-13734254,-1144.75,17 Hamlett Close (Voyage),Care Establishment,2 - Operations - Learning Disability,LDP Huntingdonshire Locality - Care,Supported Living
Cambridgeshire County Council,29-Jul-16,21177665-13734255,-1144.75,17 Hamlett Close (Voyage),Care Establishment,2 - Operations - Learning Disability,LDP Huntingdonshire Locality - Care,Supported Living
Cambridgeshire County Council,29-Jul-16,21185288-13734312,-1104.92,17 Hamlett Close (Voyage),Care Establishment,2 - Operations - Learning Disability,LDP Huntingdonshire Locality - Care,Supported Living
Cambridgeshire County Council,29-Jul-16,21185290-13734314,-1104.92,17 Hamlett Close (Voyage),Care Establishment,2 - Operations - Learning Disability,LDP Huntingdonshire Locality - Care,Supported Living
Cambridgeshire County Council,29-Jul-16,21185293-13734317,-1104.92,17 Hamlett Close (Voyage),Care Establishment,2 - Operations - Learning Disability,LDP Huntingdonshire Locality - Care,Supported Living
Cambridgeshire County Council,29-Jul-16,21186190-13734092,-1104.92,17 Hamlett Close (Voyage),Care Establishment,2 - Operations - Learning Disability,LDP Huntingdonshire Locality - Care,Supported Living
Cambridgeshire County Council,29-Jul-16,21186192-13734094,-1104.92,17 Hamlett Close (Voyage),Care Establishment,2 - Operations - Learning Disability,LDP Huntingdonshire Locality - Care,Supported Living
Cambridgeshire County Council,29-Jul-16,21186195-13734097,-1104.92,17 Hamlett Close (Voyage),Care Establishment,2 - Operations - Learning Disability,LDP Huntingdonshire Locality - Care,Supported Living
Cambridgeshire County Council,29-Jul-16,21186196-13734098,-1104.92,17 Hamlett Close (Voyage),Care Establishment,2 - Operations - Learning Disability,LDP Huntingdonshire Locality - Care,Supported Living
Cambridgeshire County Council,29-Jul-16,21186198-13734100,-1104.92,17 Hamlett Close (Voyage),Care Establishment,2 - Operations - Learning Disability,LDP Huntingdonshire Locality - Care,Supported Living
Cambridgeshire County Council,29-Jul-16,21186203-13734105,-1104.92,17 Hamlett Close (Voyage),Care Establishment,2 - Operations - Learning Disability,LDP Huntingdonshire Locality - Care,Supported Living
Cambridgeshire County Council,29-Jul-16,21186205-13734107,-1104.92,17 Hamlett Close (Voyage),Care Establishment,2 - Operations - Learning Disability,LDP Huntingdonshire Locality - Care,Supported Living
Cambridgeshire County Council,29-Jul-16,21186209-13734111,-1104.92,17 Hamlett Close (Voyage),Care Establishment,2 - Operations - Learning Disability,LDP Huntingdonshire Locality - Care,Supported Living
Cambridgeshire County Council,29-Jul-16,21186221-13734122,-1104.92,17 Hamlett Close (Voyage),Care Establishment,2 - Operations - Learning Disability,LDP Huntingdonshire Locality - Care,Supported Living
Cambridgeshire County Council,29-Jul-16,21186222-13734123,-1104.92,17 Hamlett Close (Voyage),Care Establishment,2 - Operations - Learning Disability,LDP Huntingdonshire Locality - Care,Supported Living
Cambridgeshire County Council,29-Jul-16,21186224-13734125,-1104.92,17 Hamlett Close (Voyage),Care Establishment,2 - Operations - Learning Disability,LDP Huntingdonshire Locality - Care,Supported Living
Cambridgeshire County Council,29-Jul-16,21186231-13734132,-1104.92,17 Hamlett Close (Voyage),Care Establishment,2 - Operations - Learning Disability,LDP Huntingdonshire Locality - Care,Supported Living
Cambridgeshire County Council,29-Jul-16,21176758-13734319,-1104.9,17 Hamlett Close (Voyage),Care Establishment,2 - Operations - Learning Disability,LDP Huntingdonshire Locality - Care,Supported Living
Cambridgeshire County Council,29-Jul-16,21176759-13734320,-1104.9,17 Hamlett Close (Voyage),Care Establishment,2 - Operations - Learning Disability,LDP Huntingdonshire Locality - Care,Supported Living
Cambridgeshire County Council,29-Jul-16,21176761-13734322,-1104.9,17 Hamlett Close (Voyage),Care Establishment,2 - Operations - Learning Disability,LDP Huntingdonshire Locality - Care,Supported Living
Cambridgeshire County Council,29-Jul-16,21176763-13734324,-1104.9,17 Hamlett Close (Voyage),Care Establishment,2 - Operations - Learning Disability,LDP Huntingdonshire Locality - Care,Supported Living
Cambridgeshire County Council,29-Jul-16,21176764-13734325,-1104.9,17 Hamlett Close (Voyage),Care Establishment,2 - Operations - Learning Disability,LDP Huntingdonshire Locality - Care,Supported Living
Cambridgeshire County Council,29-Jul-16,21177770-13734201,-1104.9,17 Hamlett Close (Voyage),Care Establishment,2 - Operations - Learning Disability,LDP Huntingdonshire Locality - Care,Supported Living
Cambridgeshire County Council,29-Jul-16,21177774-13734205,-1104.9,17 Hamlett Close (Voyage),Care Establishment,2 - Operations - Learning Disability,LDP Huntingdonshire Locality - Care,Supported Living
Cambridgeshire County Council,29-Jul-16,21177775-13734206,-1104.9,17 Hamlett Close (Voyage),Care Establishment,2 - Operations - Learning Disability,LDP Huntingdonshire Locality - Care,Supported Living
Cambridgeshire County Council,29-Jul-16,21177777-13734208,-1104.9,17 Hamlett Close (Voyage),Care Establishment,2 - Operations - Learning Disability,LDP Huntingdonshire Locality - Care,Supported Living
Cambridgeshire County Council,29-Jul-16,21177787-13734218,-1104.9,17 Hamlett Close (Voyage),Care Establishment,2 - Operations - Learning Disability,LDP Huntingdonshire Locality - Care,Supported Living
Cambridgeshire County Council,29-Jul-16,21177797-13734228,-1104.9,17 Hamlett Close (Voyage),Care Establishment,2 - Operations - Learning Disability,LDP Huntingdonshire Locality - Care,Supported Living
Cambridgeshire County Council,29-Jul-16,21177799-13734230,-1104.9,17 Hamlett Close (Voyage),Care Establishment,2 - Operations - Learning Disability,LDP Huntingdonshire Locality - Care,Supported Living
Cambridgeshire County Council,29-Jul-16,21177804-13734235,-1104.9,17 Hamlett Close (Voyage),Care Establishment,2 - Operations - Learning Disability,LDP Huntingdonshire Locality - Care,Supported Living
Cambridgeshire County Council,29-Jul-16,21177806-13734237,-1104.9,17 Hamlett Close (Voyage),Care Establishment,2 - Operations - Learning Disability,LDP Huntingdonshire Locality - Care,Supported Living
Cambridgeshire County Council,29-Jul-16,21179763-13734074,-1104.9,17 Hamlett Close (Voyage),Care Establishment,2 - Operations - Learning Disability,LDP Huntingdonshire Locality - Care,Supported Living
Cambridgeshire County Council,29-Jul-16,21187800-13733410,-1011.3,Macintyre Care,Care Establishment,2 - Operations - Learning Disability,LDP Huntingdonshire Locality - Care,Residential Independent Sector
Cambridgeshire County Council,01-Jul-16,21000862-13587067,-1000,Redacted Personal Data,Individual,3 - Operations - Countywide Services,Countywide PD Service - Care,SDS - Care and support Services
Cambridgeshire County Council,01-Jul-16,21000868-13587071,-1000,Redacted Personal Data,Individual,3 - Operations - Countywide Services,Countywide PD Service - Care,SDS - Care and support Services
Cambridgeshire County Council,29-Jul-16,21177644-13734298,-981.21,17 Hamlett Close (Voyage),Care Establishment,2 - Operations - Learning Disability,LDP Huntingdonshire Locality - Care,Supported Living
Cambridgeshire County Council,14-Jul-16,20911837-13644836,-975.82,Granta Housing -16/18 Hawthorn Way,Care Establishment,2 - Operations - Learning Disability,LDP E Cambs Locality - Care,Residential Independent Sector
Cambridgeshire County Council,14-Jul-16,20911838-13644837,-975.82,Granta Housing -16/18 Hawthorn Way,Care Establishment,2 - Operations - Learning Disability,LDP E Cambs Locality - Care,Residential Independent Sector
Cambridgeshire County Council,14-Jul-16,20911839-13644838,-975.82,Granta Housing -16/18 Hawthorn Way,Care Establishment,2 - Operations - Learning Disability,LDP E Cambs Locality - Care,Residential Independent Sector
Cambridgeshire County Council,14-Jul-16,20911840-13644839,-975.82,Granta Housing -16/18 Hawthorn Way,Care Establishment,2 - Operations - Learning Disability,LDP E Cambs Locality - Care,Residential Independent Sector
Cambridgeshire County Council,14-Jul-16,20911842-13644841,-975.82,Granta Housing -16/18 Hawthorn Way,Care Establishment,2 - Operations - Learning Disability,LDP E Cambs Locality - Care,Residential Independent Sector
Cambridgeshire County Council,15-Jul-16,20909768-13654729,-968,Huntingdonshire District Council,Other Public Bodies,LGSS Managed,Cromwell Museum,Business rates
Cambridgeshire County Council,21-Jul-16,21115119-13689613,-950,Woodlands Care Centre,Care Establishment,2 - Commissioning - Older people Pool,Older People Mental Health City & South,Nursing Independent Sector
Cambridgeshire County Council,21-Jul-16,21115120-13689614,-950,Woodlands Care Centre,Care Establishment,2 - Commissioning - Older people Pool,Older People Mental Health City & South,Nursing Independent Sector
Cambridgeshire County Council,21-Jul-16,21115122-13689616,-950,Woodlands Care Centre,Care Establishment,2 - Commissioning - Older people Pool,Older People Mental Health City & South,Nursing Independent Sector
Cambridgeshire County Council,29-Jul-16,21186227-13734128,-947.07,17 Hamlett Close (Voyage),Care Establishment,2 - Operations - Learning Disability,LDP Huntingdonshire Locality - Care,Supported Living
Cambridgeshire County Council,29-Jul-16,21176760-13734321,-947.06,17 Hamlett Close (Voyage),Care Establishment,2 - Operations - Learning Disability,LDP Huntingdonshire Locality - Care,Supported Living
Cambridgeshire County Council,29-Jul-16,21186094-13734158,-945.5,17 Hamlett Close (Voyage),Care Establishment,2 - Operations - Learning Disability,LDP Huntingdonshire Locality - Care,Supported Living
Cambridgeshire County Council,29-Jul-16,21186095-13734159,-945.5,17 Hamlett Close (Voyage),Care Establishment,2 - Operations - Learning Disability,LDP Huntingdonshire Locality - Care,Supported Living
Cambridgeshire County Council,29-Jul-16,21186096-13734160,-945.5,17 Hamlett Close (Voyage),Care Establishment,2 - Operations - Learning Disability,LDP Huntingdonshire Locality - Care,Supported Living
Cambridgeshire County Council,29-Jul-16,21186102-13734166,-945.5,17 Hamlett Close (Voyage),Care Establishment,2 - Operations - Learning Disability,LDP Huntingdonshire Locality - Care,Supported Living
Cambridgeshire County Council,29-Jul-16,21186106-13734170,-945.5,17 Hamlett Close (Voyage),Care Establishment,2 - Operations - Learning Disability,LDP Huntingdonshire Locality - Care,Supported Living
Cambridgeshire County Council,29-Jul-16,21186114-13734178,-945.5,17 Hamlett Close (Voyage),Care Establishment,2 - Operations - Learning Disability,LDP Huntingdonshire Locality - Care,Supported Living
Cambridgeshire County Council,29-Jul-16,21186116-13734180,-945.5,17 Hamlett Close (Voyage),Care Establishment,2 - Operations - Learning Disability,LDP Huntingdonshire Locality - Care,Supported Living
Cambridgeshire County Council,29-Jul-16,21186117-13734181,-945.5,17 Hamlett Close (Voyage),Care Establishment,2 - Operations - Learning Disability,LDP Huntingdonshire Locality - Care,Supported Living
Cambridgeshire County Council,29-Jul-16,21186123-13734187,-945.5,17 Hamlett Close (Voyage),Care Establishment,2 - Operations - Learning Disability,LDP Huntingdonshire Locality - Care,Supported Living
Cambridgeshire County Council,29-Jul-16,21186124-13734188,-945.5,17 Hamlett Close (Voyage),Care Establishment,2 - Operations - Learning Disability,LDP Huntingdonshire Locality - Care,Supported Living
Cambridgeshire County Council,29-Jul-16,21186125-13734189,-945.5,17 Hamlett Close (Voyage),Care Establishment,2 - Operations - Learning Disability,LDP Huntingdonshire Locality - Care,Supported Living
Cambridgeshire County Council,29-Jul-16,21186131-13734195,-945.5,17 Hamlett Close (Voyage),Care Establishment,2 - Operations - Learning Disability,LDP Huntingdonshire Locality - Care,Supported Living
Cambridgeshire County Council,29-Jul-16,21186141-13734141,-945.5,17 Hamlett Close (Voyage),Care Establishment,2 - Operations - Learning Disability,LDP Huntingdonshire Locality - Care,Supported Living
Cambridgeshire County Council,29-Jul-16,21186142-13734142,-945.5,17 Hamlett Close (Voyage),Care Establishment,2 - Operations - Learning Disability,LDP Huntingdonshire Locality - Care,Supported Living
Cambridgeshire County Council,29-Jul-16,21186145-13734145,-945.5,17 Hamlett Close (Voyage),Care Establishment,2 - Operations - Learning Disability,LDP Huntingdonshire Locality - Care,Supported Living
Cambridgeshire County Council,01-Jul-16,20911175-13583412,-926.11,Making Space#1,Care Establishment,3 - Operations - Countywide Services,Countywide PD Service - Care,Nursing Independent Sector
Cambridgeshire County Council,01-Jul-16,20911177-13583414,-926.11,Making Space#1,Care Establishment,3 - Operations - Countywide Services,Countywide PD Service - Care,Nursing Independent Sector
Cambridgeshire County Council,01-Jul-16,20911180-13583417,-926.11,Making Space#1,Care Establishment,3 - Operations - Countywide Services,Countywide PD Service - Care,Nursing Independent Sector
Cambridgeshire County Council,01-Jul-16,20911182-13583419,-926.11,Making Space#1,Care Establishment,3 - Operations - Countywide Services,Countywide PD Service - Care,Nursing Independent Sector
Cambridgeshire County Council,01-Jul-16,20911185-13583422,-926.11,Making Space#1,Care Establishment,3 - Operations - Countywide Services,Countywide PD Service - Care,Nursing Independent Sector
Cambridgeshire County Council,01-Jul-16,20911186-13583423,-926.11,Making Space#1,Care Establishment,3 - Operations - Countywide Services,Countywide PD Service - Care,Nursing Independent Sector
Cambridgeshire County Council,01-Jul-16,20911187-13583424,-926.11,Making Space#1,Care Establishment,3 - Operations - Countywide Services,Countywide PD Service - Care,Nursing Independent Sector
Cambridgeshire County Council,01-Jul-16,20911188-13583425,-926.11,Making Space#1,Care Establishment,3 - Operations - Countywide Services,Countywide PD Service - Care,Nursing Independent Sector
Cambridgeshire County Council,01-Jul-16,20911189-13583426,-926.11,Making Space#1,Care Establishment,3 - Operations - Countywide Services,Countywide PD Service - Care,Nursing Independent Sector
Cambridgeshire County Council,01-Jul-16,20911191-13583428,-926.11,Making Space#1,Care Establishment,3 - Operations - Countywide Services,Countywide PD Service - Care,Nursing Independent Sector
Cambridgeshire County Council,01-Jul-16,20911193-13583430,-926.11,Making Space#1,Care Establishment,3 - Operations - Countywide Services,Countywide PD Service - Care,Nursing Independent Sector
Cambridgeshire County Council,01-Jul-16,20911194-13583431,-926.11,Making Space#1,Care Establishment,3 - Operations - Countywide Services,Countywide PD Service - Care,Nursing Independent Sector
Cambridgeshire County Council,01-Jul-16,20911196-13583433,-926.11,Making Space#1,Care Establishment,3 - Operations - Countywide Services,Countywide PD Service - Care,Nursing Independent Sector
Cambridgeshire County Council,01-Jul-16,20911197-13583434,-926.11,Making Space#1,Care Establishment,3 - Operations - Countywide Services,Countywide PD Service - Care,Nursing Independent Sector
Cambridgeshire County Council,01-Jul-16,20911201-13583438,-926.11,Making Space#1,Care Establishment,3 - Operations - Countywide Services,Countywide PD Service - Care,Nursing Independent Sector
Cambridgeshire County Council,01-Jul-16,20911202-13583439,-926.11,Making Space#1,Care Establishment,3 - Operations - Countywide Services,Countywide PD Service - Care,Nursing Independent Sector
Cambridgeshire County Council,01-Jul-16,20911207-13583444,-926.11,Making Space#1,Care Establishment,3 - Operations - Countywide Services,Countywide PD Service - Care,Nursing Independent Sector
Cambridgeshire County Council,01-Jul-16,20911208-13583445,-926.11,Making Space#1,Care Establishment,3 - Operations - Countywide Services,Countywide PD Service - Care,Nursing Independent Sector
Cambridgeshire County Council,01-Jul-16,20911210-13583447,-926.11,Making Space#1,Care Establishment,3 - Operations - Countywide Services,Countywide PD Service - Care,Nursing Independent Sector
Cambridgeshire County Council,01-Jul-16,20911214-13583451,-926.11,Making Space#1,Care Establishment,3 - Operations - Countywide Services,Countywide PD Service - Care,Nursing Independent Sector
Cambridgeshire County Council,01-Jul-16,20911217-13583454,-926.11,Making Space#1,Care Establishment,3 - Operations - Countywide Services,Countywide PD Service - Care,Nursing Independent Sector
Cambridgeshire County Council,01-Jul-16,20911218-13583455,-926.11,Making Space#1,Care Establishment,3 - Operations - Countywide Services,Countywide PD Service - Care,Nursing Independent Sector
Cambridgeshire County Council,01-Jul-16,20911219-13583456,-926.11,Making Space#1,Care Establishment,3 - Operations - Countywide Services,Countywide PD Service - Care,Nursing Independent Sector
Cambridgeshire County Council,01-Jul-16,20911220-13583457,-926.11,Making Space#1,Care Establishment,3 - Operations - Countywide Services,Countywide PD Service - Care,Nursing Independent Sector
Cambridgeshire County Council,01-Jul-16,20911221-13583458,-926.11,Making Space#1,Care Establishment,3 - Operations - Countywide Services,Countywide PD Service - Care,Nursing Independent Sector
Cambridgeshire County Council,01-Jul-16,20911225-13583462,-926.11,Making Space#1,Care Establishment,3 - Operations - Countywide Services,Countywide PD Service - Care,Nursing Independent Sector
Cambridgeshire County Council,01-Jul-16,20911227-13583464,-926.11,Making Space#1,Care Establishment,3 - Operations - Countywide Services,Countywide PD Service - Care,Nursing Independent Sector
Cambridgeshire County Council,01-Jul-16,20911228-13583465,-926.11,Making Space#1,Care Establishment,3 - Operations - Countywide Services,Countywide PD Service - Care,Nursing Independent Sector
Cambridgeshire County Council,01-Jul-16,20911232-13583469,-926.11,Making Space#1,Care Establishment,3 - Operations - Countywide Services,Countywide PD Service - Care,Nursing Independent Sector
Cambridgeshire County Council,01-Jul-16,20911234-13583471,-926.11,Making Space#1,Care Establishment,3 - Operations - Countywide Services,Countywide PD Service - Care,Nursing Independent Sector
Cambridgeshire County Council,01-Jul-16,20911236-13583473,-926.11,Making Space#1,Care Establishment,3 - Operations - Countywide Services,Countywide PD Service - Care,Nursing Independent Sector
Cambridgeshire County Council,01-Jul-16,20911238-13583475,-926.11,Making Space#1,Care Establishment,3 - Operations - Countywide Services,Countywide PD Service - Care,Nursing Independent Sector
Cambridgeshire County Council,01-Jul-16,20944709-13583349,-926.11,Making Space#1,Care Establishment,3 - Operations - Countywide Services,Countywide PD Service - Care,Nursing Independent Sector
Cambridgeshire County Council,01-Jul-16,20944710-13583350,-926.11,Making Space#1,Care Establishment,3 - Operations - Countywide Services,Countywide PD Service - Care,Nursing Independent Sector
Cambridgeshire County Council,01-Jul-16,20944712-13583352,-926.11,Making Space#1,Care Establishment,3 - Operations - Countywide Services,Countywide PD Service - Care,Nursing Independent Sector
Cambridgeshire County Council,01-Jul-16,20944713-13583353,-926.11,Making Space#1,Care Establishment,3 - Operations - Countywide Services,Countywide PD Service - Care,Nursing Independent Sector
Cambridgeshire County Council,01-Jul-16,20944719-13583359,-926.11,Making Space#1,Care Establishment,3 - Operations - Countywide Services,Countywide PD Service - Care,Nursing Independent Sector
Cambridgeshire County Council,01-Jul-16,20944721-13583361,-926.11,Making Space#1,Care Establishment,3 - Operations - Countywide Services,Countywide PD Service - Care,Nursing Independent Sector
Cambridgeshire County Council,01-Jul-16,20944724-13583364,-926.11,Making Space#1,Care Establishment,3 - Operations - Countywide Services,Countywide PD Service - Care,Nursing Independent Sector
Cambridgeshire County Council,01-Jul-16,20944725-13583365,-926.11,Making Space#1,Care Establishment,3 - Operations - Countywide Services,Countywide PD Service - Care,Nursing Independent Sector
Cambridgeshire County Council,01-Jul-16,20944726-13583366,-926.11,Making Space#1,Care Establishment,3 - Operations - Countywide Services,Countywide PD Service - Care,Nursing Independent Sector
Cambridgeshire County Council,01-Jul-16,20944730-13583370,-926.11,Making Space#1,Care Establishment,3 - Operations - Countywide Services,Countywide PD Service - Care,Nursing Independent Sector
Cambridgeshire County Council,01-Jul-16,20944731-13583371,-926.11,Making Space#1,Care Establishment,3 - Operations - Countywide Services,Countywide PD Service - Care,Nursing Independent Sector
Cambridgeshire County Council,01-Jul-16,20944732-13583372,-926.11,Making Space#1,Care Establishment,3 - Operations - Countywide Services,Countywide PD Service - Care,Nursing Independent Sector
Cambridgeshire County Council,01-Jul-16,20944733-13583373,-926.11,Making Space#1,Care Establishment,3 - Operations - Countywide Services,Countywide PD Service - Care,Nursing Independent Sector
Cambridgeshire County Council,01-Jul-16,20944734-13583374,-926.11,Making Space#1,Care Establishment,3 - Operations - Countywide Services,Countywide PD Service - Care,Nursing Independent Sector
Cambridgeshire County Council,01-Jul-16,20944737-13583377,-926.11,Making Space#1,Care Establishment,3 - Operations - Countywide Services,Countywide PD Service - Care,Nursing Independent Sector
Cambridgeshire County Council,01-Jul-16,20944741-13583381,-926.11,Making Space#1,Care Establishment,3 - Operations - Countywide Services,Countywide PD Service - Care,Nursing Independent Sector
Cambridgeshire County Council,01-Jul-16,20944743-13583383,-926.11,Making Space#1,Care Establishment,3 - Operations - Countywide Services,Countywide PD Service - Care,Nursing Independent Sector
Cambridgeshire County Council,01-Jul-16,20944744-13583384,-926.11,Making Space#1,Care Establishment,3 - Operations - Countywide Services,Countywide PD Service - Care,Nursing Independent Sector
Cambridgeshire County Council,01-Jul-16,20944745-13583385,-926.11,Making Space#1,Care Establishment,3 - Operations - Countywide Services,Countywide PD Service - Care,Nursing Independent Sector
Cambridgeshire County Council,01-Jul-16,20944746-13583386,-926.11,Making Space#1,Care Establishment,3 - Operations - Countywide Services,Countywide PD Service - Care,Nursing Independent Sector
Cambridgeshire County Council,01-Jul-16,20944748-13583388,-926.11,Making Space#1,Care Establishment,3 - Operations - Countywide Services,Countywide PD Service - Care,Nursing Independent Sector
Cambridgeshire County Council,01-Jul-16,20944751-13583391,-926.11,Making Space#1,Care Establishment,3 - Operations - Countywide Services,Countywide PD Service - Care,Nursing Independent Sector
Cambridgeshire County Council,01-Jul-16,20944754-13583394,-926.11,Making Space#1,Care Establishment,3 - Operations - Countywide Services,Countywide PD Service - Care,Nursing Independent Sector
Cambridgeshire County Council,01-Jul-16,20944756-13583396,-926.11,Making Space#1,Care Establishment,3 - Operations - Countywide Services,Countywide PD Service - Care,Nursing Independent Sector
Cambridgeshire County Council,01-Jul-16,20944758-13583398,-926.11,Making Space#1,Care Establishment,3 - Operations - Countywide Services,Countywide PD Service - Care,Nursing Independent Sector
Cambridgeshire County Council,01-Jul-16,20944764-13583403,-926.11,Making Space#1,Care Establishment,3 - Operations - Countywide Services,Countywide PD Service - Care,Nursing Independent Sector
Cambridgeshire County Council,01-Jul-16,20944765-13583404,-926.11,Making Space#1,Care Establishment,3 - Operations - Countywide Services,Countywide PD Service - Care,Nursing Independent Sector
Cambridgeshire County Council,01-Jul-16,20944766-13583405,-926.11,Making Space#1,Care Establishment,3 - Operations - Countywide Services,Countywide PD Service - Care,Nursing Independent Sector
Cambridgeshire County Council,01-Jul-16,20944768-13583407,-926.11,Making Space#1,Care Establishment,3 - Operations - Countywide Services,Countywide PD Service - Care,Nursing Independent Sector
Cambridgeshire County Council,01-Jul-16,20944769-13583408,-926.11,Making Space#1,Care Establishment,3 - Operations - Countywide Services,Countywide PD Service - Care,Nursing Independent Sector
Cambridgeshire County Council,01-Jul-16,20944771-13583344,-926.11,Making Space#1,Care Establishment,3 - Operations - Countywide Services,Countywide PD Service - Care,Nursing Independent Sector
Cambridgeshire County Council,01-Jul-16,20944772-13583345,-926.11,Making Space#1,Care Establishment,3 - Operations - Countywide Services,Countywide PD Service - Care,Nursing Independent Sector
Cambridgeshire County Council,01-Jul-16,21001256-13583274,-926.11,Making Space#1,Care Establishment,3 - Operations - Countywide Services,Countywide PD Service - Care,Nursing Independent Sector
Cambridgeshire County Council,01-Jul-16,21001257-13583275,-926.11,Making Space#1,Care Establishment,3 - Operations - Countywide Services,Countywide PD Service - Care,Nursing Independent Sector
Cambridgeshire County Council,01-Jul-16,21001259-13583277,-926.11,Making Space#1,Care Establishment,3 - Operations - Countywide Services,Countywide PD Service - Care,Nursing Independent Sector
Cambridgeshire County Council,01-Jul-16,21001260-13583278,-926.11,Making Space#1,Care Establishment,3 - Operations - Countywide Services,Countywide PD Service - Care,Nursing Independent Sector
Cambridgeshire County Council,01-Jul-16,21001263-13583281,-926.11,Making Space#1,Care Establishment,3 - Operations - Countywide Services,Countywide PD Service - Care,Nursing Independent Sector
Cambridgeshire County Council,01-Jul-16,21001265-13583283,-926.11,Making Space#1,Care Establishment,3 - Operations - Countywide Services,Countywide PD Service - Care,Nursing Independent Sector
Cambridgeshire County Council,01-Jul-16,21001269-13583287,-926.11,Making Space#1,Care Establishment,3 - Operations - Countywide Services,Countywide PD Service - Care,Nursing Independent Sector
Cambridgeshire County Council,01-Jul-16,21001272-13583290,-926.11,Making Space#1,Care Establishment,3 - Operations - Countywide Services,Countywide PD Service - Care,Nursing Independent Sector
Cambridgeshire County Council,01-Jul-16,21001273-13583291,-926.11,Making Space#1,Care Establishment,3 - Operations - Countywide Services,Countywide PD Service - Care,Nursing Independent Sector
Cambridgeshire County Council,01-Jul-16,21001274-13583292,-926.11,Making Space#1,Care Establishment,3 - Operations - Countywide Services,Countywide PD Service - Care,Nursing Independent Sector
Cambridgeshire County Council,01-Jul-16,21001277-13583295,-926.11,Making Space#1,Care Establishment,3 - Operations - Countywide Services,Countywide PD Service - Care,Nursing Independent Sector
Cambridgeshire County Council,01-Jul-16,21001280-13583298,-926.11,Making Space#1,Care Establishment,3 - Operations - Countywide Services,Countywide PD Service - Care,Nursing Independent Sector
Cambridgeshire County Council,01-Jul-16,21001282-13583300,-926.11,Making Space#1,Care Establishment,3 - Operations - Countywide Services,Countywide PD Service - Care,Nursing Independent Sector
Cambridgeshire County Council,01-Jul-16,21001283-13583301,-926.11,Making Space#1,Care Establishment,3 - Operations - Countywide Services,Countywide PD Service - Care,Nursing Independent Sector
Cambridgeshire County Council,01-Jul-16,21001284-13583302,-926.11,Making Space#1,Care Establishment,3 - Operations - Countywide Services,Countywide PD Service - Care,Nursing Independent Sector
Cambridgeshire County Council,01-Jul-16,21001285-13583303,-926.11,Making Space#1,Care Establishment,3 - Operations - Countywide Services,Countywide PD Service - Care,Nursing Independent Sector
Cambridgeshire County Council,01-Jul-16,21001290-13583308,-926.11,Making Space#1,Care Establishment,3 - Operations - Countywide Services,Countywide PD Service - Care,Nursing Independent Sector
Cambridgeshire County Council,01-Jul-16,21001294-13583312,-926.11,Making Space#1,Care Establishment,3 - Operations - Countywide Services,Countywide PD Service - Care,Nursing Independent Sector
Cambridgeshire County Council,01-Jul-16,21001299-13583317,-926.11,Making Space#1,Care Establishment,3 - Operations - Countywide Services,Countywide PD Service - Care,Nursing Independent Sector
Cambridgeshire County Council,01-Jul-16,21001301-13583319,-926.11,Making Space#1,Care Establishment,3 - Operations - Countywide Services,Countywide PD Service - Care,Nursing Independent Sector
Cambridgeshire County Council,01-Jul-16,21001303-13583321,-926.11,Making Space#1,Care Establishment,3 - Operations - Countywide Services,Countywide PD Service - Care,Nursing Independent Sector
Cambridgeshire County Council,01-Jul-16,21001306-13583324,-926.11,Making Space#1,Care Establishment,3 - Operations - Countywide Services,Countywide PD Service - Care,Nursing Independent Sector
Cambridgeshire County Council,01-Jul-16,21001309-13583327,-926.11,Making Space#1,Care Establishment,3 - Operations - Countywide Services,Countywide PD Service - Care,Nursing Independent Sector
Cambridgeshire County Council,01-Jul-16,21001310-13583328,-926.11,Making Space#1,Care Establishment,3 - Operations - Countywide Services,Countywide PD Service - Care,Nursing Independent Sector
Cambridgeshire County Council,01-Jul-16,21001312-13583330,-926.11,Making Space#1,Care Establishment,3 - Operations - Countywide Services,Countywide PD Service - Care,Nursing Independent Sector
Cambridgeshire County Council,01-Jul-16,21001313-13583331,-926.11,Making Space#1,Care Establishment,3 - Operations - Countywide Services,Countywide PD Service - Care,Nursing Independent Sector
Cambridgeshire County Council,01-Jul-16,21001314-13583332,-926.11,Making Space#1,Care Establishment,3 - Operations - Countywide Services,Countywide PD Service - Care,Nursing Independent Sector
Cambridgeshire County Council,01-Jul-16,21001315-13583333,-926.11,Making Space#1,Care Establishment,3 - Operations - Countywide Services,Countywide PD Service - Care,Nursing Independent Sector
Cambridgeshire County Council,01-Jul-16,21001316-13583334,-926.11,Making Space#1,Care Establishment,3 - Operations - Countywide Services,Countywide PD Service - Care,Nursing Independent Sector
Cambridgeshire County Council,01-Jul-16,21001317-13583335,-926.11,Making Space#1,Care Establishment,3 - Operations - Countywide Services,Countywide PD Service - Care,Nursing Independent Sector
Cambridgeshire County Council,01-Jul-16,21001322-13583340,-926.11,Making Space#1,Care Establishment,3 - Operations - Countywide Services,Countywide PD Service - Care,Nursing Independent Sector
Cambridgeshire County Council,01-Jul-16,21001324-13583342,-926.11,Making Space#1,Care Establishment,3 - Operations - Countywide Services,Countywide PD Service - Care,Nursing Independent Sector
Cambridgeshire County Council,08-Jul-16,21087263-13620568,-926.11,Making Space#1,Care Establishment,3 - Operations - Countywide Services,Countywide PD Service - Care,Nursing Independent Sector
Cambridgeshire County Council,08-Jul-16,21087266-13620571,-926.11,Making Space#1,Care Establishment,3 - Operations - Countywide Services,Countywide PD Service - Care,Nursing Independent Sector
Cambridgeshire County Council,08-Jul-16,21087267-13620572,-926.11,Making Space#1,Care Establishment,3 - Operations - Countywide Services,Countywide PD Service - Care,Nursing Independent Sector
Cambridgeshire County Council,08-Jul-16,21087269-13620574,-926.11,Making Space#1,Care Establishment,3 - Operations - Countywide Services,Countywide PD Service - Care,Nursing Independent Sector
Cambridgeshire County Council,08-Jul-16,21087271-13620576,-926.11,Making Space#1,Care Establishment,3 - Operations - Countywide Services,Countywide PD Service - Care,Nursing Independent Sector
Cambridgeshire County Council,08-Jul-16,21087272-13620577,-926.11,Making Space#1,Care Establishment,3 - Operations - Countywide Services,Countywide PD Service - Care,Nursing Independent Sector
Cambridgeshire County Council,08-Jul-16,21087273-13620578,-926.11,Making Space#1,Care Establishment,3 - Operations - Countywide Services,Countywide PD Service - Care,Nursing Independent Sector
Cambridgeshire County Council,08-Jul-16,21087276-13620581,-926.11,Making Space#1,Care Establishment,3 - Operations - Countywide Services,Countywide PD Service - Care,Nursing Independent Sector
Cambridgeshire County Council,08-Jul-16,21087277-13620582,-926.11,Making Space#1,Care Establishment,3 - Operations - Countywide Services,Countywide PD Service - Care,Nursing Independent Sector
Cambridgeshire County Council,08-Jul-16,21087278-13620583,-926.11,Making Space#1,Care Establishment,3 - Operations - Countywide Services,Countywide PD Service - Care,Nursing Independent Sector
Cambridgeshire County Council,08-Jul-16,21087279-13620584,-926.11,Making Space#1,Care Establishment,3 - Operations - Countywide Services,Countywide PD Service - Care,Nursing Independent Sector
Cambridgeshire County Council,08-Jul-16,21087282-13620587,-926.11,Making Space#1,Care Establishment,3 - Operations - Countywide Services,Countywide PD Service - Care,Nursing Independent Sector
Cambridgeshire County Council,08-Jul-16,21087283-13620588,-926.11,Making Space#1,Care Establishment,3 - Operations - Countywide Services,Countywide PD Service - Care,Nursing Independent Sector
Cambridgeshire County Council,08-Jul-16,21087284-13620589,-926.11,Making Space#1,Care Establishment,3 - Operations - Countywide Services,Countywide PD Service - Care,Nursing Independent Sector
Cambridgeshire County Council,08-Jul-16,21087285-13620590,-926.11,Making Space#1,Care Establishment,3 - Operations - Countywide Services,Countywide PD Service - Care,Nursing Independent Sector
Cambridgeshire County Council,08-Jul-16,21087288-13620593,-926.11,Making Space#1,Care Establishment,3 - Operations - Countywide Services,Countywide PD Service - Care,Nursing Independent Sector
Cambridgeshire County Council,08-Jul-16,21087291-13620596,-926.11,Making Space#1,Care Establishment,3 - Operations - Countywide Services,Countywide PD Service - Care,Nursing Independent Sector
Cambridgeshire County Council,08-Jul-16,21087293-13620598,-926.11,Making Space#1,Care Establishment,3 - Operations - Countywide Services,Countywide PD Service - Care,Nursing Independent Sector
Cambridgeshire County Council,08-Jul-16,21087295-13620600,-926.11,Making Space#1,Care Establishment,3 - Operations - Countywide Services,Countywide PD Service - Care,Nursing Independent Sector
Cambridgeshire County Council,08-Jul-16,21087296-13620601,-926.11,Making Space#1,Care Establishment,3 - Operations - Countywide Services,Countywide PD Service - Care,Nursing Independent Sector
Cambridgeshire County Council,08-Jul-16,21087298-13620603,-926.11,Making Space#1,Care Establishment,3 - Operations - Countywide Services,Countywide PD Service - Care,Nursing Independent Sector
Cambridgeshire County Council,08-Jul-16,21087301-13620606,-926.11,Making Space#1,Care Establishment,3 - Operations - Countywide Services,Countywide PD Service - Care,Nursing Independent Sector
Cambridgeshire County Council,08-Jul-16,21087306-13620611,-926.11,Making Space#1,Care Establishment,3 - Operations - Countywide Services,Countywide PD Service - Care,Nursing Independent Sector
Cambridgeshire County Council,08-Jul-16,21087307-13620612,-926.11,Making Space#1,Care Establishment,3 - Operations - Countywide Services,Countywide PD Service - Care,Nursing Independent Sector
Cambridgeshire County Council,08-Jul-16,21087311-13620616,-926.11,Making Space#1,Care Establishment,3 - Operations - Countywide Services,Countywide PD Service - Care,Nursing Independent Sector
Cambridgeshire County Council,08-Jul-16,21087312-13620617,-926.11,Making Space#1,Care Establishment,3 - Operations - Countywide Services,Countywide PD Service - Care,Nursing Independent Sector
Cambridgeshire County Council,08-Jul-16,21087314-13620553,-926.11,Making Space#1,Care Establishment,3 - Operations - Countywide Services,Countywide PD Service - Care,Nursing Independent Sector
Cambridgeshire County Council,08-Jul-16,21087315-13620554,-926.11,Making Space#1,Care Establishment,3 - Operations - Countywide Services,Countywide PD Service - Care,Nursing Independent Sector
Cambridgeshire County Council,08-Jul-16,21087316-13620555,-926.11,Making Space#1,Care Establishment,3 - Operations - Countywide Services,Countywide PD Service - Care,Nursing Independent Sector
Cambridgeshire County Council,08-Jul-16,21087317-13620556,-926.11,Making Space#1,Care Establishment,3 - Operations - Countywide Services,Countywide PD Service - Care,Nursing Independent Sector
Cambridgeshire County Council,08-Jul-16,21087319-13620558,-926.11,Making Space#1,Care Establishment,3 - Operations - Countywide Services,Countywide PD Service - Care,Nursing Independent Sector
Cambridgeshire County Council,08-Jul-16,21087325-13620564,-926.11,Making Space#1,Care Establishment,3 - Operations - Countywide Services,Countywide PD Service - Care,Nursing Independent Sector
Cambridgeshire County Council,29-Jul-16,21107734-13731595,-926.11,Making Space#1,Care Establishment,3 - Operations - Countywide Services,Countywide PD Service - Care,Nursing Independent Sector
Cambridgeshire County Council,29-Jul-16,21107736-13731597,-926.11,Making Space#1,Care Establishment,3 - Operations - Countywide Services,Countywide PD Service - Care,Nursing Independent Sector
Cambridgeshire County Council,29-Jul-16,21113773-13731599,-926.11,Making Space#1,Care Establishment,3 - Operations - Countywide Services,Countywide PD Service - Care,Nursing Independent Sector
Cambridgeshire County Council,29-Jul-16,21113774-13731600,-926.11,Making Space#1,Care Establishment,3 - Operations - Countywide Services,Countywide PD Service - Care,Nursing Independent Sector
Cambridgeshire County Council,29-Jul-16,21113775-13731601,-926.11,Making Space#1,Care Establishment,3 - Operations - Countywide Services,Countywide PD Service - Care,Nursing Independent Sector
Cambridgeshire County Council,29-Jul-16,21113777-13731603,-926.11,Making Space#1,Care Establishment,3 - Operations - Countywide Services,Countywide PD Service - Care,Nursing Independent Sector
Cambridgeshire County Council,29-Jul-16,21113778-13731604,-926.11,Making Space#1,Care Establishment,3 - Operations - Countywide Services,Countywide PD Service - Care,Nursing Independent Sector
Cambridgeshire County Council,29-Jul-16,21113780-13731606,-926.11,Making Space#1,Care Establishment,3 - Operations - Countywide Services,Countywide PD Service - Care,Nursing Independent Sector
Cambridgeshire County Council,29-Jul-16,21113782-13731608,-926.11,Making Space#1,Care Establishment,3 - Operations - Countywide Services,Countywide PD Service - Care,Nursing Independent Sector
Cambridgeshire County Council,29-Jul-16,21113786-13731612,-926.11,Making Space#1,Care Establishment,3 - Operations - Countywide Services,Countywide PD Service - Care,Nursing Independent Sector
Cambridgeshire County Council,29-Jul-16,21113787-13731613,-926.11,Making Space#1,Care Establishment,3 - Operations - Countywide Services,Countywide PD Service - Care,Nursing Independent Sector
Cambridgeshire County Council,29-Jul-16,21113788-13731614,-926.11,Making Space#1,Care Establishment,3 - Operations - Countywide Services,Countywide PD Service - Care,Nursing Independent Sector
Cambridgeshire County Council,29-Jul-16,21113791-13731617,-926.11,Making Space#1,Care Establishment,3 - Operations - Countywide Services,Countywide PD Service - Care,Nursing Independent Sector
Cambridgeshire County Council,29-Jul-16,21113792-13731618,-926.11,Making Space#1,Care Establishment,3 - Operations - Countywide Services,Countywide PD Service - Care,Nursing Independent Sector
Cambridgeshire County Council,29-Jul-16,21114657-13731562,-926.11,Making Space#1,Care Establishment,3 - Operations - Countywide Services,Countywide PD Service - Care,Nursing Independent Sector
Cambridgeshire County Council,29-Jul-16,21114658-13731563,-926.11,Making Space#1,Care Establishment,3 - Operations - Countywide Services,Countywide PD Service - Care,Nursing Independent Sector
Cambridgeshire County Council,29-Jul-16,21114659-13731564,-926.11,Making Space#1,Care Establishment,3 - Operations - Countywide Services,Countywide PD Service - Care,Nursing Independent Sector
Cambridgeshire County Council,29-Jul-16,21114660-13731565,-926.11,Making Space#1,Care Establishment,3 - Operations - Countywide Services,Countywide PD Service - Care,Nursing Independent Sector
Cambridgeshire County Council,29-Jul-16,21114661-13731566,-926.11,Making Space#1,Care Establishment,3 - Operations - Countywide Services,Countywide PD Service - Care,Nursing Independent Sector
Cambridgeshire County Council,29-Jul-16,21114665-13731570,-926.11,Making Space#1,Care Establishment,3 - Operations - Countywide Services,Countywide PD Service - Care,Nursing Independent Sector
Cambridgeshire County Council,29-Jul-16,21114666-13731571,-926.11,Making Space#1,Care Establishment,3 - Operations - Countywide Services,Countywide PD Service - Care,Nursing Independent Sector
Cambridgeshire County Council,29-Jul-16,21114667-13731572,-926.11,Making Space#1,Care Establishment,3 - Operations - Countywide Services,Countywide PD Service - Care,Nursing Independent Sector
Cambridgeshire County Council,29-Jul-16,21114670-13731575,-926.11,Making Space#1,Care Establishment,3 - Operations - Countywide Services,Countywide PD Service - Care,Nursing Independent Sector
Cambridgeshire County Council,29-Jul-16,21114672-13731577,-926.11,Making Space#1,Care Establishment,3 - Operations - Countywide Services,Countywide PD Service - Care,Nursing Independent Sector
Cambridgeshire County Council,29-Jul-16,21114673-13731578,-926.11,Making Space#1,Care Establishment,3 - Operations - Countywide Services,Countywide PD Service - Care,Nursing Independent Sector
Cambridgeshire County Council,29-Jul-16,21114676-13731581,-926.11,Making Space#1,Care Establishment,3 - Operations - Countywide Services,Countywide PD Service - Care,Nursing Independent Sector
Cambridgeshire County Council,29-Jul-16,21114680-13731585,-926.11,Making Space#1,Care Establishment,3 - Operations - Countywide Services,Countywide PD Service - Care,Nursing Independent Sector
Cambridgeshire County Council,29-Jul-16,21114681-13731586,-926.11,Making Space#1,Care Establishment,3 - Operations - Countywide Services,Countywide PD Service - Care,Nursing Independent Sector
Cambridgeshire County Council,29-Jul-16,21114682-13731587,-926.11,Making Space#1,Care Establishment,3 - Operations - Countywide Services,Countywide PD Service - Care,Nursing Independent Sector
Cambridgeshire County Council,29-Jul-16,21114686-13731591,-926.11,Making Space#1,Care Establishment,3 - Operations - Countywide Services,Countywide PD Service - Care,Nursing Independent Sector
Cambridgeshire County Council,29-Jul-16,21114687-13731592,-926.11,Making Space#1,Care Establishment,3 - Operations - Countywide Services,Countywide PD Service - Care,Nursing Independent Sector
Cambridgeshire County Council,29-Jul-16,21114688-13731593,-926.11,Making Space#1,Care Establishment,3 - Operations - Countywide Services,Countywide PD Service - Care,Nursing Independent Sector
Cambridgeshire County Council,29-Jul-16,21133917-13731429,-926.11,Making Space#1,Care Establishment,3 - Operations - Countywide Services,Countywide PD Service - Care,Nursing Independent Sector
Cambridgeshire County Council,29-Jul-16,21133920-13731432,-926.11,Making Space#1,Care Establishment,3 - Operations - Countywide Services,Countywide PD Service - Care,Nursing Independent Sector
Cambridgeshire County Council,29-Jul-16,21139549-13731433,-926.11,Making Space#1,Care Establishment,3 - Operations - Countywide Services,Countywide PD Service - Care,Nursing Independent Sector
Cambridgeshire County Council,29-Jul-16,21139551-13731435,-926.11,Making Space#1,Care Establishment,3 - Operations - Countywide Services,Countywide PD Service - Care,Nursing Independent Sector
Cambridgeshire County Council,29-Jul-16,21139552-13731436,-926.11,Making Space#1,Care Establishment,3 - Operations - Countywide Services,Countywide PD Service - Care,Nursing Independent Sector
Cambridgeshire County Council,29-Jul-16,21139554-13731438,-926.11,Making Space#1,Care Establishment,3 - Operations - Countywide Services,Countywide PD Service - Care,Nursing Independent Sector
Cambridgeshire County Council,29-Jul-16,21139559-13731443,-926.11,Making Space#1,Care Establishment,3 - Operations - Countywide Services,Countywide PD Service - Care,Nursing Independent Sector
Cambridgeshire County Council,29-Jul-16,21139561-13731445,-926.11,Making Space#1,Care Establishment,3 - Operations - Countywide Services,Countywide PD Service - Care,Nursing Independent Sector
Cambridgeshire County Council,29-Jul-16,21139562-13731446,-926.11,Making Space#1,Care Establishment,3 - Operations - Countywide Services,Countywide PD Service - Care,Nursing Independent Sector
Cambridgeshire County Council,29-Jul-16,21139566-13731450,-926.11,Making Space#1,Care Establishment,3 - Operations - Countywide Services,Countywide PD Service - Care,Nursing Independent Sector
Cambridgeshire County Council,29-Jul-16,21139567-13731451,-926.11,Making Space#1,Care Establishment,3 - Operations - Countywide Services,Countywide PD Service - Care,Nursing Independent Sector
Cambridgeshire County Council,29-Jul-16,21139568-13731452,-926.11,Making Space#1,Care Establishment,3 - Operations - Countywide Services,Countywide PD Service - Care,Nursing Independent Sector
Cambridgeshire County Council,29-Jul-16,21139573-13731457,-926.11,Making Space#1,Care Establishment,3 - Operations - Countywide Services,Countywide PD Service - Care,Nursing Independent Sector
Cambridgeshire County Council,29-Jul-16,21139574-13731458,-926.11,Making Space#1,Care Establishment,3 - Operations - Countywide Services,Countywide PD Service - Care,Nursing Independent Sector
Cambridgeshire County Council,29-Jul-16,21139575-13731459,-926.11,Making Space#1,Care Establishment,3 - Operations - Countywide Services,Countywide PD Service - Care,Nursing Independent Sector
Cambridgeshire County Council,29-Jul-16,21139576-13731460,-926.11,Making Space#1,Care Establishment,3 - Operations - Countywide Services,Countywide PD Service - Care,Nursing Independent Sector
Cambridgeshire County Council,29-Jul-16,21139577-13731461,-926.11,Making Space#1,Care Establishment,3 - Operations - Countywide Services,Countywide PD Service - Care,Nursing Independent Sector
Cambridgeshire County Council,29-Jul-16,21139579-13731463,-926.11,Making Space#1,Care Establishment,3 - Operations - Countywide Services,Countywide PD Service - Care,Nursing Independent Sector
Cambridgeshire County Council,29-Jul-16,21139580-13731464,-926.11,Making Space#1,Care Establishment,3 - Operations - Countywide Services,Countywide PD Service - Care,Nursing Independent Sector
Cambridgeshire County Council,29-Jul-16,21139581-13731465,-926.11,Making Space#1,Care Establishment,3 - Operations - Countywide Services,Countywide PD Service - Care,Nursing Independent Sector
Cambridgeshire County Council,29-Jul-16,21139582-13731466,-926.11,Making Space#1,Care Establishment,3 - Operations - Countywide Services,Countywide PD Service - Care,Nursing Independent Sector
Cambridgeshire County Council,29-Jul-16,21139583-13731467,-926.11,Making Space#1,Care Establishment,3 - Operations - Countywide Services,Countywide PD Service - Care,Nursing Independent Sector
Cambridgeshire County Council,29-Jul-16,21139858-13731471,-926.11,Making Space#1,Care Establishment,3 - Operations - Countywide Services,Countywide PD Service - Care,Nursing Independent Sector
Cambridgeshire County Council,29-Jul-16,21139859-13731472,-926.11,Making Space#1,Care Establishment,3 - Operations - Countywide Services,Countywide PD Service - Care,Nursing Independent Sector
Cambridgeshire County Council,29-Jul-16,21139860-13731473,-926.11,Making Space#1,Care Establishment,3 - Operations - Countywide Services,Countywide PD Service - Care,Nursing Independent Sector
Cambridgeshire County Council,29-Jul-16,21139862-13731475,-926.11,Making Space#1,Care Establishment,3 - Operations - Countywide Services,Countywide PD Service - Care,Nursing Independent Sector
Cambridgeshire County Council,29-Jul-16,21139869-13731482,-926.11,Making Space#1,Care Establishment,3 - Operations - Countywide Services,Countywide PD Service - Care,Nursing Independent Sector
Cambridgeshire County Council,29-Jul-16,21139870-13731483,-926.11,Making Space#1,Care Establishment,3 - Operations - Countywide Services,Countywide PD Service - Care,Nursing Independent Sector
Cambridgeshire County Council,29-Jul-16,21139871-13731484,-926.11,Making Space#1,Care Establishment,3 - Operations - Countywide Services,Countywide PD Service - Care,Nursing Independent Sector
Cambridgeshire County Council,29-Jul-16,21139874-13731487,-926.11,Making Space#1,Care Establishment,3 - Operations - Countywide Services,Countywide PD Service - Care,Nursing Independent Sector
Cambridgeshire County Council,29-Jul-16,21139875-13731488,-926.11,Making Space#1,Care Establishment,3 - Operations - Countywide Services,Countywide PD Service - Care,Nursing Independent Sector
Cambridgeshire County Council,29-Jul-16,21139881-13731494,-926.11,Making Space#1,Care Establishment,3 - Operations - Countywide Services,Countywide PD Service - Care,Nursing Independent Sector
Cambridgeshire County Council,29-Jul-16,21183086-13731408,-926.11,Making Space#1,Care Establishment,3 - Operations - Countywide Services,Countywide PD Service - Care,Nursing Independent Sector
Cambridgeshire County Council,29-Jul-16,21183087-13731409,-926.11,Making Space#1,Care Establishment,3 - Operations - Countywide Services,Countywide PD Service - Care,Nursing Independent Sector
Cambridgeshire County Council,29-Jul-16,21183088-13731410,-926.11,Making Space#1,Care Establishment,3 - Operations - Countywide Services,Countywide PD Service - Care,Nursing Independent Sector
Cambridgeshire County Council,29-Jul-16,21183094-13731416,-926.11,Making Space#1,Care Establishment,3 - Operations - Countywide Services,Countywide PD Service - Care,Nursing Independent Sector
Cambridgeshire County Council,29-Jul-16,21184397-13731495,-926.11,Making Space#1,Care Establishment,3 - Operations - Countywide Services,Countywide PD Service - Care,Nursing Independent Sector
Cambridgeshire County Council,29-Jul-16,21184398-13731496,-926.11,Making Space#1,Care Establishment,3 - Operations - Countywide Services,Countywide PD Service - Care,Nursing Independent Sector
Cambridgeshire County Council,29-Jul-16,21184399-13731497,-926.11,Making Space#1,Care Establishment,3 - Operations - Countywide Services,Countywide PD Service - Care,Nursing Independent Sector
Cambridgeshire County Council,29-Jul-16,21184404-13731502,-926.11,Making Space#1,Care Establishment,3 - Operations - Countywide Services,Countywide PD Service - Care,Nursing Independent Sector
Cambridgeshire County Council,29-Jul-16,21184407-13731505,-926.11,Making Space#1,Care Establishment,3 - Operations - Countywide Services,Countywide PD Service - Care,Nursing Independent Sector
Cambridgeshire County Council,29-Jul-16,21184410-13731508,-926.11,Making Space#1,Care Establishment,3 - Operations - Countywide Services,Countywide PD Service - Care,Nursing Independent Sector
Cambridgeshire County Council,29-Jul-16,21184411-13731509,-926.11,Making Space#1,Care Establishment,3 - Operations - Countywide Services,Countywide PD Service - Care,Nursing Independent Sector
Cambridgeshire County Council,29-Jul-16,21184412-13731510,-926.11,Making Space#1,Care Establishment,3 - Operations - Countywide Services,Countywide PD Service - Care,Nursing Independent Sector
Cambridgeshire County Council,29-Jul-16,21184416-13731514,-926.11,Making Space#1,Care Establishment,3 - Operations - Countywide Services,Countywide PD Service - Care,Nursing Independent Sector
Cambridgeshire County Council,29-Jul-16,21184417-13731515,-926.11,Making Space#1,Care Establishment,3 - Operations - Countywide Services,Countywide PD Service - Care,Nursing Independent Sector
Cambridgeshire County Council,29-Jul-16,21184419-13731517,-926.11,Making Space#1,Care Establishment,3 - Operations - Countywide Services,Countywide PD Service - Care,Nursing Independent Sector
Cambridgeshire County Council,29-Jul-16,21184420-13731518,-926.11,Making Space#1,Care Establishment,3 - Operations - Countywide Services,Countywide PD Service - Care,Nursing Independent Sector
Cambridgeshire County Council,29-Jul-16,21184421-13731519,-926.11,Making Space#1,Care Establishment,3 - Operations - Countywide Services,Countywide PD Service - Care,Nursing Independent Sector
Cambridgeshire County Council,29-Jul-16,21184422-13731520,-926.11,Making Space#1,Care Establishment,3 - Operations - Countywide Services,Countywide PD Service - Care,Nursing Independent Sector
Cambridgeshire County Council,29-Jul-16,21184423-13731521,-926.11,Making Space#1,Care Establishment,3 - Operations - Countywide Services,Countywide PD Service - Care,Nursing Independent Sector
Cambridgeshire County Council,29-Jul-16,21184427-13731525,-926.11,Making Space#1,Care Establishment,3 - Operations - Countywide Services,Countywide PD Service - Care,Nursing Independent Sector
Cambridgeshire County Council,29-Jul-16,21184429-13731527,-926.11,Making Space#1,Care Establishment,3 - Operations - Countywide Services,Countywide PD Service - Care,Nursing Independent Sector
Cambridgeshire County Council,29-Jul-16,21184433-13731531,-926.11,Making Space#1,Care Establishment,3 - Operations - Countywide Services,Countywide PD Service - Care,Nursing Independent Sector
Cambridgeshire County Council,29-Jul-16,21184437-13731535,-926.11,Making Space#1,Care Establishment,3 - Operations - Countywide Services,Countywide PD Service - Care,Nursing Independent Sector
Cambridgeshire County Council,29-Jul-16,21184438-13731536,-926.11,Making Space#1,Care Establishment,3 - Operations - Countywide Services,Countywide PD Service - Care,Nursing Independent Sector
Cambridgeshire County Council,29-Jul-16,21184439-13731537,-926.11,Making Space#1,Care Establishment,3 - Operations - Countywide Services,Countywide PD Service - Care,Nursing Independent Sector
Cambridgeshire County Council,29-Jul-16,21184442-13731540,-926.11,Making Space#1,Care Establishment,3 - Operations - Countywide Services,Countywide PD Service - Care,Nursing Independent Sector
Cambridgeshire County Council,29-Jul-16,21184445-13731543,-926.11,Making Space#1,Care Establishment,3 - Operations - Countywide Services,Countywide PD Service - Care,Nursing Independent Sector
Cambridgeshire County Council,29-Jul-16,21184446-13731544,-926.11,Making Space#1,Care Establishment,3 - Operations - Countywide Services,Countywide PD Service - Care,Nursing Independent Sector
Cambridgeshire County Council,29-Jul-16,21184447-13731545,-926.11,Making Space#1,Care Establishment,3 - Operations - Countywide Services,Countywide PD Service - Care,Nursing Independent Sector
Cambridgeshire County Council,29-Jul-16,21184450-13731548,-926.11,Making Space#1,Care Establishment,3 - Operations - Countywide Services,Countywide PD Service - Care,Nursing Independent Sector
Cambridgeshire County Council,29-Jul-16,21184453-13731551,-926.11,Making Space#1,Care Establishment,3 - Operations - Countywide Services,Countywide PD Service - Care,Nursing Independent Sector
Cambridgeshire County Council,29-Jul-16,21184454-13731552,-926.11,Making Space#1,Care Establishment,3 - Operations - Countywide Services,Countywide PD Service - Care,Nursing Independent Sector
Cambridgeshire County Council,08-Jul-16,21086940-13621504,-906.68,The Manor Cheshire Home,Care Establishment,3 - Operations - Countywide Services,Sensory Services,Residential Independent Sector
Cambridgeshire County Council,08-Jul-16,21086948-13621506,-906.68,The Manor Cheshire Home,Care Establishment,3 - Operations - Countywide Services,Sensory Services,Residential Independent Sector
Cambridgeshire County Council,08-Jul-16,21086951-13621507,-906.68,The Manor Cheshire Home,Care Establishment,3 - Operations - Countywide Services,Sensory Services,Residential Independent Sector
Cambridgeshire County Council,08-Jul-16,21086954-13621508,-906.68,The Manor Cheshire Home,Care Establishment,3 - Operations - Countywide Services,Sensory Services,Residential Independent Sector
Cambridgeshire County Council,08-Jul-16,21086956-13621497,-906.68,The Manor Cheshire Home,Care Establishment,3 - Operations - Countywide Services,Sensory Services,Residential Independent Sector
Cambridgeshire County Council,08-Jul-16,21086960-13621498,-906.68,The Manor Cheshire Home,Care Establishment,3 - Operations - Countywide Services,Sensory Services,Residential Independent Sector
Cambridgeshire County Council,08-Jul-16,21086967-13621499,-906.68,The Manor Cheshire Home,Care Establishment,3 - Operations - Countywide Services,Sensory Services,Residential Independent Sector
Cambridgeshire County Council,27-Jul-16,21157643-13716435,-866.17,Jones Lang Lasalle,Trade Supplier,S&C,Catering - Cook Freeze Unit (C3),Rents and Leases
Cambridgeshire County Council,01-Jul-16,21004964-13584807,-852.76,Redacted Personal Data,Individual,3 - Operations - Countywide Services,Countywide PD Service - Care,SDS - Care and support Services
Cambridgeshire County Council,01-Jul-16,21004970-13584810,-852.76,Redacted Personal Data,Individual,3 - Operations - Countywide Services,Countywide PD Service - Care,SDS - Care and support Services
Cambridgeshire County Council,21-Jul-16,21112363-13675108,-849.6,Granta Housing Society Ltd,Care Establishment,2 - Commissioning - Older people Pool,Older People Mental Health Hunts,Day and Domicillary Care Independent Sector
Cambridgeshire County Council,29-Jul-16,21181073-13736249,-823.9,Westminster Homecare Limited,Care Establishment,2 - Operations - Learning Disability,LDP E Cambs Special Needs,Day and Domicillary Care Independent Sector
Cambridgeshire County Council,29-Jul-16,21181074-13736250,-823.9,Westminster Homecare Limited,Care Establishment,2 - Operations - Learning Disability,LDP E Cambs Special Needs,Day and Domicillary Care Independent Sector
Cambridgeshire County Council,29-Jul-16,21181078-13736253,-823.9,Westminster Homecare Limited,Care Establishment,2 - Operations - Learning Disability,LDP E Cambs Special Needs,Day and Domicillary Care Independent Sector
Cambridgeshire County Council,29-Jul-16,21181085-13736260,-823.9,Westminster Homecare Limited,Care Establishment,2 - Operations - Learning Disability,LDP E Cambs Special Needs,Day and Domicillary Care Independent Sector
Cambridgeshire County Council,29-Jul-16,21181094-13736266,-823.9,Westminster Homecare Limited,Care Establishment,2 - Operations - Learning Disability,LDP E Cambs Special Needs,Day and Domicillary Care Independent Sector
Cambridgeshire County Council,29-Jul-16,21181095-13736267,-823.9,Westminster Homecare Limited,Care Establishment,2 - Operations - Learning Disability,LDP E Cambs Special Needs,Day and Domicillary Care Independent Sector
Cambridgeshire County Council,29-Jul-16,21181098-13736270,-823.9,Westminster Homecare Limited,Care Establishment,2 - Operations - Learning Disability,LDP E Cambs Special Needs,Day and Domicillary Care Independent Sector
Cambridgeshire County Council,29-Jul-16,21181101-13736271,-823.9,Westminster Homecare Limited,Care Establishment,2 - Operations - Learning Disability,LDP E Cambs Special Needs,Day and Domicillary Care Independent Sector
Cambridgeshire County Council,29-Jul-16,21181102-13736272,-823.9,Westminster Homecare Limited,Care Establishment,2 - Operations - Learning Disability,LDP E Cambs Special Needs,Day and Domicillary Care Independent Sector
Cambridgeshire County Council,29-Jul-16,21181113-13736282,-823.9,Westminster Homecare Limited,Care Establishment,2 - Operations - Learning Disability,LDP E Cambs Special Needs,Day and Domicillary Care Independent Sector
Cambridgeshire County Council,29-Jul-16,21181116-13736285,-823.9,Westminster Homecare Limited,Care Establishment,2 - Operations - Learning Disability,LDP E Cambs Special Needs,Day and Domicillary Care Independent Sector
Cambridgeshire County Council,29-Jul-16,21181134-13736299,-823.9,Westminster Homecare Limited,Care Establishment,2 - Operations - Learning Disability,LDP E Cambs Special Needs,Day and Domicillary Care Independent Sector
Cambridgeshire County Council,29-Jul-16,21181135-13736300,-823.9,Westminster Homecare Limited,Care Establishment,2 - Operations - Learning Disability,LDP E Cambs Special Needs,Day and Domicillary Care Independent Sector
Cambridgeshire County Council,29-Jul-16,21181138-13736303,-823.9,Westminster Homecare Limited,Care Establishment,2 - Operations - Learning Disability,LDP E Cambs Special Needs,Day and Domicillary Care Independent Sector
Cambridgeshire County Council,29-Jul-16,21181147-13736229,-823.9,Westminster Homecare Limited,Care Establishment,2 - Operations - Learning Disability,LDP E Cambs Special Needs,Day and Domicillary Care Independent Sector
Cambridgeshire County Council,01-Jul-16,21009583-13582506,-814.8,Redacted Personal Data,Individual,3 - Operations - Countywide Services,Countywide PD Service - Care,SDS - Care and support Services
Cambridgeshire County Council,01-Jul-16,21009586-13582509,-814.8,Redacted Personal Data,Individual,3 - Operations - Countywide Services,Countywide PD Service - Care,SDS - Care and support Services
Cambridgeshire County Council,29-Jul-16,21186113-13734177,-810.43,17 Hamlett Close (Voyage),Care Establishment,2 - Operations - Learning Disability,LDP Huntingdonshire Locality - Care,Supported Living
Cambridgeshire County Council,22-Jul-16,21127906-13696614,-806,Balfour Beatty Living Places Limited,Company,Major Infrastructure Delivery,Sustrans / Cycling Schemes,Capital WIP - other  -  Expenditure / Payments
Cambridgeshire County Council,01-Jul-16,20911190-13583427,-793.81,Making Space#1,Care Establishment,3 - Operations - Countywide Services,Countywide PD Service - Care,Nursing Independent Sector
Cambridgeshire County Council,01-Jul-16,20944717-13583357,-793.81,Making Space#1,Care Establishment,3 - Operations - Countywide Services,Countywide PD Service - Care,Nursing Independent Sector
Cambridgeshire County Council,01-Jul-16,21001262-13583280,-793.81,Making Space#1,Care Establishment,3 - Operations - Countywide Services,Countywide PD Service - Care,Nursing Independent Sector
Cambridgeshire County Council,08-Jul-16,21087290-13620595,-793.81,Making Space#1,Care Establishment,3 - Operations - Countywide Services,Countywide PD Service - Care,Nursing Independent Sector
Cambridgeshire County Council,29-Jul-16,21114651-13731556,-793.81,Making Space#1,Care Establishment,3 - Operations - Countywide Services,Countywide PD Service - Care,Nursing Independent Sector
Cambridgeshire County Council,29-Jul-16,21139879-13731492,-793.81,Making Space#1,Care Establishment,3 - Operations - Countywide Services,Countywide PD Service - Care,Nursing Independent Sector
Cambridgeshire County Council,29-Jul-16,21184435-13731533,-793.81,Making Space#1,Care Establishment,3 - Operations - Countywide Services,Countywide PD Service - Care,Nursing Independent Sector
Cambridgeshire County Council,21-Jul-16,21151636-13675045,-767.58,Fryers Walk (Pd),Care Establishment,3 - Operations - Countywide Services,Countywide PD Service - Care,Residential Independent Sector
Cambridgeshire County Council,21-Jul-16,21151637-13675046,-767.58,Fryers Walk (Pd),Care Establishment,3 - Operations - Countywide Services,Countywide PD Service - Care,Residential Independent Sector
Cambridgeshire County Council,21-Jul-16,21151638-13675047,-767.58,Fryers Walk (Pd),Care Establishment,3 - Operations - Countywide Services,Countywide PD Service - Care,Residential Independent Sector
Cambridgeshire County Council,21-Jul-16,21151641-13675050,-767.58,Fryers Walk (Pd),Care Establishment,3 - Operations - Countywide Services,Countywide PD Service - Care,Residential Independent Sector
Cambridgeshire County Council,21-Jul-16,21151644-13675053,-767.58,Fryers Walk (Pd),Care Establishment,3 - Operations - Countywide Services,Countywide PD Service - Care,Residential Independent Sector
Cambridgeshire County Council,21-Jul-16,21151647-13675056,-767.58,Fryers Walk (Pd),Care Establishment,3 - Operations - Countywide Services,Countywide PD Service - Care,Residential Independent Sector
Cambridgeshire County Council,21-Jul-16,21151653-13675062,-767.58,Fryers Walk (Pd),Care Establishment,3 - Operations - Countywide Services,Countywide PD Service - Care,Residential Independent Sector
Cambridgeshire County Council,21-Jul-16,21151655-13675064,-767.58,Fryers Walk (Pd),Care Establishment,3 - Operations - Countywide Services,Countywide PD Service - Care,Residential Independent Sector
Cambridgeshire County Council,21-Jul-16,21151656-13675065,-767.58,Fryers Walk (Pd),Care Establishment,3 - Operations - Countywide Services,Countywide PD Service - Care,Residential Independent Sector
Cambridgeshire County Council,21-Jul-16,21151658-13675067,-767.58,Fryers Walk (Pd),Care Establishment,3 - Operations - Countywide Services,Countywide PD Service - Care,Residential Independent Sector
Cambridgeshire County Council,21-Jul-16,21151659-13675068,-767.58,Fryers Walk (Pd),Care Establishment,3 - Operations - Countywide Services,Countywide PD Service - Care,Residential Independent Sector
Cambridgeshire County Council,21-Jul-16,21151661-13675070,-767.58,Fryers Walk (Pd),Care Establishment,3 - Operations - Countywide Services,Countywide PD Service - Care,Residential Independent Sector
Cambridgeshire County Council,21-Jul-16,21151665-13675074,-767.58,Fryers Walk (Pd),Care Establishment,3 - Operations - Countywide Services,Countywide PD Service - Care,Residential Independent Sector
Cambridgeshire County Council,21-Jul-16,21151668-13675077,-767.58,Fryers Walk (Pd),Care Establishment,3 - Operations - Countywide Services,Countywide PD Service - Care,Residential Independent Sector
Cambridgeshire County Council,21-Jul-16,21151669-13675078,-767.58,Fryers Walk (Pd),Care Establishment,3 - Operations - Countywide Services,Countywide PD Service - Care,Residential Independent Sector
Cambridgeshire County Council,21-Jul-16,21151670-13675079,-767.58,Fryers Walk (Pd),Care Establishment,3 - Operations - Countywide Services,Countywide PD Service - Care,Residential Independent Sector
Cambridgeshire County Council,21-Jul-16,21151671-13675080,-767.58,Fryers Walk (Pd),Care Establishment,3 - Operations - Countywide Services,Countywide PD Service - Care,Residential Independent Sector
Cambridgeshire County Council,21-Jul-16,21151676-13675085,-767.58,Fryers Walk (Pd),Care Establishment,3 - Operations - Countywide Services,Countywide PD Service - Care,Residential Independent Sector
Cambridgeshire County Council,29-Jul-16,21183765-13737267,-760.64,Westminster Homecare Limited,Care Establishment,2 - Operations - Learning Disability,LDP E Cambs Locality - Care,Day and Domicillary Care Independent Sector
Cambridgeshire County Council,29-Jul-16,21183766-13737268,-760.64,Westminster Homecare Limited,Care Establishment,2 - Operations - Learning Disability,LDP E Cambs Locality - Care,Day and Domicillary Care Independent Sector
Cambridgeshire County Council,29-Jul-16,21183769-13737271,-760.64,Westminster Homecare Limited,Care Establishment,2 - Operations - Learning Disability,LDP E Cambs Locality - Care,Day and Domicillary Care Independent Sector
Cambridgeshire County Council,29-Jul-16,21183770-13737272,-760.64,Westminster Homecare Limited,Care Establishment,2 - Operations - Learning Disability,LDP E Cambs Locality - Care,Day and Domicillary Care Independent Sector
Cambridgeshire County Council,29-Jul-16,21183771-13737273,-760.64,Westminster Homecare Limited,Care Establishment,2 - Operations - Learning Disability,LDP E Cambs Locality - Care,Day and Domicillary Care Independent Sector
Cambridgeshire County Council,29-Jul-16,21183773-13737275,-760.64,Westminster Homecare Limited,Care Establishment,2 - Operations - Learning Disability,LDP E Cambs Locality - Care,Day and Domicillary Care Independent Sector
Cambridgeshire County Council,29-Jul-16,21183774-13737276,-760.64,Westminster Homecare Limited,Care Establishment,2 - Operations - Learning Disability,LDP E Cambs Locality - Care,Day and Domicillary Care Independent Sector
Cambridgeshire County Council,29-Jul-16,21183775-13737277,-760.64,Westminster Homecare Limited,Care Establishment,2 - Operations - Learning Disability,LDP E Cambs Locality - Care,Day and Domicillary Care Independent Sector
Cambridgeshire County Council,29-Jul-16,21183777-13737279,-760.64,Westminster Homecare Limited,Care Establishment,2 - Operations - Learning Disability,LDP E Cambs Locality - Care,Day and Domicillary Care Independent Sector
Cambridgeshire County Council,29-Jul-16,21183781-13737283,-760.64,Westminster Homecare Limited,Care Establishment,2 - Operations - Learning Disability,LDP E Cambs Locality - Care,Day and Domicillary Care Independent Sector
Cambridgeshire County Council,29-Jul-16,21183782-13737284,-760.64,Westminster Homecare Limited,Care Establishment,2 - Operations - Learning Disability,LDP E Cambs Locality - Care,Day and Domicillary Care Independent Sector
Cambridgeshire County Council,29-Jul-16,21183786-13737288,-760.64,Westminster Homecare Limited,Care Establishment,2 - Operations - Learning Disability,LDP E Cambs Locality - Care,Day and Domicillary Care Independent Sector
Cambridgeshire County Council,29-Jul-16,21183790-13737292,-760.64,Westminster Homecare Limited,Care Establishment,2 - Operations - Learning Disability,LDP E Cambs Locality - Care,Day and Domicillary Care Independent Sector
Cambridgeshire County Council,29-Jul-16,21183791-13737293,-760.64,Westminster Homecare Limited,Care Establishment,2 - Operations - Learning Disability,LDP E Cambs Locality - Care,Day and Domicillary Care Independent Sector
Cambridgeshire County Council,29-Jul-16,21183793-13737295,-760.64,Westminster Homecare Limited,Care Establishment,2 - Operations - Learning Disability,LDP E Cambs Locality - Care,Day and Domicillary Care Independent Sector
Cambridgeshire County Council,14-Jul-16,20907293-13642538,-750,Redacted Personal Data,Individual,3 - Operations - Countywide Services,Countywide PD Service - Care,Direct Payments - Social Services
Cambridgeshire County Council,14-Jul-16,20907294-13642539,-750,Redacted Personal Data,Individual,3 - Operations - Countywide Services,Countywide PD Service - Care,Direct Payments - Social Services
Cambridgeshire County Council,14-Jul-16,20907296-13642541,-750,Redacted Personal Data,Individual,3 - Operations - Countywide Services,Countywide PD Service - Care,Direct Payments - Social Services
Cambridgeshire County Council,14-Jul-16,20907301-13642546,-750,Redacted Personal Data,Individual,3 - Operations - Countywide Services,Countywide PD Service - Care,Direct Payments - Social Services
Cambridgeshire County Council,14-Jul-16,20907303-13642548,-750,Redacted Personal Data,Individual,3 - Operations - Countywide Services,Countywide PD Service - Care,Direct Payments - Social Services
Cambridgeshire County Council,14-Jul-16,20907312-13642557,-750,Redacted Personal Data,Individual,3 - Operations - Countywide Services,Countywide PD Service - Care,Direct Payments - Social Services
Cambridgeshire County Council,14-Jul-16,20907317-13642562,-750,Redacted Personal Data,Individual,3 - Operations - Countywide Services,Countywide PD Service - Care,Direct Payments - Social Services
Cambridgeshire County Council,01-Jul-16,21008050-13587399,-750,Redacted Personal Data,Individual,3 - Operations - Countywide Services,Countywide PD Service - Care,SDS - Care and support Services
Cambridgeshire County Council,01-Jul-16,21008051-13587400,-750,Redacted Personal Data,Individual,3 - Operations - Countywide Services,Countywide PD Service - Care,SDS - Care and support Services
Cambridgeshire County Council,25-Jul-16,20678271-13700823,-747.69,London Hire Ltd,Trade Supplier,1- Commissioning - Service Director,SSD Transport  -  Dept Wide,Leased Cars
Cambridgeshire County Council,21-Jul-16,21135291-13676728,-721.7,Hardwick Dene,Care Establishment,2 - Commissioning - Older people Pool,Older People Mental Health Hunts,Residential Independent Sector
Cambridgeshire County Council,21-Jul-16,21135307-13676730,-721.7,Hardwick Dene,Care Establishment,2 - Commissioning - Older people Pool,Older People Mental Health Hunts,Residential Independent Sector
Cambridgeshire County Council,21-Jul-16,21135326-13676732,-721.7,Hardwick Dene,Care Establishment,2 - Commissioning - Older people Pool,Older People Mental Health Hunts,Residential Independent Sector
Cambridgeshire County Council,21-Jul-16,21135338-13676733,-721.7,Hardwick Dene,Care Establishment,2 - Commissioning - Older people Pool,Older People Mental Health Hunts,Residential Independent Sector
Cambridgeshire County Council,21-Jul-16,21135349-13676734,-721.7,Hardwick Dene,Care Establishment,2 - Commissioning - Older people Pool,Older People Mental Health Hunts,Residential Independent Sector
Cambridgeshire County Council,21-Jul-16,21135358-13676735,-721.7,Hardwick Dene,Care Establishment,2 - Commissioning - Older people Pool,Older People Mental Health Hunts,Residential Independent Sector
Cambridgeshire County Council,21-Jul-16,21135374-13676738,-721.7,Hardwick Dene,Care Establishment,2 - Commissioning - Older people Pool,Older People Mental Health Hunts,Residential Independent Sector
Cambridgeshire County Council,21-Jul-16,21135387-13676739,-721.7,Hardwick Dene,Care Establishment,2 - Commissioning - Older people Pool,Older People Mental Health Hunts,Residential Independent Sector
Cambridgeshire County Council,21-Jul-16,21135402-13676720,-721.7,Hardwick Dene,Care Establishment,2 - Commissioning - Older people Pool,Older People Mental Health Hunts,Residential Independent Sector
Cambridgeshire County Council,21-Jul-16,21135403-13676721,-721.7,Hardwick Dene,Care Establishment,2 - Commissioning - Older people Pool,Older People Mental Health Hunts,Residential Independent Sector
Cambridgeshire County Council,21-Jul-16,21135415-13676723,-721.7,Hardwick Dene,Care Establishment,2 - Commissioning - Older people Pool,Older People Mental Health Hunts,Residential Independent Sector
Cambridgeshire County Council,21-Jul-16,21135442-13676716,-721.7,Hardwick Dene,Care Establishment,2 - Commissioning - Older people Pool,Older People Mental Health Hunts,Residential Independent Sector
Cambridgeshire County Council,21-Jul-16,21135454-13676717,-721.7,Hardwick Dene,Care Establishment,2 - Commissioning - Older people Pool,Older People Mental Health Hunts,Residential Independent Sector
Cambridgeshire County Council,21-Jul-16,21141101-13676741,-721.7,Hardwick Dene,Care Establishment,2 - Commissioning - Older people Pool,Older People Mental Health Hunts,Residential Independent Sector
Cambridgeshire County Council,21-Jul-16,21141103-13676743,-721.7,Hardwick Dene,Care Establishment,2 - Commissioning - Older people Pool,Older People Mental Health Hunts,Residential Independent Sector
Cambridgeshire County Council,21-Jul-16,21141122-13676744,-721.7,Hardwick Dene,Care Establishment,2 - Commissioning - Older people Pool,Older People Mental Health Hunts,Residential Independent Sector
Cambridgeshire County Council,21-Jul-16,21007494-13677224,-712.58,St George'S Court,Care Establishment,2 - Commissioning - Older people Pool,Older People - City & South,Nursing Independent Sector
Cambridgeshire County Council,21-Jul-16,21007495-13677225,-712.58,St George'S Court,Care Establishment,2 - Commissioning - Older people Pool,Older People - City & South,Nursing Independent Sector
Cambridgeshire County Council,21-Jul-16,21007496-13677226,-712.58,St George'S Court,Care Establishment,2 - Commissioning - Older people Pool,Older People - City & South,Nursing Independent Sector
Cambridgeshire County Council,21-Jul-16,21007497-13677227,-712.58,St George'S Court,Care Establishment,2 - Commissioning - Older people Pool,Older People - City & South,Nursing Independent Sector
Cambridgeshire County Council,21-Jul-16,21007498-13677228,-712.58,St George'S Court,Care Establishment,2 - Commissioning - Older people Pool,Older People - City & South,Nursing Independent Sector
Cambridgeshire County Council,21-Jul-16,21007499-13677229,-712.58,St George'S Court,Care Establishment,2 - Commissioning - Older people Pool,Older People - City & South,Nursing Independent Sector
Cambridgeshire County Council,21-Jul-16,21007500-13677230,-712.58,St George'S Court,Care Establishment,2 - Commissioning - Older people Pool,Older People - City & South,Nursing Independent Sector
Cambridgeshire County Council,21-Jul-16,21009208-13677218,-712.58,St George'S Court,Care Establishment,2 - Commissioning - Older people Pool,Older People - City & South,Nursing Independent Sector
Cambridgeshire County Council,21-Jul-16,21009209-13677219,-712.58,St George'S Court,Care Establishment,2 - Commissioning - Older people Pool,Older People - City & South,Nursing Independent Sector
Cambridgeshire County Council,21-Jul-16,21009210-13677220,-712.58,St George'S Court,Care Establishment,2 - Commissioning - Older people Pool,Older People - City & South,Nursing Independent Sector
Cambridgeshire County Council,21-Jul-16,21009211-13677221,-712.58,St George'S Court,Care Establishment,2 - Commissioning - Older people Pool,Older People - City & South,Nursing Independent Sector
Cambridgeshire County Council,29-Jul-16,21181127-13736294,-706.2,Westminster Homecare Limited,Care Establishment,2 - Operations - Learning Disability,LDP E Cambs Special Needs,Day and Domicillary Care Independent Sector
Cambridgeshire County Council,08-Jul-16,21086591-13621307,-701.08,Cherry Hinton Nursing Home,Care Establishment,2 - Commissioning - Older people Pool,Older People - City & South,Nursing Independent Sector
Cambridgeshire County Council,08-Jul-16,21086592-13621308,-701.08,Cherry Hinton Nursing Home,Care Establishment,2 - Commissioning - Older people Pool,Older People - City & South,Nursing Independent Sector
Cambridgeshire County Council,08-Jul-16,21088613-13621296,-701.08,Cherry Hinton Nursing Home,Care Establishment,2 - Commissioning - Older people Pool,Older People - City & South,Nursing Independent Sector
Cambridgeshire County Council,08-Jul-16,21088614-13621297,-701.08,Cherry Hinton Nursing Home,Care Establishment,2 - Commissioning - Older people Pool,Older People - City & South,Nursing Independent Sector
Cambridgeshire County Council,08-Jul-16,21088615-13621298,-701.08,Cherry Hinton Nursing Home,Care Establishment,2 - Commissioning - Older people Pool,Older People - City & South,Nursing Independent Sector
Cambridgeshire County Council,08-Jul-16,21088622-13621305,-701.08,Cherry Hinton Nursing Home,Care Establishment,2 - Commissioning - Older people Pool,Older People - City & South,Nursing Independent Sector
Cambridgeshire County Council,21-Jul-16,21114874-13676891,-680,Polebrook Nursing & Residential Home,Care Establishment,2 - Commissioning - Older people Pool,Older People Mental Health Hunts,Nursing Independent Sector
Cambridgeshire County Council,21-Jul-16,21114875-13676892,-680,Polebrook Nursing & Residential Home,Care Establishment,2 - Commissioning - Older people Pool,Older People Mental Health Hunts,Nursing Independent Sector
Cambridgeshire County Council,21-Jul-16,21114876-13676893,-680,Polebrook Nursing & Residential Home,Care Establishment,2 - Commissioning - Older people Pool,Older People Mental Health Hunts,Nursing Independent Sector
Cambridgeshire County Council,21-Jul-16,21114877-13676894,-680,Polebrook Nursing & Residential Home,Care Establishment,2 - Commissioning - Older people Pool,Older People Mental Health Hunts,Nursing Independent Sector
Cambridgeshire County Council,21-Jul-16,21114878-13676895,-680,Polebrook Nursing & Residential Home,Care Establishment,2 - Commissioning - Older people Pool,Older People Mental Health Hunts,Nursing Independent Sector
Cambridgeshire County Council,21-Jul-16,21114879-13676896,-680,Polebrook Nursing & Residential Home,Care Establishment,2 - Commissioning - Older people Pool,Older People Mental Health Hunts,Nursing Independent Sector
Cambridgeshire County Council,21-Jul-16,21114880-13676897,-680,Polebrook Nursing & Residential Home,Care Establishment,2 - Commissioning - Older people Pool,Older People Mental Health Hunts,Nursing Independent Sector
Cambridgeshire County Council,21-Jul-16,21114882-13676899,-680,Polebrook Nursing & Residential Home,Care Establishment,2 - Commissioning - Older people Pool,Older People Mental Health Hunts,Nursing Independent Sector
Cambridgeshire County Council,21-Jul-16,21114883-13676888,-680,Polebrook Nursing & Residential Home,Care Establishment,2 - Commissioning - Older people Pool,Older People Mental Health Hunts,Nursing Independent Sector
Cambridgeshire County Council,21-Jul-16,21114884-13676889,-680,Polebrook Nursing & Residential Home,Care Establishment,2 - Commissioning - Older people Pool,Older People Mental Health Hunts,Nursing Independent Sector
Cambridgeshire County Council,21-Jul-16,21114885-13676890,-680,Polebrook Nursing & Residential Home,Care Establishment,2 - Commissioning - Older people Pool,Older People Mental Health Hunts,Nursing Independent Sector
Cambridgeshire County Council,29-Jul-16,20484419-13732825,-675,Eastcotts Nursing Home,Care Establishment,2 - Commissioning - Older people Pool,East Cambs - O P Team,Nursing Independent Sector
Cambridgeshire County Council,29-Jul-16,20484420-13732826,-675,Eastcotts Nursing Home,Care Establishment,2 - Commissioning - Older people Pool,East Cambs - O P Team,Nursing Independent Sector
Cambridgeshire County Council,29-Jul-16,20484422-13732828,-675,Eastcotts Nursing Home,Care Establishment,2 - Commissioning - Older people Pool,East Cambs - O P Team,Nursing Independent Sector
Cambridgeshire County Council,29-Jul-16,20484424-13732829,-675,Eastcotts Nursing Home,Care Establishment,2 - Commissioning - Older people Pool,East Cambs - O P Team,Nursing Independent Sector
Cambridgeshire County Council,29-Jul-16,20484425-13732830,-675,Eastcotts Nursing Home,Care Establishment,2 - Commissioning - Older people Pool,East Cambs - O P Team,Nursing Independent Sector
Cambridgeshire County Council,21-Jul-16,21086886-13690632,-670.15,Gracefield Nursing And Residential Home,Care Establishment,2 - Commissioning - Older people Pool,Older People Mental Health E Cambs,Nursing Independent Sector
Cambridgeshire County Council,21-Jul-16,21086887-13690633,-670.15,Gracefield Nursing And Residential Home,Care Establishment,2 - Commissioning - Older people Pool,Older People Mental Health E Cambs,Nursing Independent Sector
Cambridgeshire County Council,21-Jul-16,21086889-13690635,-670.15,Gracefield Nursing And Residential Home,Care Establishment,2 - Commissioning - Older people Pool,Older People Mental Health E Cambs,Nursing Independent Sector
Cambridgeshire County Council,20-Jul-16,21122605-13666477,-659.93,Playfords Ltd,Company,LRNG,ICT Service Procurement,Materials for resale
Cambridgeshire County Council,29-Jul-16,21183784-13737286,-651.98,Westminster Homecare Limited,Care Establishment,2 - Operations - Learning Disability,LDP E Cambs Locality - Care,Day and Domicillary Care Independent Sector
Cambridgeshire County Council,29-Jul-16,21177721-13736906,-628.05,Westminster Homecare Limited,Care Establishment,2 - Operations - Learning Disability,LDP E Cambs Locality - Care,Day and Domicillary Care Independent Sector
Cambridgeshire County Council,29-Jul-16,21177722-13736907,-628.05,Westminster Homecare Limited,Care Establishment,2 - Operations - Learning Disability,LDP E Cambs Locality - Care,Day and Domicillary Care Independent Sector
Cambridgeshire County Council,29-Jul-16,21177723-13736908,-628.05,Westminster Homecare Limited,Care Establishment,2 - Operations - Learning Disability,LDP E Cambs Locality - Care,Day and Domicillary Care Independent Sector
Cambridgeshire County Council,29-Jul-16,21180405-13736381,-628.05,Westminster Homecare Limited,Care Establishment,2 - Operations - Learning Disability,LDP E Cambs Locality - Care,Day and Domicillary Care Independent Sector
Cambridgeshire County Council,29-Jul-16,21180407-13736383,-628.05,Westminster Homecare Limited,Care Establishment,2 - Operations - Learning Disability,LDP E Cambs Locality - Care,Day and Domicillary Care Independent Sector
Cambridgeshire County Council,29-Jul-16,21180408-13736384,-628.05,Westminster Homecare Limited,Care Establishment,2 - Operations - Learning Disability,LDP E Cambs Locality - Care,Day and Domicillary Care Independent Sector
Cambridgeshire County Council,29-Jul-16,21180409-13736385,-628.05,Westminster Homecare Limited,Care Establishment,2 - Operations - Learning Disability,LDP E Cambs Locality - Care,Day and Domicillary Care Independent Sector
Cambridgeshire County Council,29-Jul-16,21180411-13736387,-628.05,Westminster Homecare Limited,Care Establishment,2 - Operations - Learning Disability,LDP E Cambs Locality - Care,Day and Domicillary Care Independent Sector
Cambridgeshire County Council,29-Jul-16,21180412-13736388,-628.05,Westminster Homecare Limited,Care Establishment,2 - Operations - Learning Disability,LDP E Cambs Locality - Care,Day and Domicillary Care Independent Sector
Cambridgeshire County Council,29-Jul-16,21180413-13736389,-628.05,Westminster Homecare Limited,Care Establishment,2 - Operations - Learning Disability,LDP E Cambs Locality - Care,Day and Domicillary Care Independent Sector
Cambridgeshire County Council,29-Jul-16,21180415-13736391,-628.05,Westminster Homecare Limited,Care Establishment,2 - Operations - Learning Disability,LDP E Cambs Locality - Care,Day and Domicillary Care Independent Sector
Cambridgeshire County Council,29-Jul-16,21180418-13736394,-628.05,Westminster Homecare Limited,Care Establishment,2 - Operations - Learning Disability,LDP E Cambs Locality - Care,Day and Domicillary Care Independent Sector
Cambridgeshire County Council,29-Jul-16,21180419-13736395,-628.05,Westminster Homecare Limited,Care Establishment,2 - Operations - Learning Disability,LDP E Cambs Locality - Care,Day and Domicillary Care Independent Sector
Cambridgeshire County Council,29-Jul-16,21180420-13736396,-628.05,Westminster Homecare Limited,Care Establishment,2 - Operations - Learning Disability,LDP E Cambs Locality - Care,Day and Domicillary Care Independent Sector
Cambridgeshire County Council,29-Jul-16,21180423-13736398,-628.05,Westminster Homecare Limited,Care Establishment,2 - Operations - Learning Disability,LDP E Cambs Locality - Care,Day and Domicillary Care Independent Sector
Cambridgeshire County Council,29-Jul-16,21181075-13736251,-628.05,Westminster Homecare Limited,Care Establishment,2 - Operations - Learning Disability,LDP E Cambs Special Needs,Day and Domicillary Care Independent Sector
Cambridgeshire County Council,29-Jul-16,21181082-13736257,-628.05,Westminster Homecare Limited,Care Establishment,2 - Operations - Learning Disability,LDP E Cambs Special Needs,Day and Domicillary Care Independent Sector
Cambridgeshire County Council,29-Jul-16,21181083-13736258,-628.05,Westminster Homecare Limited,Care Establishment,2 - Operations - Learning Disability,LDP E Cambs Special Needs,Day and Domicillary Care Independent Sector
Cambridgeshire County Council,29-Jul-16,21181093-13736265,-628.05,Westminster Homecare Limited,Care Establishment,2 - Operations - Learning Disability,LDP E Cambs Special Needs,Day and Domicillary Care Independent Sector
Cambridgeshire County Council,29-Jul-16,21181110-13736279,-628.05,Westminster Homecare Limited,Care Establishment,2 - Operations - Learning Disability,LDP E Cambs Special Needs,Day and Domicillary Care Independent Sector
Cambridgeshire County Council,29-Jul-16,21181114-13736283,-628.05,Westminster Homecare Limited,Care Establishment,2 - Operations - Learning Disability,LDP E Cambs Special Needs,Day and Domicillary Care Independent Sector
Cambridgeshire County Council,29-Jul-16,21181115-13736284,-628.05,Westminster Homecare Limited,Care Establishment,2 - Operations - Learning Disability,LDP E Cambs Special Needs,Day and Domicillary Care Independent Sector
Cambridgeshire County Council,29-Jul-16,21181117-13736286,-628.05,Westminster Homecare Limited,Care Establishment,2 - Operations - Learning Disability,LDP E Cambs Special Needs,Day and Domicillary Care Independent Sector
Cambridgeshire County Council,29-Jul-16,21181121-13736288,-628.05,Westminster Homecare Limited,Care Establishment,2 - Operations - Learning Disability,LDP E Cambs Special Needs,Day and Domicillary Care Independent Sector
Cambridgeshire County Council,29-Jul-16,21181123-13736290,-628.05,Westminster Homecare Limited,Care Establishment,2 - Operations - Learning Disability,LDP E Cambs Special Needs,Day and Domicillary Care Independent Sector
Cambridgeshire County Council,29-Jul-16,21181125-13736292,-628.05,Westminster Homecare Limited,Care Establishment,2 - Operations - Learning Disability,LDP E Cambs Special Needs,Day and Domicillary Care Independent Sector
Cambridgeshire County Council,29-Jul-16,21181128-13736295,-628.05,Westminster Homecare Limited,Care Establishment,2 - Operations - Learning Disability,LDP E Cambs Special Needs,Day and Domicillary Care Independent Sector
Cambridgeshire County Council,29-Jul-16,21181130-13736297,-628.05,Westminster Homecare Limited,Care Establishment,2 - Operations - Learning Disability,LDP E Cambs Special Needs,Day and Domicillary Care Independent Sector
Cambridgeshire County Council,29-Jul-16,21181133-13736298,-628.05,Westminster Homecare Limited,Care Establishment,2 - Operations - Learning Disability,LDP E Cambs Special Needs,Day and Domicillary Care Independent Sector
Cambridgeshire County Council,29-Jul-16,21181143-13736226,-628.05,Westminster Homecare Limited,Care Establishment,2 - Operations - Learning Disability,LDP E Cambs Special Needs,Day and Domicillary Care Independent Sector
Cambridgeshire County Council,29-Jul-16,21185224-13737020,-628.05,Westminster Homecare Limited,Care Establishment,2 - Operations - Learning Disability,LDP E Cambs Locality - Care,Supported Living
Cambridgeshire County Council,29-Jul-16,21185229-13737022,-628.05,Westminster Homecare Limited,Care Establishment,2 - Operations - Learning Disability,LDP E Cambs Locality - Care,Supported Living
Cambridgeshire County Council,29-Jul-16,21185231-13737023,-628.05,Westminster Homecare Limited,Care Establishment,2 - Operations - Learning Disability,LDP E Cambs Locality - Care,Supported Living
Cambridgeshire County Council,29-Jul-16,21185232-13737024,-628.05,Westminster Homecare Limited,Care Establishment,2 - Operations - Learning Disability,LDP E Cambs Locality - Care,Supported Living
Cambridgeshire County Council,29-Jul-16,21185238-13737082,-628.05,Westminster Homecare Limited,Care Establishment,2 - Operations - Learning Disability,LDP E Cambs Locality - Care,Supported Living
Cambridgeshire County Council,29-Jul-16,21185244-13737085,-628.05,Westminster Homecare Limited,Care Establishment,2 - Operations - Learning Disability,LDP E Cambs Locality - Care,Supported Living
Cambridgeshire County Council,29-Jul-16,21185265-13737092,-628.05,Westminster Homecare Limited,Care Establishment,2 - Operations - Learning Disability,LDP E Cambs Locality - Care,Supported Living
Cambridgeshire County Council,29-Jul-16,21185266-13737093,-628.05,Westminster Homecare Limited,Care Establishment,2 - Operations - Learning Disability,LDP E Cambs Locality - Care,Supported Living
Cambridgeshire County Council,29-Jul-16,21185271-13737096,-628.05,Westminster Homecare Limited,Care Establishment,2 - Operations - Learning Disability,LDP E Cambs Locality - Care,Supported Living
Cambridgeshire County Council,29-Jul-16,21185274-13737098,-628.05,Westminster Homecare Limited,Care Establishment,2 - Operations - Learning Disability,LDP E Cambs Locality - Care,Supported Living
Cambridgeshire County Council,29-Jul-16,21185276-13737100,-628.05,Westminster Homecare Limited,Care Establishment,2 - Operations - Learning Disability,LDP E Cambs Locality - Care,Supported Living
Cambridgeshire County Council,29-Jul-16,21185278-13737101,-628.05,Westminster Homecare Limited,Care Establishment,2 - Operations - Learning Disability,LDP E Cambs Locality - Care,Supported Living
Cambridgeshire County Council,29-Jul-16,21185640-13736944,-628.05,Westminster Homecare Limited,Care Establishment,2 - Operations - Learning Disability,LDP E Cambs Locality - Care,Day and Domicillary Care Independent Sector
Cambridgeshire County Council,29-Jul-16,21185643-13736947,-628.05,Westminster Homecare Limited,Care Establishment,2 - Operations - Learning Disability,LDP E Cambs Locality - Care,Day and Domicillary Care Independent Sector
Cambridgeshire County Council,29-Jul-16,21186027-13736876,-628.05,Westminster Homecare Limited,Care Establishment,2 - Operations - Learning Disability,LDP E Cambs Locality - Care,Supported Living
Cambridgeshire County Council,29-Jul-16,21186029-13736878,-628.05,Westminster Homecare Limited,Care Establishment,2 - Operations - Learning Disability,LDP E Cambs Locality - Care,Supported Living
Cambridgeshire County Council,29-Jul-16,21186035-13736879,-628.05,Westminster Homecare Limited,Care Establishment,2 - Operations - Learning Disability,LDP E Cambs Locality - Care,Supported Living
Cambridgeshire County Council,29-Jul-16,21186499-13736766,-628.05,Westminster Homecare Limited,Care Establishment,2 - Operations - Learning Disability,LDP E Cambs Locality - Care,Day and Domicillary Care Independent Sector
Cambridgeshire County Council,29-Jul-16,21186500-13736767,-628.05,Westminster Homecare Limited,Care Establishment,2 - Operations - Learning Disability,LDP E Cambs Locality - Care,Day and Domicillary Care Independent Sector
Cambridgeshire County Council,29-Jul-16,21186501-13736768,-628.05,Westminster Homecare Limited,Care Establishment,2 - Operations - Learning Disability,LDP E Cambs Locality - Care,Day and Domicillary Care Independent Sector
Cambridgeshire County Council,29-Jul-16,21186503-13736770,-628.05,Westminster Homecare Limited,Care Establishment,2 - Operations - Learning Disability,LDP E Cambs Locality - Care,Day and Domicillary Care Independent Sector
Cambridgeshire County Council,29-Jul-16,21186509-13736776,-628.05,Westminster Homecare Limited,Care Establishment,2 - Operations - Learning Disability,LDP E Cambs Locality - Care,Day and Domicillary Care Independent Sector
Cambridgeshire County Council,29-Jul-16,21186511-13736778,-628.05,Westminster Homecare Limited,Care Establishment,2 - Operations - Learning Disability,LDP E Cambs Locality - Care,Day and Domicillary Care Independent Sector
Cambridgeshire County Council,29-Jul-16,21186512-13736750,-628.05,Westminster Homecare Limited,Care Establishment,2 - Operations - Learning Disability,LDP E Cambs Locality - Care,Day and Domicillary Care Independent Sector
Cambridgeshire County Council,29-Jul-16,21186513-13736751,-628.05,Westminster Homecare Limited,Care Establishment,2 - Operations - Learning Disability,LDP E Cambs Locality - Care,Day and Domicillary Care Independent Sector
Cambridgeshire County Council,29-Jul-16,21186515-13736753,-628.05,Westminster Homecare Limited,Care Establishment,2 - Operations - Learning Disability,LDP E Cambs Locality - Care,Day and Domicillary Care Independent Sector
Cambridgeshire County Council,29-Jul-16,21186516-13736754,-628.05,Westminster Homecare Limited,Care Establishment,2 - Operations - Learning Disability,LDP E Cambs Locality - Care,Day and Domicillary Care Independent Sector
Cambridgeshire County Council,29-Jul-16,21186518-13736756,-628.05,Westminster Homecare Limited,Care Establishment,2 - Operations - Learning Disability,LDP E Cambs Locality - Care,Day and Domicillary Care Independent Sector
Cambridgeshire County Council,29-Jul-16,21186521-13736759,-628.05,Westminster Homecare Limited,Care Establishment,2 - Operations - Learning Disability,LDP E Cambs Locality - Care,Day and Domicillary Care Independent Sector
Cambridgeshire County Council,29-Jul-16,21186522-13736760,-628.05,Westminster Homecare Limited,Care Establishment,2 - Operations - Learning Disability,LDP E Cambs Locality - Care,Day and Domicillary Care Independent Sector
Cambridgeshire County Council,21-Jul-16,21085961-13687991,-625,Black Swan International Ltd,Care Establishment,2 - Commissioning - Older people Pool,Older People - Fenland,Residential Independent Sector
Cambridgeshire County Council,21-Jul-16,21085962-13687992,-625,Black Swan International Ltd,Care Establishment,2 - Commissioning - Older people Pool,Older People - Fenland,Residential Independent Sector
Cambridgeshire County Council,29-Jul-16,21187114-13736627,-621.84,Westminster Homecare Limited,Care Establishment,2 - Operations - Learning Disability,LDP E Cambs Locality - Care,Supported Living
Cambridgeshire County Council,29-Jul-16,21187117-13736630,-621.84,Westminster Homecare Limited,Care Establishment,2 - Operations - Learning Disability,LDP E Cambs Locality - Care,Supported Living
Cambridgeshire County Council,29-Jul-16,21187119-13736632,-621.84,Westminster Homecare Limited,Care Establishment,2 - Operations - Learning Disability,LDP E Cambs Locality - Care,Supported Living
Cambridgeshire County Council,29-Jul-16,21187122-13736635,-621.84,Westminster Homecare Limited,Care Establishment,2 - Operations - Learning Disability,LDP E Cambs Locality - Care,Supported Living
Cambridgeshire County Council,29-Jul-16,21187126-13736571,-621.84,Westminster Homecare Limited,Care Establishment,2 - Operations - Learning Disability,LDP E Cambs Locality - Care,Supported Living
Cambridgeshire County Council,29-Jul-16,21187128-13736573,-621.84,Westminster Homecare Limited,Care Establishment,2 - Operations - Learning Disability,LDP E Cambs Locality - Care,Supported Living
Cambridgeshire County Council,29-Jul-16,21187131-13736576,-621.84,Westminster Homecare Limited,Care Establishment,2 - Operations - Learning Disability,LDP E Cambs Locality - Care,Supported Living
Cambridgeshire County Council,29-Jul-16,21187132-13736577,-621.84,Westminster Homecare Limited,Care Establishment,2 - Operations - Learning Disability,LDP E Cambs Locality - Care,Supported Living
Cambridgeshire County Council,29-Jul-16,21187133-13736578,-621.84,Westminster Homecare Limited,Care Establishment,2 - Operations - Learning Disability,LDP E Cambs Locality - Care,Supported Living
Cambridgeshire County Council,29-Jul-16,21187136-13736581,-621.84,Westminster Homecare Limited,Care Establishment,2 - Operations - Learning Disability,LDP E Cambs Locality - Care,Supported Living
Cambridgeshire County Council,29-Jul-16,21187137-13736582,-621.84,Westminster Homecare Limited,Care Establishment,2 - Operations - Learning Disability,LDP E Cambs Locality - Care,Supported Living
Cambridgeshire County Council,29-Jul-16,21187138-13736583,-621.84,Westminster Homecare Limited,Care Establishment,2 - Operations - Learning Disability,LDP E Cambs Locality - Care,Supported Living
Cambridgeshire County Council,29-Jul-16,21187139-13736584,-621.84,Westminster Homecare Limited,Care Establishment,2 - Operations - Learning Disability,LDP E Cambs Locality - Care,Supported Living
Cambridgeshire County Council,29-Jul-16,21187140-13736585,-621.84,Westminster Homecare Limited,Care Establishment,2 - Operations - Learning Disability,LDP E Cambs Locality - Care,Supported Living
Cambridgeshire County Council,29-Jul-16,21187145-13736607,-621.84,Westminster Homecare Limited,Care Establishment,2 - Operations - Learning Disability,LDP E Cambs Locality - Care,Supported Living
Cambridgeshire County Council,21-Jul-16,21135364-13676736,-618.6,Hardwick Dene,Care Establishment,2 - Commissioning - Older people Pool,Older People Mental Health Hunts,Residential Independent Sector
Cambridgeshire County Council,21-Jul-16,21007493-13677223,-610.78,St George'S Court,Care Establishment,2 - Commissioning - Older people Pool,Older People - City & South,Nursing Independent Sector
Cambridgeshire County Council,29-Jul-16,21187652-13734470,-603.6,Redacted Personal Data,Individual,2 - Commissioning - Older people Pool,East Cambs - O P Team,Direct Payments - Social Services
Cambridgeshire County Council,29-Jul-16,21187653-13734471,-603.6,Redacted Personal Data,Individual,2 - Commissioning - Older people Pool,East Cambs - O P Team,Direct Payments - Social Services
Cambridgeshire County Council,29-Jul-16,21187654-13734472,-603.6,Redacted Personal Data,Individual,2 - Commissioning - Older people Pool,East Cambs - O P Team,Direct Payments - Social Services
Cambridgeshire County Council,29-Jul-16,21187656-13734474,-603.6,Redacted Personal Data,Individual,2 - Commissioning - Older people Pool,East Cambs - O P Team,Direct Payments - Social Services
Cambridgeshire County Council,29-Jul-16,21187659-13734477,-603.6,Redacted Personal Data,Individual,2 - Commissioning - Older people Pool,East Cambs - O P Team,Direct Payments - Social Services
Cambridgeshire County Council,29-Jul-16,21187663-13734480,-603.6,Redacted Personal Data,Individual,2 - Commissioning - Older people Pool,East Cambs - O P Team,Direct Payments - Social Services
Cambridgeshire County Council,29-Jul-16,21187664-13734481,-603.6,Redacted Personal Data,Individual,2 - Commissioning - Older people Pool,East Cambs - O P Team,Direct Payments - Social Services
Cambridgeshire County Council,29-Jul-16,21187670-13734486,-603.6,Redacted Personal Data,Individual,2 - Commissioning - Older people Pool,East Cambs - O P Team,Direct Payments - Social Services
Cambridgeshire County Council,29-Jul-16,21187671-13734487,-603.6,Redacted Personal Data,Individual,2 - Commissioning - Older people Pool,East Cambs - O P Team,Direct Payments - Social Services
Cambridgeshire County Council,29-Jul-16,21187673-13734488,-603.6,Redacted Personal Data,Individual,2 - Commissioning - Older people Pool,East Cambs - O P Team,Direct Payments - Social Services
Cambridgeshire County Council,29-Jul-16,21187674-13734489,-603.6,Redacted Personal Data,Individual,2 - Commissioning - Older people Pool,East Cambs - O P Team,Direct Payments - Social Services
Cambridgeshire County Council,29-Jul-16,21187680-13734457,-603.6,Redacted Personal Data,Individual,2 - Commissioning - Older people Pool,East Cambs - O P Team,Direct Payments - Social Services
Cambridgeshire County Council,29-Jul-16,21187685-13734462,-603.6,Redacted Personal Data,Individual,2 - Commissioning - Older people Pool,East Cambs - O P Team,Direct Payments - Social Services
Cambridgeshire County Council,29-Jul-16,21187686-13734463,-603.6,Redacted Personal Data,Individual,2 - Commissioning - Older people Pool,East Cambs - O P Team,Direct Payments - Social Services
Cambridgeshire County Council,08-Jul-16,21087396-13622252,-600.29,Midfield Lodge Care Centre,Care Establishment,2 - Commissioning - Older people Pool,Older People - City & South,Nursing Independent Sector
Cambridgeshire County Council,08-Jul-16,21087397-13622253,-600.29,Midfield Lodge Care Centre,Care Establishment,2 - Commissioning - Older people Pool,Older People - City & South,Nursing Independent Sector
Cambridgeshire County Council,08-Jul-16,21087399-13622255,-600.29,Midfield Lodge Care Centre,Care Establishment,2 - Commissioning - Older people Pool,Older People - City & South,Nursing Independent Sector
Cambridgeshire County Council,08-Jul-16,21087400-13622256,-600.29,Midfield Lodge Care Centre,Care Establishment,2 - Commissioning - Older people Pool,Older People - City & South,Nursing Independent Sector
Cambridgeshire County Council,08-Jul-16,21087401-13622257,-600.29,Midfield Lodge Care Centre,Care Establishment,2 - Commissioning - Older people Pool,Older People - City & South,Nursing Independent Sector
Cambridgeshire County Council,08-Jul-16,21087402-13622258,-600.29,Midfield Lodge Care Centre,Care Establishment,2 - Commissioning - Older people Pool,Older People - City & South,Nursing Independent Sector
Cambridgeshire County Council,08-Jul-16,21087403-13622259,-600.29,Midfield Lodge Care Centre,Care Establishment,2 - Commissioning - Older people Pool,Older People - City & South,Nursing Independent Sector
Cambridgeshire County Council,08-Jul-16,21087404-13622260,-600.29,Midfield Lodge Care Centre,Care Establishment,2 - Commissioning - Older people Pool,Older People - City & South,Nursing Independent Sector
Cambridgeshire County Council,21-Jul-16,21143754-13688757,-600.29,Midfield Lodge Care Centre,Care Establishment,2 - Commissioning - Older people Pool,Older People - City & South,Nursing Independent Sector
Cambridgeshire County Council,21-Jul-16,21143755-13688758,-600.29,Midfield Lodge Care Centre,Care Establishment,2 - Commissioning - Older people Pool,Older People - City & South,Nursing Independent Sector
Cambridgeshire County Council,21-Jul-16,21143756-13688759,-600.29,Midfield Lodge Care Centre,Care Establishment,2 - Commissioning - Older people Pool,Older People - City & South,Nursing Independent Sector
Cambridgeshire County Council,21-Jul-16,21143759-13688762,-600.29,Midfield Lodge Care Centre,Care Establishment,2 - Commissioning - Older people Pool,Older People - City & South,Nursing Independent Sector
Cambridgeshire County Council,21-Jul-16,21143762-13688765,-600.29,Midfield Lodge Care Centre,Care Establishment,2 - Commissioning - Older people Pool,Older People - City & South,Nursing Independent Sector
Cambridgeshire County Council,21-Jul-16,21143763-13688766,-600.29,Midfield Lodge Care Centre,Care Establishment,2 - Commissioning - Older people Pool,Older People - City & South,Nursing Independent Sector
Cambridgeshire County Council,21-Jul-16,21143766-13688769,-600.29,Midfield Lodge Care Centre,Care Establishment,2 - Commissioning - Older people Pool,Older People - City & South,Nursing Independent Sector
Cambridgeshire County Council,21-Jul-16,21143769-13688772,-600.29,Midfield Lodge Care Centre,Care Establishment,2 - Commissioning - Older people Pool,Older People - City & South,Nursing Independent Sector
Cambridgeshire County Council,21-Jul-16,21143770-13688773,-600.29,Midfield Lodge Care Centre,Care Establishment,2 - Commissioning - Older people Pool,Older People - City & South,Nursing Independent Sector
Cambridgeshire County Council,21-Jul-16,21143771-13688774,-600.29,Midfield Lodge Care Centre,Care Establishment,2 - Commissioning - Older people Pool,Older People - City & South,Nursing Independent Sector
Cambridgeshire County Council,21-Jul-16,21143772-13688775,-600.29,Midfield Lodge Care Centre,Care Establishment,2 - Commissioning - Older people Pool,Older People - City & South,Nursing Independent Sector
Cambridgeshire County Council,21-Jul-16,21143775-13688737,-600.29,Midfield Lodge Care Centre,Care Establishment,2 - Commissioning - Older people Pool,Older People - City & South,Nursing Independent Sector
Cambridgeshire County Council,21-Jul-16,21143776-13688738,-600.29,Midfield Lodge Care Centre,Care Establishment,2 - Commissioning - Older people Pool,Older People - City & South,Nursing Independent Sector
Cambridgeshire County Council,21-Jul-16,21143785-13688747,-600.29,Midfield Lodge Care Centre,Care Establishment,2 - Commissioning - Older people Pool,Older People - City & South,Nursing Independent Sector
Cambridgeshire County Council,21-Jul-16,21143786-13688748,-600.29,Midfield Lodge Care Centre,Care Establishment,2 - Commissioning - Older people Pool,Older People - City & South,Nursing Independent Sector
Cambridgeshire County Council,21-Jul-16,21143787-13688749,-600.29,Midfield Lodge Care Centre,Care Establishment,2 - Commissioning - Older people Pool,Older People - City & South,Nursing Independent Sector
Cambridgeshire County Council,21-Jul-16,21143789-13688751,-600.29,Midfield Lodge Care Centre,Care Establishment,2 - Commissioning - Older people Pool,Older People - City & South,Nursing Independent Sector
Cambridgeshire County Council,14-Jul-16,21113934-13644638,-567.05,Farrington Care Homes Ltd T/A Woodlands Residential Care Home,Care Establishment,2 - Commissioning - Older people Pool,Older People - City & South,Residential Independent Sector
Cambridgeshire County Council,14-Jul-16,21113937-13644641,-567.05,Farrington Care Homes Ltd T/A Woodlands Residential Care Home,Care Establishment,2 - Commissioning - Older people Pool,Older People - City & South,Residential Independent Sector
Cambridgeshire County Council,14-Jul-16,21113940-13644644,-567.05,Farrington Care Homes Ltd T/A Woodlands Residential Care Home,Care Establishment,2 - Commissioning - Older people Pool,Older People - City & South,Residential Independent Sector
Cambridgeshire County Council,14-Jul-16,21113941-13644645,-567.05,Farrington Care Homes Ltd T/A Woodlands Residential Care Home,Care Establishment,2 - Commissioning - Older people Pool,Older People - City & South,Residential Independent Sector
Cambridgeshire County Council,14-Jul-16,21113944-13644648,-567.05,Farrington Care Homes Ltd T/A Woodlands Residential Care Home,Care Establishment,2 - Commissioning - Older people Pool,Older People - City & South,Residential Independent Sector
Cambridgeshire County Council,21-Jul-16,21153317-13686964,-567,The Elms Nursing Home,Care Establishment,2 - Commissioning - Older people Pool,Older People - Fenland,Nursing Independent Sector
Cambridgeshire County Council,21-Jul-16,21153335-13686965,-567,The Elms Nursing Home,Care Establishment,2 - Commissioning - Older people Pool,Older People - Fenland,Nursing Independent Sector
Cambridgeshire County Council,29-Jul-16,21180482-13732169,-566.39,Cambridge Manor Care Home (Tlc),Care Establishment,2 - Commissioning - Older people Pool,Older People - City & South,Nursing Independent Sector
Cambridgeshire County Council,29-Jul-16,21180485-13732172,-566.39,Cambridge Manor Care Home (Tlc),Care Establishment,2 - Commissioning - Older people Pool,Older People - City & South,Nursing Independent Sector
Cambridgeshire County Council,21-Jul-16,21146970-13672874,-559.76,Midas Care Ltd,Care Establishment,3 - Operations - Countywide Services,Countywide PD Service - Care,Day and Domicillary Care Independent Sector
Cambridgeshire County Council,21-Jul-16,21147879-13672772,-559.76,Midas Care Ltd,Care Establishment,3 - Operations - Countywide Services,Countywide PD Service - Care,Day and Domicillary Care Independent Sector
Cambridgeshire County Council,21-Jul-16,21001829-13684734,-556.5,Abbott Healthcare Ltd,Care Establishment,2 - Commissioning - Older people Pool,Older People - City & South,Short Term Other
Cambridgeshire County Council,21-Jul-16,21001832-13684737,-556.5,Abbott Healthcare Ltd,Care Establishment,2 - Commissioning - Older people Pool,Older People - City & South,Short Term Other
Cambridgeshire County Council,21-Jul-16,21001833-13684738,-556.5,Abbott Healthcare Ltd,Care Establishment,2 - Commissioning - Older people Pool,Older People - City & South,Short Term Other
Cambridgeshire County Council,21-Jul-16,21001838-13684743,-556.5,Abbott Healthcare Ltd,Care Establishment,2 - Commissioning - Older people Pool,Older People - City & South,Short Term Other
Cambridgeshire County Council,21-Jul-16,21003395-13674269,-551,Llys Gwyn Residential Home,Care Establishment,2 - Commissioning - Older people Pool,Older People - City & South,Residential Independent Sector
Cambridgeshire County Council,21-Jul-16,21003396-13674270,-551,Llys Gwyn Residential Home,Care Establishment,2 - Commissioning - Older people Pool,Older People - City & South,Residential Independent Sector
Cambridgeshire County Council,21-Jul-16,21003397-13674271,-551,Llys Gwyn Residential Home,Care Establishment,2 - Commissioning - Older people Pool,Older People - City & South,Residential Independent Sector
Cambridgeshire County Council,21-Jul-16,21003398-13674272,-551,Llys Gwyn Residential Home,Care Establishment,2 - Commissioning - Older people Pool,Older People - City & South,Residential Independent Sector
Cambridgeshire County Council,21-Jul-16,21003400-13674274,-551,Llys Gwyn Residential Home,Care Establishment,2 - Commissioning - Older people Pool,Older People - City & South,Residential Independent Sector
Cambridgeshire County Council,21-Jul-16,21003401-13674275,-551,Llys Gwyn Residential Home,Care Establishment,2 - Commissioning - Older people Pool,Older People - City & South,Residential Independent Sector
Cambridgeshire County Council,21-Jul-16,21003404-13674277,-551,Llys Gwyn Residential Home,Care Establishment,2 - Commissioning - Older people Pool,Older People - City & South,Residential Independent Sector
Cambridgeshire County Council,21-Jul-16,21003408-13674279,-551,Llys Gwyn Residential Home,Care Establishment,2 - Commissioning - Older people Pool,Older People - City & South,Residential Independent Sector
Cambridgeshire County Council,21-Jul-16,21003412-13674282,-551,Llys Gwyn Residential Home,Care Establishment,2 - Commissioning - Older people Pool,Older People - City & South,Residential Independent Sector
Cambridgeshire County Council,21-Jul-16,21003418-13674285,-551,Llys Gwyn Residential Home,Care Establishment,2 - Commissioning - Older people Pool,Older People - City & South,Residential Independent Sector
Cambridgeshire County Council,21-Jul-16,21003422-13674288,-551,Llys Gwyn Residential Home,Care Establishment,2 - Commissioning - Older people Pool,Older People - City & South,Residential Independent Sector
Cambridgeshire County Council,14-Jul-16,21087142-13645089,-548.7,Aria Court,Care Establishment,2 - Commissioning - Older people Pool,Older People - Fenland,Respite Independent Sector
Cambridgeshire County Council,29-Jul-16,21177714-13736989,-538.33,Westminster Homecare Limited,Care Establishment,2 - Operations - Learning Disability,LDP E Cambs Locality - Care,Day and Domicillary Care Independent Sector
Cambridgeshire County Council,29-Jul-16,21181145-13736227,-538.33,Westminster Homecare Limited,Care Establishment,2 - Operations - Learning Disability,LDP E Cambs Special Needs,Day and Domicillary Care Independent Sector
Cambridgeshire County Council,29-Jul-16,21186026-13736875,-538.33,Westminster Homecare Limited,Care Establishment,2 - Operations - Learning Disability,LDP E Cambs Locality - Care,Supported Living
Cambridgeshire County Council,29-Jul-16,21186508-13736775,-538.33,Westminster Homecare Limited,Care Establishment,2 - Operations - Learning Disability,LDP E Cambs Locality - Care,Day and Domicillary Care Independent Sector
Cambridgeshire County Council,01-Jul-16,21001584-13582844,-538,Kingfisher House,Care Establishment,2 - Commissioning - Older people Pool,East Cambs - O P Team,Residential Independent Sector
Cambridgeshire County Council,01-Jul-16,21001589-13582849,-538,Kingfisher House,Care Establishment,2 - Commissioning - Older people Pool,East Cambs - O P Team,Residential Independent Sector
Cambridgeshire County Council,01-Jul-16,21001591-13582851,-538,Kingfisher House,Care Establishment,2 - Commissioning - Older people Pool,East Cambs - O P Team,Residential Independent Sector
Cambridgeshire County Council,29-Jul-16,21187135-13736580,-533.01,Westminster Homecare Limited,Care Establishment,2 - Operations - Learning Disability,LDP E Cambs Locality - Care,Supported Living
Cambridgeshire County Council,29-Jul-16,20519333-13732831,-527,Eastcotts Nursing Home,Care Establishment,2 - Commissioning - Older people Pool,Older People - Fenland,Nursing Independent Sector
Cambridgeshire County Council,29-Jul-16,20519334-13732832,-527,Eastcotts Nursing Home,Care Establishment,2 - Commissioning - Older people Pool,Older People - Fenland,Nursing Independent Sector
Cambridgeshire County Council,29-Jul-16,20519336-13732834,-527,Eastcotts Nursing Home,Care Establishment,2 - Commissioning - Older people Pool,Older People - Fenland,Nursing Independent Sector
Cambridgeshire County Council,29-Jul-16,20519337-13732835,-527,Eastcotts Nursing Home,Care Establishment,2 - Commissioning - Older people Pool,Older People - Fenland,Nursing Independent Sector
Cambridgeshire County Council,29-Jul-16,20519340-13732838,-527,Eastcotts Nursing Home,Care Establishment,2 - Commissioning - Older people Pool,Older People - Fenland,Nursing Independent Sector
Cambridgeshire County Council,29-Jul-16,20519341-13732839,-527,Eastcotts Nursing Home,Care Establishment,2 - Commissioning - Older people Pool,Older People - Fenland,Nursing Independent Sector
Cambridgeshire County Council,29-Jul-16,20519342-13732840,-527,Eastcotts Nursing Home,Care Establishment,2 - Commissioning - Older people Pool,Older People - Fenland,Nursing Independent Sector
Cambridgeshire County Council,21-Jul-16,21001979-13685324,-523.33,Primrose Healthcare,Care Establishment,2 - Commissioning - Older people Pool,East Cambs - O P Team,Respite Independent Sector
Cambridgeshire County Council,21-Jul-16,21142094-13681334,-522.5,Cambridgeshire Homecare,Care Establishment,2 - Commissioning - Older people Pool,Hunts O P  Team,Day and Domicillary Care Independent Sector
Cambridgeshire County Council,21-Jul-16,21142097-13681337,-522.5,Cambridgeshire Homecare,Care Establishment,2 - Commissioning - Older people Pool,Hunts O P  Team,Day and Domicillary Care Independent Sector
Cambridgeshire County Council,08-Jul-16,20963197-13619890,-518.4,Bill Ibbotts Catering Equipment Services Ltd,Company,S&C,"Catering - Property, Equipment & Maintenance",Repair of canteen equipment
Cambridgeshire County Council,21-Jul-16,21000612-13683510,-512.6,Buchan Healthcare Ltd,Care Establishment,2 - Commissioning - Older people Pool,Older People Mental Health City & South,Residential Independent Sector
Cambridgeshire County Council,21-Jul-16,21000613-13683511,-512.6,Buchan Healthcare Ltd,Care Establishment,2 - Commissioning - Older people Pool,Older People Mental Health City & South,Residential Independent Sector
Cambridgeshire County Council,21-Jul-16,21000614-13683512,-512.6,Buchan Healthcare Ltd,Care Establishment,2 - Commissioning - Older people Pool,Older People Mental Health City & South,Residential Independent Sector
Cambridgeshire County Council,21-Jul-16,21000615-13683513,-512.6,Buchan Healthcare Ltd,Care Establishment,2 - Commissioning - Older people Pool,Older People Mental Health City & South,Residential Independent Sector
Cambridgeshire County Council,21-Jul-16,21000617-13683515,-512.6,Buchan Healthcare Ltd,Care Establishment,2 - Commissioning - Older people Pool,Older People Mental Health City & South,Residential Independent Sector
Cambridgeshire County Council,21-Jul-16,21000618-13683516,-512.6,Buchan Healthcare Ltd,Care Establishment,2 - Commissioning - Older people Pool,Older People Mental Health City & South,Residential Independent Sector
Cambridgeshire County Council,21-Jul-16,21000619-13683517,-512.6,Buchan Healthcare Ltd,Care Establishment,2 - Commissioning - Older people Pool,Older People Mental Health City & South,Residential Independent Sector
Cambridgeshire County Council,21-Jul-16,21000620-13683518,-512.6,Buchan Healthcare Ltd,Care Establishment,2 - Commissioning - Older people Pool,Older People Mental Health City & South,Residential Independent Sector
Cambridgeshire County Council,21-Jul-16,21000621-13683519,-512.6,Buchan Healthcare Ltd,Care Establishment,2 - Commissioning - Older people Pool,Older People Mental Health City & South,Residential Independent Sector
Cambridgeshire County Council,21-Jul-16,21000622-13683520,-512.6,Buchan Healthcare Ltd,Care Establishment,2 - Commissioning - Older people Pool,Older People Mental Health City & South,Residential Independent Sector
Cambridgeshire County Council,29-Jul-16,21176914-13732783,-500,Bethany Francis House#1,Care Establishment,2 - Commissioning - Older people Pool,Hunts O P  Team,Residential Independent Sector
Cambridgeshire County Council,29-Jul-16,21176915-13732784,-500,Bethany Francis House#1,Care Establishment,2 - Commissioning - Older people Pool,Hunts O P  Team,Residential Independent Sector
Cambridgeshire County Council,29-Jul-16,21176916-13732785,-500,Bethany Francis House#1,Care Establishment,2 - Commissioning - Older people Pool,Hunts O P  Team,Residential Independent Sector
Cambridgeshire County Council,29-Jul-16,21176917-13732786,-500,Bethany Francis House#1,Care Establishment,2 - Commissioning - Older people Pool,Hunts O P  Team,Residential Independent Sector
Cambridgeshire County Council,29-Jul-16,21176918-13732787,-500,Bethany Francis House#1,Care Establishment,2 - Commissioning - Older people Pool,Hunts O P  Team,Residential Independent Sector
Cambridgeshire County Council,29-Jul-16,21176919-13732788,-500,Bethany Francis House#1,Care Establishment,2 - Commissioning - Older people Pool,Hunts O P  Team,Residential Independent Sector
Cambridgeshire County Council,29-Jul-16,21176920-13732789,-500,Bethany Francis House#1,Care Establishment,2 - Commissioning - Older people Pool,Hunts O P  Team,Residential Independent Sector
Cambridgeshire County Council,29-Jul-16,21176922-13732791,-500,Bethany Francis House#1,Care Establishment,2 - Commissioning - Older people Pool,Hunts O P  Team,Residential Independent Sector
Cambridgeshire County Council,29-Jul-16,21176923-13732792,-500,Bethany Francis House#1,Care Establishment,2 - Commissioning - Older people Pool,Hunts O P  Team,Residential Independent Sector
Cambridgeshire County Council,29-Jul-16,21176924-13732793,-500,Bethany Francis House#1,Care Establishment,2 - Commissioning - Older people Pool,Hunts O P  Team,Residential Independent Sector
Cambridgeshire County Council,29-Jul-16,21176925-13732794,-500,Bethany Francis House#1,Care Establishment,2 - Commissioning - Older people Pool,Hunts O P  Team,Residential Independent Sector
Cambridgeshire County Council,29-Jul-16,21176926-13732795,-500,Bethany Francis House#1,Care Establishment,2 - Commissioning - Older people Pool,Hunts O P  Team,Residential Independent Sector
Cambridgeshire County Council,29-Jul-16,21176927-13732796,-500,Bethany Francis House#1,Care Establishment,2 - Commissioning - Older people Pool,Hunts O P  Team,Residential Independent Sector
Cambridgeshire County Council,29-Jul-16,21176928-13732797,-500,Bethany Francis House#1,Care Establishment,2 - Commissioning - Older people Pool,Hunts O P  Team,Residential Independent Sector
Cambridgeshire County Council,29-Jul-16,21176929-13732798,-500,Bethany Francis House#1,Care Establishment,2 - Commissioning - Older people Pool,Hunts O P  Team,Residential Independent Sector
Cambridgeshire County Council,29-Jul-16,21176930-13732799,-500,Bethany Francis House#1,Care Establishment,2 - Commissioning - Older people Pool,Hunts O P  Team,Residential Independent Sector
Cambridgeshire County Council,01-Jul-16,21007933-13586554,500,Home Meadow Ltd,Care Establishment,2 - Commissioning - Older people Pool,Older People - City & South,Nursing Independent Sector
Cambridgeshire County Council,01-Jul-16,21008870-13587876,500,Redacted Personal Data,Parent/Guardian,3 - Operations - Countywide Services,Countywide PD Service - Care,Direct Payments - Social Services
Cambridgeshire County Council,01-Jul-16,21008871-13587877,500,Redacted Personal Data,Parent/Guardian,3 - Operations - Countywide Services,Countywide PD Service - Care,Direct Payments - Social Services
Cambridgeshire County Council,01-Jul-16,21008872-13587878,500,Redacted Personal Data,Parent/Guardian,3 - Operations - Countywide Services,Countywide PD Service - Care,Direct Payments - Social Services
Cambridgeshire County Council,01-Jul-16,21008873-13587879,500,Redacted Personal Data,Parent/Guardian,3 - Operations - Countywide Services,Countywide PD Service - Care,Direct Payments - Social Services
Cambridgeshire County Council,05-Jul-16,21044603-13599968,500,Fenland Association For Community Transport Ltd (Fact),Charity,2 - Commissioning - Older people Pool,Older People - Fenland - Staffing,SDS - PB Travel
Cambridgeshire County Council,06-Jul-16,21070751-13606925,500,Vivacity Culture And Leisure,Education,Corporate Services,Museum Partnership,Joint / Partnership Funding
Cambridgeshire County Council,07-Jul-16,21080762-13610905,500,Country Court Care Homes Limited,Care Establishment,LGSS,Miscellaneous - Other,Suspense/Other bodies Expenditure / Payments
Cambridgeshire County Council,08-Jul-16,21086981-13619009,500,Gokul Nivas Care Home,Care Establishment,2 - Commissioning - Older people Pool,Older People - Fenland,Residential Independent Sector
Cambridgeshire County Council,08-Jul-16,21086982-13619010,500,Gokul Nivas Care Home,Care Establishment,2 - Commissioning - Older people Pool,Older People - Fenland,Residential Independent Sector
Cambridgeshire County Council,08-Jul-16,21086983-13619011,500,Gokul Nivas Care Home,Care Establishment,2 - Commissioning - Older people Pool,Older People - Fenland,Residential Independent Sector
Cambridgeshire County Council,08-Jul-16,21086984-13619012,500,Gokul Nivas Care Home,Care Establishment,2 - Commissioning - Older people Pool,Older People - Fenland,Residential Independent Sector
Cambridgeshire County Council,08-Jul-16,21086985-13619013,500,Gokul Nivas Care Home,Care Establishment,2 - Commissioning - Older people Pool,Older People - Fenland,Residential Independent Sector
Cambridgeshire County Council,08-Jul-16,21086986-13619014,500,Gokul Nivas Care Home,Care Establishment,2 - Commissioning - Older people Pool,Older People - Fenland,Residential Independent Sector
Cambridgeshire County Council,08-Jul-16,21087522-13622009,500,Florence House(Ramsey) Residential Home For The Elderly,Care Establishment,2 - Commissioning - Older people Pool,Older People - City & South,Residential Independent Sector
Cambridgeshire County Council,08-Jul-16,21087524-13622010,500,Florence House(Ramsey) Residential Home For The Elderly,Care Establishment,2 - Commissioning - Older people Pool,Older People - City & South,Residential Independent Sector
Cambridgeshire County Council,08-Jul-16,21087526-13622011,500,Florence House(Ramsey) Residential Home For The Elderly,Care Establishment,2 - Commissioning - Older people Pool,Older People - City & South,Residential Independent Sector
Cambridgeshire County Council,08-Jul-16,21087527-13622012,500,Florence House(Ramsey) Residential Home For The Elderly,Care Establishment,2 - Commissioning - Older people Pool,Older People - City & South,Residential Independent Sector
Cambridgeshire County Council,08-Jul-16,21087528-13622013,500,Florence House(Ramsey) Residential Home For The Elderly,Care Establishment,2 - Commissioning - Older people Pool,Older People - City & South,Residential Independent Sector
Cambridgeshire County Council,08-Jul-16,21087531-13622014,500,Florence House(Ramsey) Residential Home For The Elderly,Care Establishment,2 - Commissioning - Older people Pool,Older People - City & South,Residential Independent Sector
Cambridgeshire County Council,21-Jul-16,21133529-13669439,500,Woodfield Court,Trade Supplier,2 - Commissioning - Older people Pool,East Cambs - O P Team,Residential Independent Sector
Cambridgeshire County Council,21-Jul-16,21133530-13669440,500,Woodfield Court,Trade Supplier,2 - Commissioning - Older people Pool,East Cambs - O P Team,Residential Independent Sector
Cambridgeshire County Council,21-Jul-16,21133531-13669441,500,Woodfield Court,Trade Supplier,2 - Commissioning - Older people Pool,East Cambs - O P Team,Residential Independent Sector
Cambridgeshire County Council,21-Jul-16,21133532-13669442,500,Woodfield Court,Trade Supplier,2 - Commissioning - Older people Pool,East Cambs - O P Team,Residential Independent Sector
Cambridgeshire County Council,21-Jul-16,21136358-13691163,500,Gokul Nivas Care Home,Care Establishment,2 - Commissioning - Older people Pool,Older People - Fenland,Residential Independent Sector
Cambridgeshire County Council,21-Jul-16,21136359-13691164,500,Gokul Nivas Care Home,Care Establishment,2 - Commissioning - Older people Pool,Older People - Fenland,Residential Independent Sector
Cambridgeshire County Council,21-Jul-16,21136360-13691165,500,Gokul Nivas Care Home,Care Establishment,2 - Commissioning - Older people Pool,Older People - Fenland,Residential Independent Sector
Cambridgeshire County Council,21-Jul-16,21136361-13691166,500,Gokul Nivas Care Home,Care Establishment,2 - Commissioning - Older people Pool,Older People - Fenland,Residential Independent Sector
Cambridgeshire County Council,21-Jul-16,21143464-13685998,500,The Gables Specialist Nursing Home,Care Establishment,2 - Commissioning - Older people Pool,Older People Mental Health Fenland,Residential Independent Sector
Cambridgeshire County Council,21-Jul-16,21143466-13685999,500,The Gables Specialist Nursing Home,Care Establishment,2 - Commissioning - Older people Pool,Older People Mental Health Fenland,Residential Independent Sector
Cambridgeshire County Council,21-Jul-16,21143467-13686000,500,The Gables Specialist Nursing Home,Care Establishment,2 - Commissioning - Older people Pool,Older People Mental Health Fenland,Residential Independent Sector
Cambridgeshire County Council,21-Jul-16,21143468-13686001,500,The Gables Specialist Nursing Home,Care Establishment,2 - Commissioning - Older people Pool,Older People Mental Health Fenland,Residential Independent Sector
Cambridgeshire County Council,21-Jul-16,21143572-13669449,500,Epsom (Residential Care Only (La/Nhs))(66784),Care Establishment,2 - Commissioning - Older people Pool,Older People - Fenland,Residential Independent Sector
Cambridgeshire County Council,21-Jul-16,21143573-13669450,500,Epsom (Residential Care Only (La/Nhs))(66784),Care Establishment,2 - Commissioning - Older people Pool,Older People - Fenland,Residential Independent Sector
Cambridgeshire County Council,21-Jul-16,21143574-13669451,500,Epsom (Residential Care Only (La/Nhs))(66784),Care Establishment,2 - Commissioning - Older people Pool,Older People - Fenland,Residential Independent Sector
Cambridgeshire County Council,21-Jul-16,21143575-13669452,500,Epsom (Residential Care Only (La/Nhs))(66784),Care Establishment,2 - Commissioning - Older people Pool,Older People - Fenland,Residential Independent Sector
Cambridgeshire County Council,25-Jul-16,21157337-13701080,500,Amanda Banks,Trade Supplier,LRNG,Moderation - Strategic Development,Other Hired Contract Services
Cambridgeshire County Council,29-Jul-16,21185693-13737861,500,Redacted Personal Data,Parent/Guardian,3 - Operations - Countywide Services,Countywide PD Service - Care,Direct Payments - Social Services
Cambridgeshire County Council,29-Jul-16,21185694-13737862,500,Redacted Personal Data,Parent/Guardian,3 - Operations - Countywide Services,Countywide PD Service - Care,Direct Payments - Social Services
Cambridgeshire County Council,29-Jul-16,21185695-13737863,500,Redacted Personal Data,Parent/Guardian,3 - Operations - Countywide Services,Countywide PD Service - Care,Direct Payments - Social Services
Cambridgeshire County Council,29-Jul-16,21185696-13737864,500,Redacted Personal Data,Parent/Guardian,3 - Operations - Countywide Services,Countywide PD Service - Care,Direct Payments - Social Services
Cambridgeshire County Council,12-Jul-16,21084413-13628695,500.01,Mind In Cambridgeshire,Charity,4 - Commissioning - Mental Health & Supporting People,Cambridge Mental Health team,Day and Domicillary Care Independent Sector
Cambridgeshire County Council,14-Jul-16,21115445-13645028,500.2,Beaches Community Car Scheme,Charity,Passenger Transport,Cambridgeshire Future Transport,Support - community transport
Cambridgeshire County Council,25-Jul-16,21118904-13701352,500.22,Veolia Environmental Services,Company,LRNG,Grafham Water Centre,Refuse collection charge
Cambridgeshire County Council,21-Jul-16,21133784-13683836,500.22,Home Meadow Ltd,Care Establishment,2 - Commissioning - Older people Pool,Older People - City & South,Residential Independent Sector
Cambridgeshire County Council,21-Jul-16,21133785-13683837,500.22,Home Meadow Ltd,Care Establishment,2 - Commissioning - Older people Pool,Older People - City & South,Residential Independent Sector
Cambridgeshire County Council,21-Jul-16,21133788-13683838,500.22,Home Meadow Ltd,Care Establishment,2 - Commissioning - Older people Pool,Older People - City & South,Residential Independent Sector
Cambridgeshire County Council,21-Jul-16,21133790-13683839,500.22,Home Meadow Ltd,Care Establishment,2 - Commissioning - Older people Pool,Older People - City & South,Residential Independent Sector
Cambridgeshire County Council,21-Jul-16,21135794-13683870,500.22,Home Meadow Ltd,Care Establishment,2 - Commissioning - Older people Pool,Older People - City & South,Residential Independent Sector
Cambridgeshire County Council,21-Jul-16,21135795-13683871,500.22,Home Meadow Ltd,Care Establishment,2 - Commissioning - Older people Pool,Older People - City & South,Residential Independent Sector
Cambridgeshire County Council,21-Jul-16,21135879-13683872,500.22,Home Meadow Ltd,Care Establishment,2 - Commissioning - Older people Pool,Older People - City & South,Residential Independent Sector
Cambridgeshire County Council,21-Jul-16,21135880-13683873,500.22,Home Meadow Ltd,Care Establishment,2 - Commissioning - Older people Pool,Older People - City & South,Residential Independent Sector
Cambridgeshire County Council,21-Jul-16,21140789-13683886,500.22,Home Meadow Ltd,Care Establishment,2 - Commissioning - Older people Pool,Older People - City & South,Residential Independent Sector
Cambridgeshire County Council,21-Jul-16,21140802-13683887,500.22,Home Meadow Ltd,Care Establishment,2 - Commissioning - Older people Pool,Older People - City & South,Residential Independent Sector
Cambridgeshire County Council,21-Jul-16,21140812-13683888,500.22,Home Meadow Ltd,Care Establishment,2 - Commissioning - Older people Pool,Older People - City & South,Residential Independent Sector
Cambridgeshire County Council,21-Jul-16,21140815-13683889,500.22,Home Meadow Ltd,Care Establishment,2 - Commissioning - Older people Pool,Older People - City & South,Residential Independent Sector
Cambridgeshire County Council,12-Jul-16,20935473-13628642,500.4,Quantec Consultants Limited,Trade Supplier,LGSS Managed,County Farms,County Farms Maintenance Planned
Cambridgeshire County Council,12-Jul-16,20935475-13628643,500.4,Quantec Consultants Limited,Trade Supplier,LGSS Managed,County Farms,County Farms Maintenance Planned
Cambridgeshire County Council,12-Jul-16,20935476-13628644,500.4,Quantec Consultants Limited,Trade Supplier,LGSS Managed,County Farms,County Farms Maintenance Planned
Cambridgeshire County Council,12-Jul-16,20935477-13628645,500.4,Quantec Consultants Limited,Trade Supplier,LGSS Managed,County Farms,County Farms Maintenance Planned
Cambridgeshire County Council,12-Jul-16,20935478-13628646,500.4,Quantec Consultants Limited,Trade Supplier,LGSS Managed,County Farms,County Farms Maintenance Planned
Cambridgeshire County Council,12-Jul-16,20935480-13628647,500.4,Quantec Consultants Limited,Trade Supplier,LGSS Managed,County Farms,County Farms Maintenance Planned
Cambridgeshire County Council,12-Jul-16,20936342-13628648,500.4,Quantec Consultants Limited,Trade Supplier,LGSS Managed,County Farms,County Farms Maintenance Planned
Cambridgeshire County Council,12-Jul-16,20936343-13628649,500.4,Quantec Consultants Limited,Trade Supplier,LGSS Managed,County Farms,County Farms Maintenance Planned
Cambridgeshire County Council,25-Jul-16,20997681-13701266,500.4,Quantec Consultants Limited,Trade Supplier,LGSS Managed,County Farms,County Farms Maintenance Planned
Cambridgeshire County Council,25-Jul-16,20997682-13701267,500.4,Quantec Consultants Limited,Trade Supplier,LGSS Managed,County Farms,County Farms Maintenance Planned
Cambridgeshire County Council,25-Jul-16,20997686-13701268,500.4,Quantec Consultants Limited,Trade Supplier,LGSS Managed,County Farms,County Farms Maintenance Planned
Cambridgeshire County Council,25-Jul-16,20997687-13701269,500.4,Quantec Consultants Limited,Trade Supplier,LGSS Managed,County Farms,County Farms Maintenance Planned
Cambridgeshire County Council,25-Jul-16,20997688-13701270,500.4,Quantec Consultants Limited,Trade Supplier,LGSS Managed,County Farms,County Farms Maintenance Planned
Cambridgeshire County Council,25-Jul-16,20997690-13701271,500.4,Quantec Consultants Limited,Trade Supplier,LGSS Managed,County Farms,County Farms Maintenance Planned
Cambridgeshire County Council,25-Jul-16,20999043-13701272,500.4,Quantec Consultants Limited,Trade Supplier,LGSS Managed,County Farms,County Farms Maintenance Planned
Cambridgeshire County Council,06-Jul-16,21076687-13606884,500.55,Redacted Personal Data,Parent/Guardian,CSC,CSC Direct Payments,Direct Payments - Social Services
Cambridgeshire County Council,20-Jul-16,21124751-13666475,501.6,Avery Berkel T/A Avery Weigh-Tronix,Trade Supplier,Winter Maintenance,Central Winter Maintenance,Building Maintenance
Cambridgeshire County Council,21-Jul-16,21132938-13690967,501.68,Hunters Healthcare (Hunters Down),Care Establishment,2 - Commissioning - Older people Pool,Hunts O P  Team,Residential Independent Sector
Cambridgeshire County Council,21-Jul-16,21132939-13690968,501.68,Hunters Healthcare (Hunters Down),Care Establishment,2 - Commissioning - Older people Pool,Hunts O P  Team,Residential Independent Sector
Cambridgeshire County Council,21-Jul-16,21132940-13690969,501.68,Hunters Healthcare (Hunters Down),Care Establishment,2 - Commissioning - Older people Pool,Hunts O P  Team,Residential Independent Sector
Cambridgeshire County Council,21-Jul-16,21132941-13690970,501.68,Hunters Healthcare (Hunters Down),Care Establishment,2 - Commissioning - Older people Pool,Hunts O P  Team,Residential Independent Sector
Cambridgeshire County Council,21-Jul-16,21149207-13690991,501.68,Hunters Healthcare (Hunters Down),Care Establishment,2 - Commissioning - Older people Pool,Hunts O P  Team,Residential Independent Sector
Cambridgeshire County Council,21-Jul-16,21149208-13690992,501.68,Hunters Healthcare (Hunters Down),Care Establishment,2 - Commissioning - Older people Pool,Hunts O P  Team,Residential Independent Sector
Cambridgeshire County Council,21-Jul-16,21149209-13690993,501.68,Hunters Healthcare (Hunters Down),Care Establishment,2 - Commissioning - Older people Pool,Hunts O P  Team,Residential Independent Sector
Cambridgeshire County Council,21-Jul-16,21149210-13690994,501.68,Hunters Healthcare (Hunters Down),Care Establishment,2 - Commissioning - Older people Pool,Hunts O P  Team,Residential Independent Sector
Cambridgeshire County Council,08-Jul-16,21085573-13620750,502.74,Redacted Personal Data,Individual,2 - Commissioning - Older people Pool,Older People - City & South,Direct Payments - Social Services
Cambridgeshire County Council,08-Jul-16,21085574-13620751,502.74,Redacted Personal Data,Individual,2 - Commissioning - Older people Pool,Older People - City & South,Direct Payments - Social Services
Cambridgeshire County Council,08-Jul-16,21085575-13620752,502.74,Redacted Personal Data,Individual,2 - Commissioning - Older people Pool,Older People - City & South,Direct Payments - Social Services
Cambridgeshire County Council,08-Jul-16,21085576-13620753,502.74,Redacted Personal Data,Individual,2 - Commissioning - Older people Pool,Older People - City & South,Direct Payments - Social Services
Cambridgeshire County Council,27-Jul-16,21172023-13716668,502.75,Redacted Personal Data,Individual,CSC,CSC Direct Payments,Direct Payments - Social Services
Cambridgeshire County Council,21-Jul-16,21147621-13669555,503.09,Loughton Hall,Care Establishment,2 - Commissioning - Older people Pool,Older People - City & South,Residential Independent Sector
Cambridgeshire County Council,21-Jul-16,21147622-13669556,503.09,Loughton Hall,Care Establishment,2 - Commissioning - Older people Pool,Older People - City & South,Residential Independent Sector
Cambridgeshire County Council,21-Jul-16,21147623-13669557,503.09,Loughton Hall,Care Establishment,2 - Commissioning - Older people Pool,Older People - City & South,Residential Independent Sector
Cambridgeshire County Council,21-Jul-16,21147624-13669558,503.09,Loughton Hall,Care Establishment,2 - Commissioning - Older people Pool,Older People - City & South,Residential Independent Sector
Cambridgeshire County Council,21-Jul-16,21133506-13679969,503.11,Cottenham Court Nursing Home,Care Establishment,2 - Commissioning - Older people Pool,Older People - City & South,Residential Independent Sector
Cambridgeshire County Council,21-Jul-16,21133514-13679970,503.11,Cottenham Court Nursing Home,Care Establishment,2 - Commissioning - Older people Pool,Older People - City & South,Residential Independent Sector
Cambridgeshire County Council,21-Jul-16,21139365-13679976,503.11,Cottenham Court Nursing Home,Care Establishment,2 - Commissioning - Older people Pool,Older People - City & South,Residential Independent Sector
Cambridgeshire County Council,21-Jul-16,21139369-13679977,503.11,Cottenham Court Nursing Home,Care Establishment,2 - Commissioning - Older people Pool,Older People - City & South,Residential Independent Sector
Cambridgeshire County Council,21-Jul-16,21152515-13684029,503.14,Abbott Healthcare Ltd,Care Establishment,2 - Commissioning - Older people Pool,Older People - City & South,Day and Domicillary Care Independent Sector
Cambridgeshire County Council,21-Jul-16,21152516-13684030,503.14,Abbott Healthcare Ltd,Care Establishment,2 - Commissioning - Older people Pool,Older People - City & South,Day and Domicillary Care Independent Sector
Cambridgeshire County Council,21-Jul-16,21152520-13684031,503.14,Abbott Healthcare Ltd,Care Establishment,2 - Commissioning - Older people Pool,Older People - City & South,Day and Domicillary Care Independent Sector
Cambridgeshire County Council,21-Jul-16,21152521-13684032,503.14,Abbott Healthcare Ltd,Care Establishment,2 - Commissioning - Older people Pool,Older People - City & South,Day and Domicillary Care Independent Sector
Cambridgeshire County Council,08-Jul-16,21087654-13619417,503.39,Home Choice Care Ltd,Care Establishment,3 - Operations - Countywide Services,Countywide PD Service - Care,Day and Domicillary Care Independent Sector
Cambridgeshire County Council,25-Jul-16,21098319-13700632,503.48,Chs Group,Care Establishment,2 - Operations - Learning Disability,LDP E Cambs Locality - Care,Supported Living
Cambridgeshire County Council,11-Jul-16,20971431-13623552,503.91,Lex Autolease Ltd,Trade Supplier,4 - Operations - Providers services,No. 18 Alder Close High Supported Living Scheme,Leased Vehicle Costs
Cambridgeshire County Council,01-Jul-16,20909706-13582866,504,Coach And Horses Guest House,Trade Supplier,CSC,CSC Hunts and Fenland Unit 3,Childrens Lodgings
Cambridgeshire County Council,08-Jul-16,20939362-13616967,504,Coach And Horses Guest House,Trade Supplier,CSC,CSC Hunts and Fenland Unit 3,Childrens Lodgings
Cambridgeshire County Council,14-Jul-16,20992919-13643849,504,Coach And Horses Guest House,Trade Supplier,CSC,CSC Hunts and Fenland Unit 3,Childrens Lodgings
Cambridgeshire County Council,25-Jul-16,21083067-13701212,504,Randstad Education Limited,Trade Supplier,E&P,SEND Specialist Services - Access & Inclusion,Pay - Supply Cover - Long-term supply
Cambridgeshire County Council,18-Jul-16,21083072-13658642,504,Randstad Education Limited,Trade Supplier,E&P,SEND Specialist Services - Access & Inclusion,Pay - Supply Cover - Long-term supply
Cambridgeshire County Council,19-Jul-16,21120625-13662592,504,Sixteen Plus,Care Establishment,CSC,Unaccompanied Asylum Seeking Children,Living support grants - Financial Assistance - Asylum Seekers
Cambridgeshire County Council,22-Jul-16,21127902-13696602,504,Coach And Horses Guest House,Trade Supplier,CSC,CSC Hunts and Fenland Unit 3,Childrens Lodgings
Cambridgeshire County Council,29-Jul-16,21130578-13731770,504,Coach And Horses Guest House,Trade Supplier,CSC,CSC Hunts and Fenland Unit 3,Childrens Lodgings
Cambridgeshire County Council,25-Jul-16,21130595-13700858,504,Anglian Taxi Service,Trade Supplier,S&C,Home to School Transport - Special,Home to School - Secondary
Cambridgeshire County Council,21-Jul-16,21148249-13689253,504.4,Westminster Homecare Limited,Care Establishment,2 - Commissioning - Older people Pool,Older People - City & South,Day and Domicillary Care Independent Sector
Cambridgeshire County Council,21-Jul-16,21148251-13689255,504.4,Westminster Homecare Limited,Care Establishment,2 - Commissioning - Older people Pool,Older People - City & South,Day and Domicillary Care Independent Sector
Cambridgeshire County Council,21-Jul-16,21148255-13689247,504.4,Westminster Homecare Limited,Care Establishment,2 - Commissioning - Older people Pool,Older People - City & South,Day and Domicillary Care Independent Sector
Cambridgeshire County Council,21-Jul-16,21148256-13689248,504.4,Westminster Homecare Limited,Care Establishment,2 - Commissioning - Older people Pool,Older People - City & South,Day and Domicillary Care Independent Sector
Cambridgeshire County Council,21-Jul-16,21148950-13689182,504.4,Westminster Homecare Limited,Care Establishment,2 - Commissioning - Older people Pool,Older People - City & South,Day and Domicillary Care Independent Sector
Cambridgeshire County Council,21-Jul-16,21148953-13689184,504.4,Westminster Homecare Limited,Care Establishment,2 - Commissioning - Older people Pool,Older People - City & South,Day and Domicillary Care Independent Sector
Cambridgeshire County Council,21-Jul-16,21148954-13689185,504.4,Westminster Homecare Limited,Care Establishment,2 - Commissioning - Older people Pool,Older People - City & South,Day and Domicillary Care Independent Sector
Cambridgeshire County Council,01-Jul-16,21001124-13582077,504.44,Redacted Personal Data,Individual,3 - Operations - Countywide Services,Countywide PD Service - Care,Direct Payments - Social Services
Cambridgeshire County Council,01-Jul-16,21001125-13582078,504.44,Redacted Personal Data,Individual,3 - Operations - Countywide Services,Countywide PD Service - Care,Direct Payments - Social Services
Cambridgeshire County Council,01-Jul-16,21001133-13582086,504.44,Redacted Personal Data,Individual,3 - Operations - Countywide Services,Countywide PD Service - Care,Direct Payments - Social Services
Cambridgeshire County Council,01-Jul-16,21001134-13582087,504.44,Redacted Personal Data,Individual,3 - Operations - Countywide Services,Countywide PD Service - Care,Direct Payments - Social Services
Cambridgeshire County Council,29-Jul-16,21184269-13730639,504.44,Redacted Personal Data,Individual,3 - Operations - Countywide Services,Countywide PD Service - Care,Direct Payments - Social Services
Cambridgeshire County Council,29-Jul-16,21184270-13730640,504.44,Redacted Personal Data,Individual,3 - Operations - Countywide Services,Countywide PD Service - Care,Direct Payments - Social Services
Cambridgeshire County Council,29-Jul-16,21184274-13730644,504.44,Redacted Personal Data,Individual,3 - Operations - Countywide Services,Countywide PD Service - Care,Direct Payments - Social Services
Cambridgeshire County Council,29-Jul-16,21184276-13730646,504.44,Redacted Personal Data,Individual,3 - Operations - Countywide Services,Countywide PD Service - Care,Direct Payments - Social Services
Cambridgeshire County Council,08-Jul-16,21088443-13619030,505,Parkside Nursing Home#1,Care Establishment,2 - Commissioning - Older people Pool,East Cambs - O P Team,Residential Independent Sector
Cambridgeshire County Council,21-Jul-16,21150484-13691171,505,Parkside Nursing Home#1,Care Establishment,2 - Commissioning - Older people Pool,East Cambs - O P Team,Residential Independent Sector
Cambridgeshire County Council,21-Jul-16,21150486-13691172,505,Parkside Nursing Home#1,Care Establishment,2 - Commissioning - Older people Pool,East Cambs - O P Team,Residential Independent Sector
Cambridgeshire County Council,21-Jul-16,21150489-13691173,505,Parkside Nursing Home#1,Care Establishment,2 - Commissioning - Older people Pool,East Cambs - O P Team,Residential Independent Sector
Cambridgeshire County Council,21-Jul-16,21150494-13691174,505,Parkside Nursing Home#1,Care Establishment,2 - Commissioning - Older people Pool,East Cambs - O P Team,Residential Independent Sector
Cambridgeshire County Council,13-Jul-16,21104756-13636671,505.08,Redacted Personal Data,Foster Parent,CSC,Adoption Allowances,Adoption Allowances
Cambridgeshire County Council,26-Jul-16,21162863-13704836,505.08,Redacted Personal Data,Foster Parent,CSC,Adoption Allowances,Adoption Allowances
Cambridgeshire County Council,25-Jul-16,21116491-13700657,505.61,Head Line Teacher Supply Service,Education,E&P,"St Neots Children's Centres	",Other Hired Contract Services
Cambridgeshire County Council,08-Jul-16,21087646-13619409,505.91,Home Choice Care Ltd,Care Establishment,3 - Operations - Countywide Services,Countywide PD Service - Care,Day and Domicillary Care Independent Sector
Cambridgeshire County Council,08-Jul-16,21087647-13619410,505.91,Home Choice Care Ltd,Care Establishment,3 - Operations - Countywide Services,Countywide PD Service - Care,Day and Domicillary Care Independent Sector
Cambridgeshire County Council,08-Jul-16,21087648-13619411,505.91,Home Choice Care Ltd,Care Establishment,3 - Operations - Countywide Services,Countywide PD Service - Care,Day and Domicillary Care Independent Sector
Cambridgeshire County Council,08-Jul-16,21087649-13619412,505.91,Home Choice Care Ltd,Care Establishment,3 - Operations - Countywide Services,Countywide PD Service - Care,Day and Domicillary Care Independent Sector
Cambridgeshire County Council,08-Jul-16,21087651-13619414,505.91,Home Choice Care Ltd,Care Establishment,3 - Operations - Countywide Services,Countywide PD Service - Care,Day and Domicillary Care Independent Sector
Cambridgeshire County Council,08-Jul-16,21087652-13619415,505.91,Home Choice Care Ltd,Care Establishment,3 - Operations - Countywide Services,Countywide PD Service - Care,Day and Domicillary Care Independent Sector
Cambridgeshire County Council,08-Jul-16,21087653-13619416,505.91,Home Choice Care Ltd,Care Establishment,3 - Operations - Countywide Services,Countywide PD Service - Care,Day and Domicillary Care Independent Sector
Cambridgeshire County Council,08-Jul-16,21087655-13619418,505.91,Home Choice Care Ltd,Care Establishment,3 - Operations - Countywide Services,Countywide PD Service - Care,Day and Domicillary Care Independent Sector
Cambridgeshire County Council,08-Jul-16,21088232-13619406,505.91,Home Choice Care Ltd,Care Establishment,3 - Operations - Countywide Services,Countywide PD Service - Care,Day and Domicillary Care Independent Sector
Cambridgeshire County Council,08-Jul-16,21088233-13619407,505.91,Home Choice Care Ltd,Care Establishment,3 - Operations - Countywide Services,Countywide PD Service - Care,Day and Domicillary Care Independent Sector
Cambridgeshire County Council,08-Jul-16,21088234-13619408,505.91,Home Choice Care Ltd,Care Establishment,3 - Operations - Countywide Services,Countywide PD Service - Care,Day and Domicillary Care Independent Sector
Cambridgeshire County Council,21-Jul-16,21143407-13671974,505.91,Home Choice Care Ltd,Care Establishment,3 - Operations - Countywide Services,Countywide PD Service - Care,Day and Domicillary Care Independent Sector
Cambridgeshire County Council,21-Jul-16,21143408-13671975,505.91,Home Choice Care Ltd,Care Establishment,3 - Operations - Countywide Services,Countywide PD Service - Care,Day and Domicillary Care Independent Sector
Cambridgeshire County Council,21-Jul-16,21143413-13671977,505.91,Home Choice Care Ltd,Care Establishment,3 - Operations - Countywide Services,Countywide PD Service - Care,Day and Domicillary Care Independent Sector
Cambridgeshire County Council,21-Jul-16,21135295-13669696,505.98,Caerus Care Ltd,Care Establishment,2 - Operations - Learning Disability,LDP Fenland Locality - Care,Supported Living
Cambridgeshire County Council,21-Jul-16,21135340-13669697,505.98,Caerus Care Ltd,Care Establishment,2 - Operations - Learning Disability,LDP Fenland Locality - Care,Supported Living
Cambridgeshire County Council,21-Jul-16,21135365-13669698,505.98,Caerus Care Ltd,Care Establishment,2 - Operations - Learning Disability,LDP Fenland Locality - Care,Supported Living
Cambridgeshire County Council,21-Jul-16,21135432-13669695,505.98,Caerus Care Ltd,Care Establishment,2 - Operations - Learning Disability,LDP Fenland Locality - Care,Supported Living
Cambridgeshire County Council,05-Jul-16,20967538-13600134,506,Rushden Mind,Trade Supplier,4 - Commissioning - Mental Health & Supporting People,Hunts Mental Health Team,Day and Domicillary Care Independent Sector
Cambridgeshire County Council,01-Jul-16,21009204-13582679,506.24,Redacted Personal Data,Individual,3 - Operations - Countywide Services,Countywide PD Service - Care,Direct Payments - Social Services
Cambridgeshire County Council,01-Jul-16,21009205-13582680,506.24,Redacted Personal Data,Individual,3 - Operations - Countywide Services,Countywide PD Service - Care,Direct Payments - Social Services
Cambridgeshire County Council,01-Jul-16,21009206-13582681,506.24,Redacted Personal Data,Individual,3 - Operations - Countywide Services,Countywide PD Service - Care,Direct Payments - Social Services
Cambridgeshire County Council,01-Jul-16,21009207-13582682,506.24,Redacted Personal Data,Individual,3 - Operations - Countywide Services,Countywide PD Service - Care,Direct Payments - Social Services
Cambridgeshire County Council,29-Jul-16,21188300-13731115,506.24,Redacted Personal Data,Individual,3 - Operations - Countywide Services,Countywide PD Service - Care,Direct Payments - Social Services
Cambridgeshire County Council,29-Jul-16,21188301-13731116,506.24,Redacted Personal Data,Individual,3 - Operations - Countywide Services,Countywide PD Service - Care,Direct Payments - Social Services
Cambridgeshire County Council,29-Jul-16,21188302-13731113,506.24,Redacted Personal Data,Individual,3 - Operations - Countywide Services,Countywide PD Service - Care,Direct Payments - Social Services
Cambridgeshire County Council,29-Jul-16,21188303-13731114,506.24,Redacted Personal Data,Individual,3 - Operations - Countywide Services,Countywide PD Service - Care,Direct Payments - Social Services
Cambridgeshire County Council,21-Jul-16,21144501-13691017,506.38,Farrington Care Homes Ltd T/A Woodlands Residential Care Home,Care Establishment,2 - Commissioning - Older people Pool,Hunts O P  Team,Residential Independent Sector
Cambridgeshire County Council,21-Jul-16,21144504-13691018,506.38,Farrington Care Homes Ltd T/A Woodlands Residential Care Home,Care Establishment,2 - Commissioning - Older people Pool,Hunts O P  Team,Residential Independent Sector
Cambridgeshire County Council,21-Jul-16,21144505-13691019,506.38,Farrington Care Homes Ltd T/A Woodlands Residential Care Home,Care Establishment,2 - Commissioning - Older people Pool,Hunts O P  Team,Residential Independent Sector
Cambridgeshire County Council,21-Jul-16,21144507-13691020,506.38,Farrington Care Homes Ltd T/A Woodlands Residential Care Home,Care Establishment,2 - Commissioning - Older people Pool,Hunts O P  Team,Residential Independent Sector
Cambridgeshire County Council,01-Jul-16,21003969-13590409,506.46,Redacted Personal Data,Individual,3 - Operations - Countywide Services,Countywide PD Service - Care,Direct Payments - Social Services
Cambridgeshire County Council,01-Jul-16,21003970-13590410,506.46,Redacted Personal Data,Individual,3 - Operations - Countywide Services,Countywide PD Service - Care,Direct Payments - Social Services
Cambridgeshire County Council,01-Jul-16,21003971-13590411,506.46,Redacted Personal Data,Individual,3 - Operations - Countywide Services,Countywide PD Service - Care,Direct Payments - Social Services
Cambridgeshire County Council,01-Jul-16,21003972-13590412,506.46,Redacted Personal Data,Individual,3 - Operations - Countywide Services,Countywide PD Service - Care,Direct Payments - Social Services
Cambridgeshire County Council,29-Jul-16,21184644-13728383,506.46,Redacted Personal Data,Individual,3 - Operations - Countywide Services,Countywide PD Service - Care,Direct Payments - Social Services
Cambridgeshire County Council,29-Jul-16,21184645-13728384,506.46,Redacted Personal Data,Individual,3 - Operations - Countywide Services,Countywide PD Service - Care,Direct Payments - Social Services
Cambridgeshire County Council,29-Jul-16,21184646-13728385,506.46,Redacted Personal Data,Individual,3 - Operations - Countywide Services,Countywide PD Service - Care,Direct Payments - Social Services
Cambridgeshire County Council,29-Jul-16,21184647-13728386,506.46,Redacted Personal Data,Individual,3 - Operations - Countywide Services,Countywide PD Service - Care,Direct Payments - Social Services
Cambridgeshire County Council,21-Jul-16,21145643-13670703,506.64,Sagecare Ltd,Care Establishment,2 - Commissioning - Older people Pool,Hunts O P  Team,Day and Domicillary Care Independent Sector
Cambridgeshire County Council,29-Jul-16,21188980-13728647,507.53,Peters Ltd,Trade Supplier,Corporate Services,Support - Stock & Distribution,Library Book Fund
Cambridgeshire County Council,21-Jul-16,21134291-13676967,507.79,Conquest Care Homes Peterborough,Care Establishment,2 - Operations - Learning Disability,LDP Fenland Locality - Care,Supported Living
Cambridgeshire County Council,21-Jul-16,21134293-13677097,507.79,Conquest Care Homes Peterborough,Care Establishment,2 - Operations - Learning Disability,LDP Fenland Locality - Care,Supported Living
Cambridgeshire County Council,21-Jul-16,21134294-13677098,507.79,Conquest Care Homes Peterborough,Care Establishment,2 - Operations - Learning Disability,LDP Fenland Locality - Care,Supported Living
Cambridgeshire County Council,21-Jul-16,21134295-13677099,507.79,Conquest Care Homes Peterborough,Care Establishment,2 - Operations - Learning Disability,LDP Fenland Locality - Care,Supported Living
Cambridgeshire County Council,21-Jul-16,21148492-13677022,507.79,Conquest Care Homes Peterborough,Care Establishment,2 - Operations - Learning Disability,LDP Fenland Locality - Care,Supported Living
Cambridgeshire County Council,21-Jul-16,21148496-13677026,507.79,Conquest Care Homes Peterborough,Care Establishment,2 - Operations - Learning Disability,LDP Fenland Locality - Care,Supported Living
Cambridgeshire County Council,21-Jul-16,21148497-13677027,507.79,Conquest Care Homes Peterborough,Care Establishment,2 - Operations - Learning Disability,LDP Fenland Locality - Care,Supported Living
Cambridgeshire County Council,21-Jul-16,21148498-13677028,507.79,Conquest Care Homes Peterborough,Care Establishment,2 - Operations - Learning Disability,LDP Fenland Locality - Care,Supported Living
Cambridgeshire County Council,18-Jul-16,21082925-13658606,508,Noble Cars,Trade Supplier,S&C,Home to School Transport - Special,Home to School - Special - Special school
Cambridgeshire County Council,01-Jul-16,21008908-13588540,508.04,Tony Stocks T/A Guyatt House,Care Establishment,2 - Operations - Learning Disability,LDP E Cambs Locality - Care,Residential Independent Sector
Cambridgeshire County Council,01-Jul-16,21008912-13588541,508.04,Tony Stocks T/A Guyatt House,Care Establishment,2 - Operations - Learning Disability,LDP E Cambs Locality - Care,Residential Independent Sector
Cambridgeshire County Council,01-Jul-16,21008967-13588538,508.04,Tony Stocks T/A Guyatt House,Care Establishment,2 - Operations - Learning Disability,LDP E Cambs Locality - Care,Residential Independent Sector
Cambridgeshire County Council,01-Jul-16,21008972-13588539,508.04,Tony Stocks T/A Guyatt House,Care Establishment,2 - Operations - Learning Disability,LDP E Cambs Locality - Care,Residential Independent Sector
Cambridgeshire County Council,29-Jul-16,21186835-13738096,508.04,Tony Stocks T/A Guyatt House,Care Establishment,2 - Operations - Learning Disability,LDP E Cambs Locality - Care,Residential Independent Sector
Cambridgeshire County Council,29-Jul-16,21186838-13738097,508.04,Tony Stocks T/A Guyatt House,Care Establishment,2 - Operations - Learning Disability,LDP E Cambs Locality - Care,Residential Independent Sector
Cambridgeshire County Council,29-Jul-16,21186843-13738099,508.04,Tony Stocks T/A Guyatt House,Care Establishment,2 - Operations - Learning Disability,LDP E Cambs Locality - Care,Residential Independent Sector
Cambridgeshire County Council,29-Jul-16,21186845-13738101,508.04,Tony Stocks T/A Guyatt House,Care Establishment,2 - Operations - Learning Disability,LDP E Cambs Locality - Care,Residential Independent Sector
Cambridgeshire County Council,21-Jul-16,21135130-13682938,508.21,Camb Care Ltd,Care Establishment,2 - Commissioning - Older people Pool,Hunts O P  Team,Day and Domicillary Care Independent Sector
Cambridgeshire County Council,21-Jul-16,21135134-13682939,508.21,Camb Care Ltd,Care Establishment,2 - Commissioning - Older people Pool,Hunts O P  Team,Day and Domicillary Care Independent Sector
Cambridgeshire County Council,21-Jul-16,21135135-13682940,508.21,Camb Care Ltd,Care Establishment,2 - Commissioning - Older people Pool,Hunts O P  Team,Day and Domicillary Care Independent Sector
Cambridgeshire County Council,21-Jul-16,21135139-13682941,508.21,Camb Care Ltd,Care Establishment,2 - Commissioning - Older people Pool,Hunts O P  Team,Day and Domicillary Care Independent Sector
Cambridgeshire County Council,21-Jul-16,21137303-13682844,508.21,Camb Care Ltd,Care Establishment,2 - Commissioning - Older people Pool,Hunts O P  Team,Day and Domicillary Care Independent Sector
Cambridgeshire County Council,21-Jul-16,21137304-13682845,508.21,Camb Care Ltd,Care Establishment,2 - Commissioning - Older people Pool,Hunts O P  Team,Day and Domicillary Care Independent Sector
Cambridgeshire County Council,21-Jul-16,21137305-13682846,508.21,Camb Care Ltd,Care Establishment,2 - Commissioning - Older people Pool,Hunts O P  Team,Day and Domicillary Care Independent Sector
Cambridgeshire County Council,21-Jul-16,21137306-13682847,508.21,Camb Care Ltd,Care Establishment,2 - Commissioning - Older people Pool,Hunts O P  Team,Day and Domicillary Care Independent Sector
Cambridgeshire County Council,21-Jul-16,21150285-13682825,508.21,Camb Care Ltd,Care Establishment,2 - Commissioning - Older people Pool,Hunts O P  Team,Day and Domicillary Care Independent Sector
Cambridgeshire County Council,21-Jul-16,21150302-13682827,508.21,Camb Care Ltd,Care Establishment,2 - Commissioning - Older people Pool,Hunts O P  Team,Day and Domicillary Care Independent Sector
Cambridgeshire County Council,21-Jul-16,21150309-13682830,508.21,Camb Care Ltd,Care Establishment,2 - Commissioning - Older people Pool,Hunts O P  Team,Day and Domicillary Care Independent Sector
Cambridgeshire County Council,07-Jul-16,21081082-13610878,508.64,Redacted Personal Data,Parent/Guardian,S&C,Home to School Transport - Special,Home to School - Post 16
Cambridgeshire County Council,21-Jul-16,21142852-13678002,508.64,Affinity Trust,Care Establishment,2 - Operations - Learning Disability,LDP Fens - Special Needs,Day and Domicillary Care Independent Sector
Cambridgeshire County Council,21-Jul-16,21152471-13690783,508.8,Ringshill Care Home,Care Establishment,2 - Commissioning - Older people Pool,Older People - Fenland,Residential Independent Sector
Cambridgeshire County Council,21-Jul-16,21152472-13690784,508.8,Ringshill Care Home,Care Establishment,2 - Commissioning - Older people Pool,Older People - Fenland,Residential Independent Sector
Cambridgeshire County Council,21-Jul-16,21152474-13690785,508.8,Ringshill Care Home,Care Establishment,2 - Commissioning - Older people Pool,Older People - Fenland,Residential Independent Sector
